Workbook

Sheet Overblik
A1: =A906 -> Retten i Holstebro | B1: =B906 -> 90.84673672 | C1: 97.14602361 | D1: 89.042 | E1: 91.92223398 | F1: 97.075 | G1: 108.4681698 | H1: 0.2636127543 | I1: 0.2867368008 | J1: 116 | K1: 99 | L1: 497.0629921 | M1: 517.1038961 | N1: 43.52704117 | O1: 33.32733875 | P1: 51.5625 | Q1: 44.06779661 | R1: 0 | S1: 66.66666667 | T1: 13.91934598 | U1: 7.512563132 | V1: 18.1 | W1: 11.9 | X1: 48.20261 | Y1: 46.44103 | Z1: 11.065 | AA1: 11.27 | AB1: 24.878 | AC1: 23.056 | AD1: 21.82798543 | AE1: 21.76629581 | AF1: Retten i Holstebro | AG1: 0 | AH1: 0
A2: =A1 -> Retten i Holstebro | B2: =AF1 -> Retten i Holstebro
B3: ÅRSNØGLETAL 2011 | L3: Datatabeller
I4: Evt. sammenligning | L4: KLIK PÅ PILENE FOR AT HOPPE TIL DATA:
B5: =A1 -> Retten i Holstebro | I5: =B34 -> Retten i Herning | M5: Produktivitet, samlet for retten
D6: 2010 | E6: 2011 | F6: Gnst. BR 2011 | G6: 5. bedste 2011 | I6: 2010 | J6: 2011 | M6: Produktivitet, jurister
B7: Samlet produktivitet, retten (indeks) | D7: =B1 -> 90.84673672 | E7: =C1 -> 97.14602361 | F7: 101.8 | G7: 104.4 | I7: =IF($B$5=$I$5,"",C34) -> 97.88320095 | J7: =IF($B$5=$I$5,"",D34) -> 94.74397825 | M7: Produktivitet, kontor
B8: Samlet produktivitet, jurister (indeks) | D8: =D1 -> 89.042 | E8: =E1 -> 91.92223398 | F8: 98.1 | G8: 102.9 | I8: =IF($B$5=$I$5,"",E34) -> 97.891 | J8: =IF($B$5=$I$5,"",F34) -> 86.15520309 | M8: Årsværk, ledelse og administration
B9: Samlet produktivitet, kontorfunktionærer (indeks) | D9: =F1 -> 97.075 | E9: =G1 -> 108.4681698 | F9: 105.3 | G9: 110.5 | I9: =IF($B$5=$I$5,"",G34) -> 100.321 | J9: =IF($B$5=$I$5,"",H34) -> 104.9908503 | M9: Aktivitet ved retten
B10: Årsværksandel til generel ledelse og administration (procent) | D10: =H1*100 -> 26.36127543 | E10: =I1*100 -> 28.67368008 | F10: 20.2 | I10: =IF($B$5=$I$5,"",I34*100) -> 24.18739767 | J10: =IF($B$5=$I$5,"",J34*100) -> 21.39144778 | M10: Målopfyldelse, straffesager
B11: Gnst. sagsbehandlingstid, domsmandssager (dage) | D11: =J1 -> 116 | E11: =K1 -> 99 | F11: 135 | G11: 89 | I11: =IF($B$5=$I$5,"",K34) -> 91 | J11: =IF($B$5=$I$5,"",L34) -> 93 | M11: Målopfyldelse, civile sager
B12: Gnst. sagsbehandlingstid, hovedforhandlet alm. civil sag (mdr.) | D12: =L1/30 -> 16.5687664 | E12: =M1/30 -> 17.23679654 | F12: =581/30 -> 19.36666667 | G12: =493/30 -> 16.43333333 | I12: =IF($B$5=$I$5,"",M34/30) -> 14.74079602 | J12: =IF($B$5=$I$5,"",N34/30) -> 16.8 | M12: Målopfyldelse, fogedsager
B13: Gnst. sagsbehandlingstid, almindelig fogedsag (dage) | D13: =N1 -> 43.52704117 | E13: =O1 -> 33.32733875 | F13: 75 | G13: 49 | I13: =IF($B$5=$I$5,"",O34) -> 67 | J13: =IF($B$5=$I$5,"",P34) -> 46.15043463 | M13: Gnst. Sagsbehandlingstid, straffesager
B14: Målopfyldelse, voldssager 37-dages frist (procent) | D14: =P1 -> 51.5625 | E14: =Q1 -> 44.06779661 | F14: 53.7 | G14: 70 | I14: =IF($B$5=$I$5,"",Q34) -> 52.77777778 | J14: =IF($B$5=$I$5,"",R34) -> 60.41666667 | M14: Gnst. Sagsbehandlingstid, civile sager
B15: Målopfyldelse, voldtægtssager 37-dages frist (procent) | D15: =IF(R1=999," -",R1) -> 0 | E15: =IF(S1=999," -",S1) -> 66.66666667 | F15: 24.2 | G15: 37.5 | I15: =IF($B$5=$I$5,"",S34) -> 0 | J15: =IF($B$5=$I$5,"",T34) -> 0 | M15: Gnst. Sagsbehandlingstid, fogedsager
B16: Gnst. sygefravær pr. medarbejder (dage pr. år) | D16: =T1 -> 13.91934598 | E16: =U1 -> 7.512563132 | F16: 9.4 | G16: 7.2 | I16: =IF($B$5=$I$5,"",U34) -> 6.983540585 | J16: =IF($B$5=$I$5,"",V34) -> 12.53367166 | M16: Gnst. Sagsbehandlingstid, skiftesager
B17: Personaleomsætningsprocent (procent) | D17: =V1 -> 18.1 | E17: =W1 -> 11.9 | F17: 10.5 | I17: =IF($B$5=$I$5,"",W34) -> 4.2 | J17: =IF($B$5=$I$5,"",X34) -> 17.4 | M17: HR-nøgletal
B18: Samlet årsværksforbrug, retten (årsværk) | D18: =X1 -> 48.20261 | E18: =Y1 -> 46.44103 | F18: 70.5 | I18: =IF($B$5=$I$5,"",Y34) -> 46.48078 | J18: =IF($B$5=$I$5,"",Z34) -> 42.52615 | M18: Årsværksforbrug, personalekategorier
B19: Samlet årsværksforbrug, jurister (årsværk) | D19: =Z1 -> 11.065 | E19: =AA1 -> 11.27 | F19: 19.2 | I19: =IF($B$5=$I$5,"",AA34) -> 11.20923 | J19: =IF($B$5=$I$5,"",AB34) -> 11.84873 | M19: Årsværksforbrug, sagsområder
B20: Samlet årsværksforbrug, kontorfunktionærer (årsværk) | D20: =AB1 -> 24.878 | E20: =AC1 -> 23.056 | F20: 40.4 | I20: =IF($B$5=$I$5,"",AC34) -> 26.84309 | J20: =IF($B$5=$I$5,"",AD34) -> 23.57106
B21: Samlet lønsumsforbrug (mio. kr.) | D21: =AD1 -> 21.82798543 | E21: =AE1 -> 21.76629581 | F21: 34.1 | I21: =IF($B$5=$I$5,"",AE34) -> 21.28914883 | J21: =IF($B$5=$I$5,"",AF34) -> 21.11471095
B23: Noter:
B24: 1) Ved beregningen af indeks for produktivitet samlet for retten, for jurister og kontor er indeks 100 lig gennemsnittet ved byretterne i 2010
B25: 2) Der er sket en genberegning af produktiviteten for 2010 på baggrund af de forenklede sagsvægte samt den ændrede vægtning af årsværkene inden for de forskellige personalekategorier.
B26: 3) Årsværksandel til generel ledelse og administration er samlet for retten og inkluderer alle personalegrupper.
B27: 4) Den gennemsnitlige sagsbehandlingstid for en hovedforhandlet almindelig civil sag inkluderer sagstypen almindelige sager. Boligretssager og småsager indgår ikke.
B28: 5) Ansatte under socialt kapitel indgår ikke i beregningen af det gennemsnitlige sygefravær pr. medarbejder (årsværk).
B29: 6) Lønsumsforbruget inkluderer egentlig løn, over- og merarbejde, stævningsmænd, refusioner og pensionsbidrag.
B31: KLIK FOR AT AKTIVERE SAMMENLIGNING:
B34: =A907 -> Retten i Herning | C34: =B907 -> 97.88320095 | D34: 94.74397825 | E34: 97.891 | F34: 86.15520309 | G34: 100.321 | H34: 104.9908503 | I34: 0.2418739767 | J34: 0.2139144778 | K34: 91 | L34: 93 | M34: 442.2238806 | N34: 504 | O34: 67 | P34: 46.15043463 | Q34: 52.77777778 | R34: 60.41666667 | S34: 0 | T34: 0 | U34: 6.983540585 | V34: 12.53367166 | W34: 4.2 | X34: 17.4 | Y34: 46.48078 | Z34: 42.52615 | AA34: 11.20923 | AB34: 11.84873 | AC34: 26.84309 | AD34: 23.57106 | AE34: 21.28914883 | AF34: 21.11471095 | AG34: Retten i Herning
B899: Samlet produktivitet, retten | D899: Samlet produktivitet, jurister | F899: Samlet produktivitet, kontor | H899: ÅRVK ledelse og adm. | J899: Sagstider domsmandssager | L899: Sagstider hfh. alm. Civil | N899: Sagstid alm. fogedsag | P899: Målopfyldelse vold | R899: Målopfyldelse voldtægt | T899: Sygefravær | V899: Personaleomsætning | X899: Årsværk retten | Z899: Årsværk jurist | AB899: Årsværk kontor | AD899: Samlet lønsum
A900: Ret | B900: 2010 | C900: 2011 | D900: 2010 | E900: 2011 | F900: 2010 | G900: 2011 | H900: 2010 | I900: 2011 | J900: 2010 | K900: 2011 | L900: 2010 | M900: 2011 | N900: 2010 | O900: 2011 | P900: 2010 | Q900: 2011 | R900: 2010 | S900: 2011 | T900: 2010 | U900: 2011 | V900: 2010 | W900: 2011 | X900: 2010 | Y900: 2011 | Z900: 2010 | AA900: 2011 | AB900: 2010 | AC900: 2011 | AD900: 2010 | AE900: 2011
A901: Retten i Hjørring | B901: 92.11008137 | C901: 110.8018073 | D901: 96.245 | E901: 113.4293936 | F901: 88.757 | G901: 108.757508 | H901: 0.1957285249 | I901: 0.1682195073 | J901: 96 | K901: 93 | L901: 540.9854369 | M901: 588.737931 | N901: 68 | O901: 59.02804965 | P901: 57.30337079 | Q901: 72.72727273 | R901: 20 | S901: 75 | T901: 6.086013536 | U901: 9.195340336 | V901: 16.1 | W901: 13.3 | X901: 59.50359 | Y901: 59.79526 | Z901: 13.69261 | AA901: 13.34803 | AB901: 35.55287 | AC901: 33.06976 | AD901: 28.55702312 | AE901: 25.84077727 | AF901: Retten i Hjørring
A902: Retten i Aalborg | B902: 90.03332259 | C902: 104.3573863 | D902: 88.513 | E902: 100.3245566 | F902: 88.201 | G902: 104.8666979 | H902: 0.1597420112 | I902: 0.1511888232 | J902: 108 | K902: 89 | L902: 530.7219512 | M902: 549.7346939 | N902: 72 | O902: 81.29756381 | P902: 54.73684211 | Q902: 70 | R902: 66.66666667 | S902: 0 | T902: 7.879051478 | U902: 7.44756948 | V902: 12.6 | W902: 11.1 | X902: 86.55827 | Y902: 80.50898 | Z902: 22.64668 | AA902: 22.18722 | AB902: 53.7884 | AC902: 48.742 | AD902: 40.69568149 | AE902: 38.77436805 | AF902: Retten i Aalborg
A903: Retten i Randers | B903: 104.7430429 | C903: 102.4931006 | D903: 106.945 | E903: 96.84353833 | F903: 108.413 | G903: 113.8446003 | H903: 0.2614105354 | I903: 0.2377740383 | J903: 152 | K903: 160 | L903: 632 | M903: 633.4363636 | N903: 75 | O903: 76.65538674 | P903: 43.42105263 | Q903: 43.1372549 | R903: 999 | S903: 0 | T903: 12.16075878 | U903: 7.923213529 | V903: 13.6 | W903: 6.1 | X903: 58.39869 | Y903: 58.17027 | Z903: 13.744 | AA903: 16.642 | AB903: 33.595 | AC903: 31.602 | AD903: 28.64132008 | AE903: 28.27830635 | AF903: Retten i Randers
A904: Retten i Århus | B904: 96.70311036 | C904: 96.31254643 | D904: 93.656 | E904: 88.68845824 | F904: 101.449 | G904: 104.6909906 | H904: 0.1495100724 | I904: 0.1775157495 | J904: 195 | K904: 187 | L904: 559.8969957 | M904: 585.8815789 | N904: 83 | O904: 68.09649662 | P904: 37 | Q904: 44.44444444 | R904: 0 | S904: 0 | T904: 10.44064694 | U904: 10.94548768 | V904: 5.1 | W904: 11.4 | X904: 93.44447 | Y904: 90.00205 | Z904: 25.70209 | AA904: 26.56876 | AB904: 54.07146 | AC904: 50.61565 | AD904: 44.60559758 | AE904: 43.96941009 | AF904: Retten i Århus
A905: Retten i Viborg | B905: 97.23191978 | C905: 107.0699341 | D905: 93.68 | E905: 99.01475973 | F905: 100.689 | G905: 115.1008543 | H905: 0.2027146247 | I905: 0.189074221 | J905: 152 | K905: 110 | L905: 583.8895706 | M905: 598.0942408 | N905: 74.56833001 | O905: 70.36160608 | P905: 40.81632653 | Q905: 67.64705882 | R905: 100 | S905: 100 | T905: 8.644733458 | U905: 7.021671724 | V905: 4.6 | W905: 10.2 | X905: 60.00033 | Y905: 55.19659 | Z905: 16.05963 | AA905: 15.1701 | AB905: 34.73475 | AC905: 30.18242 | AD905: 28.67566336 | AE905: 26.64360749 | AF905: Retten i Viborg
A906: Retten i Holstebro | B906: 90.84673672 | C906: 97.14602361 | D906: 89.042 | E906: 91.92223398 | F906: 97.075 | G906: 108.4681698 | H906: 0.2636127543 | I906: 0.2867368008 | J906: 116 | K906: 99 | L906: 497.0629921 | M906: 517.1038961 | N906: 43.52704117 | O906: 33.32733875 | P906: 51.5625 | Q906: 44.06779661 | R906: 0 | S906: 66.66666667 | T906: 13.91934598 | U906: 7.512563132 | V906: 18.1 | W906: 11.9 | X906: 48.20261 | Y906: 46.44103 | Z906: 11.065 | AA906: 11.27 | AB906: 24.878 | AC906: 23.056 | AD906: 21.82798543 | AE906: 21.76629581 | AF906: Retten i Holstebro
A907: Retten i Herning | B907: 97.88320095 | C907: 94.74397825 | D907: 97.891 | E907: 86.15520309 | F907: 100.321 | G907: 104.9908503 | H907: 0.2418739767 | I907: 0.2139144778 | J907: 91 | K907: 93 | L907: 442.2238806 | M907: 504 | N907: 67 | O907: 46.15043463 | P907: 52.77777778 | Q907: 60.41666667 | R907: 0 | S907: 0 | T907: 6.983540585 | U907: 12.53367166 | V907: 4.2 | W907: 17.4 | X907: 46.48078 | Y907: 42.52615 | Z907: 11.20923 | AA907: 11.84873 | AB907: 26.84309 | AC907: 23.57106 | AD907: 21.28914883 | AE907: 21.11471095 | AF907: Retten i Herning
A908: Retten i Horsens | B908: 93.89501629 | C908: 104.2162716 | D908: 85.56 | E908: 95.03827517 | F908: 103.556 | G908: 114.9767019 | H908: 0.2238541241 | I908: 0.2183342823 | J908: 87 | K908: 75 | L908: 412.122905 | M908: 454.2037037 | N908: 60 | O908: 53.19851049 | P908: 52.94117647 | Q908: 54.23728814 | R908: 33.33333333 | S908: 999 | T908: 9.728029728 | U908: 9.656788281 | V908: 6.7 | W908: 12.5 | X908: 53.05005 | Y908: 53.41053 | Z908: 13.90104 | AA908: 14.38903 | AB908: 27.72214 | AC908: 26.41923 | AD908: 24.29318801 | AE908: 25.08928797 | AF908: Retten i Horsens
A909: Retten i Kolding | B909: 101.2018092 | C909: 102.1705783 | D909: 102.677 | E909: 98.70276316 | F909: 97.532 | G909: 102.2931658 | H909: 0.1992903201 | I909: 0.1845932938 | J909: 134 | K909: 150 | L909: 609.3172691 | M909: 651.4146341 | N909: 57 | O909: 50.7865086 | P909: 59.52380952 | Q909: 65.51724138 | R909: 100 | S909: 999 | T909: 7.106268607 | U909: 8.675627926 | V909: 12.4 | W909: 6.1 | X909: 80.07517 | Y909: 76.6875 | Z909: 19.82477 | AA909: 20.54952 | AB909: 49.10919 | AC909: 45.06554 | AD909: 36.92171264 | AE909: 36.12998449 | AF909: Retten i Kolding
A910: Retten i Esbjerg | B910: 94.89633869 | C910: 103.5057849 | D910: 93.322 | E910: 97.70103833 | F910: 95.667 | G910: 106.4985655 | H910: 0.1944624848 | I910: 0.1883800621 | J910: 131 | K910: 134 | L910: 561.3793103 | M910: 627.5329949 | N910: 51 | O910: 57.25041368 | P910: 39.13043478 | Q910: 31.91489362 | R910: 50 | S910: 20 | T910: 9.997435444 | U910: 9.830962196 | V910: 14.3 | W910: 12.2 | X910: 62.08419 | Y910: 56.23196 | Z910: 15.4229 | AA910: 15.1442 | AB910: 35.77815 | AC910: 32.03157 | AD910: 28.87912257 | AE910: 27.40345038 | AF910: Retten i Esbjerg
A911: Retten i Sønderborg | B911: 102.3636408 | C911: 108.6404871 | D911: 105.955 | E911: 112.0597483 | F911: 102.391 | G911: 110.5324666 | H911: 0.2149270422 | I911: 0.2219987197 | J911: 140 | K911: 146 | L911: 593.0822785 | M911: 670.3020134 | N911: 65 | O911: 66.74565217 | P911: 38.70967742 | Q911: 51.25 | R911: 0 | S911: 0 | T911: 7.880169516 | U911: 5.1 | V911: 14.7 | W911: 12.9 | X911: 62.59366 | Y911: 62.58565 | Z911: 15.136 | AA911: 15.411 | AB911: 37.78 | AC911: 36.905 | AD911: 33.33050493 | AE911: 32.31378702 | AF911: Retten i Sønderborg
A912: Retten i Odense | B912: 95.20495627 | C912: 100.0295857 | D912: 91.42 | E912: 94.28575515 | F912: 98.088 | G912: 104.6120802 | H912: 0.1775745797 | I912: 0.1697729389 | J912: 95 | K912: 86 | L912: 436.4921875 | M912: 428.4694836 | N912: 66.47992795 | O912: 66.62457364 | P912: 41.52542373 | Q912: 60.46511628 | R912: 42.85714286 | S912: 37.5 | T912: 12.60012097 | U912: 7.222463525 | V912: 4 | W912: 20.8 | X912: 95.75862 | Y912: 89.18757 | Z912: 25.21165 | AA912: 24.26146 | AB912: 55.31165 | AC912: 52.27552 | AD912: 43.97215031 | AE912: 42.19547545 | AF912: Retten i Odense
A913: Retten i Svendborg | B913: 91.79883246 | C913: 96.78432584 | D913: 99.141 | E913: 98.28186213 | F913: 90.83 | G913: 98.33607086 | H913: 0.2640467464 | I913: 0.2173778897 | J913: 113 | K913: 100 | L913: 499.5116279 | M913: 457.0487805 | N913: 58.94143033 | O913: 39.74894068 | P913: 54.54545455 | Q913: 60.52631579 | R913: 50 | S913: 0 | T913: 9.313944501 | U913: 7.534810135 | V913: 8.3 | W913: 13.5 | X913: 48.29028 | Y913: 46.62935 | Z913: 10.96216 | AA913: 12.16381 | AB913: 28.82594 | AC913: 26.86367 | AD913: 21.80040844 | AE913: 21.33413431 | AF913: Retten i Svendborg
A914: Retten i Nykøbing F. | B914: 103.5740787 | C914: 102.1815893 | D914: 100.393 | E914: 103.5652002 | F914: 107.436 | G914: 102.5046457 | H914: 0.2063614568 | I914: 0.2106800886 | J914: 119 | K914: 89 | L914: 532.9230769 | M914: 511.1076923 | N914: 90.97971117 | O914: 58.32441823 | P914: 42.85714286 | Q914: 75 | R914: 25 | S914: 33.33333333 | T914: 8.954153072 | U914: 3.1 | V914: 7.3 | W914: 5.9 | X914: 57.75561 | Y914: 57.71872 | Z914: 15.91843 | AA914: 15.11914 | AB914: 35.03978 | AC914: 36.06329 | AD914: 28.26114514 | AE914: 27.75952561 | AF914: Retten i Nykøbing F.
A915: Retten i Næstved | B915: 103.3241026 | C915: 104.3125838 | D915: 102.958 | E915: 94.8783524 | F915: 104.742 | G915: 115.1545134 | H915: 0.2276389792 | I915: 0.2099155949 | J915: 204 | K915: 175 | L915: 631.8604651 | M915: 667.1578947 | N915: 126.1694838 | O915: 90.31952363 | P915: 20.3125 | Q915: 19.60784314 | R915: 40 | S915: 42.85714286 | T915: 11.13291785 | U915: 9.143692893 | V915: 8.8 | W915: 8.7 | X915: 73.67399 | Y915: 71.95559 | Z915: 18.27248 | AA915: 19.95737 | AB915: 43.99497 | AC915: 40.2327 | AD915: 33.84379004 | AE915: 33.44395386 | AF915: Retten i Næstved
A916: Retten i Holbæk | B916: 102.6175067 | C916: 103.2910575 | D916: 100.939 | E916: 100.4599514 | F916: 103.119 | G916: 104.7877874 | H916: 0.215355288 | I916: 0.2088241287 | J916: 151 | K916: 129 | L916: 479.5037594 | M916: 492.7288136 | N916: 117 | O916: 79.91707956 | P916: 38.02816901 | Q916: 45.90163934 | R916: 0 | S916: 0 | T916: 16.58498693 | U916: 10.0927266 | V916: 3.6 | W916: 3.7 | X916: 52.62666 | Y916: 52.84805 | Z916: 13.08367 | AA916: 12.96697 | AB916: 31.20341 | AC916: 31.22812 | AD916: 24.65045647 | AE916: 24.06054675 | AF916: Retten i Holbæk
A917: Retten i Roskilde | B917: 102.5152515 | C917: 103.2113451 | D917: 98.023 | E917: 102.8980378 | F917: 104.929 | G917: 101.7618356 | H917: 0.1963489132 | I917: 0.1985138754 | J917: 150 | K917: 161 | L917: 578.0588235 | M917: 580.0681818 | N917: 95 | O917: 78.76805332 | P917: 57.14285714 | Q917: 57.69230769 | R917: 0 | S917: 0 | T917: 11.23169131 | U917: 8.041632025 | V917: 10.8 | W917: 8.1 | X917: 85.53523 | Y917: 81.93291 | Z917: 22.84629 | AA917: 20.991 | AB917: 51.5666 | AC917: 50.15184 | AD917: 42.34975582 | AE917: 40.35202857 | AF917: Retten i Roskilde
A918: Retten i Hillerød | B918: 96.59758177 | C918: 96.697408 | D918: 95.622 | E918: 93.58817792 | F918: 99.388 | G918: 102.1427099 | H918: 0.2501423709 | I918: 0.2339276241 | J918: 132 | K918: 94 | L918: 532.7987805 | M918: 535.2297297 | N918: 98 | O918: 69.77698997 | P918: 58.82352941 | Q918: 67.56756757 | R918: 0 | S918: 0 | T918: 5.779228549 | U918: 10.53646297 | V918: 6.3 | W918: 15.7 | X918: 63.48314 | Y918: 59.93847 | Z918: 15.37645 | AA918: 15.51429 | AB918: 34.5988 | AC918: 31.81079 | AD918: 29.40745557 | AE918: 28.1485882 | AF918: Retten i Hillerød
A919: Retten i Helsingør | B919: 97.70746183 | C919: 98.03185712 | D919: 89.782 | E919: 87.44537757 | F919: 106.691 | G919: 109.3635401 | H919: 0.1915411764 | I919: 0.1834704084 | J919: 196 | K919: 91 | L919: 615.075 | M919: 625.1616766 | N919: 125 | O919: 80.56226998 | P919: 25.71428571 | Q919: 65.71428571 | R919: 50 | S919: 33.33333333 | T919: 9.141667559 | U919: 8.100239201 | V919: 7.9 | W919: 11 | X919: 62.24907 | Y919: 59.49472 | Z919: 16.76 | AA919: 16.67005 | AB919: 33.26234 | AC919: 30.65085 | AD919: 28.26124847 | AE919: 27.2421141 | AF919: Retten i Helsingør
A920: Retten i Lyngby | B920: 106.033777 | C920: 97.73317023 | D920: 108.405 | E920: 92.42358696 | F920: 103.745 | G920: 102.1100936 | H920: 0.2561583473 | I920: 0.2148466403 | J920: 143 | K920: 97 | L920: 651.1443299 | M920: 681.4340426 | N920: 55 | O920: 48.64405845 | P920: 60.71428571 | Q920: 92 | R920: 999 | S920: 0 | T920: 12.44791936 | U920: 13.96319244 | V920: 10.6 | W920: 11.4 | X920: 67.62292 | Y920: 64.72881 | Z920: 16.76766 | AA920: 18.96953 | AB920: 38.68775 | AC920: 37.24601 | AD920: 31.25930623 | AE920: 32.28066977 | AF920: Retten i Lyngby
A921: Retten i Glostrup | B921: 111.4272148 | C921: 100.7270916 | D921: 119.144 | E921: 99.93799485 | F921: 105.956 | G921: 103.2274652 | H921: 0.2134954095 | I921: 0.1995242933 | J921: 224 | K921: 204 | L921: 763.0295567 | M921: 771.7123746 | N921: 115 | O921: 86.84454431 | P921: 32.35294118 | Q921: 31.86813187 | R921: 50 | S921: 0 | T921: 10.74525425 | U921: 10.93379043 | V921: 8.1 | W921: 11.7 | X921: 128.23516 | Y921: 130.88573 | Z921: 31.54897 | AA921: 35.62068 | AB921: 78.18771 | AC921: 77.10199 | AD921: 60.40716146 | AE921: 61.81072972 | AF921: Retten i Glostrup
A922: Retten på Frederiksberg | B922: 107.4512795 | C922: 103.6355054 | D922: 102.214 | E922: 100.9946625 | F922: 111.631 | G922: 105.6210816 | H922: 0.1677537721 | I922: 0.1692999664 | J922: 183 | K922: 165 | L922: 550.1788618 | M922: 581.0327869 | N922: 116 | O922: 111.6069617 | P922: 16 | Q922: 13.79310345 | R922: 60 | S922: 0 | T922: 11.58837139 | U922: 13.6 | V922: 7 | W922: 6.9 | X922: 91.73905 | Y922: 85.6221 | Z922: 25.36592 | AA922: 23.5809 | AB922: 53.79284 | AC922: 50.499 | AD922: 43.522526 | AE922: 41.59169201 | AF922: Retten på Frederiksberg
A923: Københavns Byret | B923: 103.0084901 | C923: 104.7207282 | D923: 109.292 | E923: 103.620143 | F923: 92.95 | G923: 101.1505428 | H923: 0.2260924292 | I923: 0.220501962 | J923: 209 | K923: 149 | L923: 509.4090909 | M923: 545 | N923: 125 | O923: 119.5509634 | P923: 33.33333333 | Q923: 31.50684932 | R923: 0 | S923: 12.5 | T923: 11.82564679 | U923: 9.68431915 | V923: 8.6 | W923: 7 | X923: 206.42987 | Y923: 193.76867 | Z923: 57.32109 | AA923: 57.94189 | AB923: 128.95047 | AC923: 116.4215 | AD923: 104.7107975 | AE923: 102.5840725 | AF923: Københavns Byret
A924: Retten på Bornholm | B924: 69.39461353 | C924: 67.77157673 | D924: 68.747 | E924: 65.77437071 | F924: 72.631 | G924: 73.07210829 | H924: 0.3306321029 | I924: 0.3437150824 | J924: 37 | K924: 37 | L924: 413.4666667 | M924: 359.8181818 | N924: 34.87174066 | O924: 39.08944028 | P924: 88 | Q924: 100 | R924: 999 | S924: 999 | T924: 7.49434803 | U924: 6.887992143 | V924: 9.7 | W924: 6.4 | X924: 15.35151 | Y924: 15.32718 | Z924: 3.71931 | AA924: 3.68583 | AB924: 8.41713 | AC924: 8.36564 | AD924: 7.35925936 | AE924: 7.34 | AF924: Retten på Bornholm
B925: 0 | C925: 0 | D925: 0 | E925: 0 | F925: 0 | G925: 0 | H925: 0 | I925: 0 | J925: 0 | K925: 0 | L925: 0 | M925: 0 | N925: 0 | O925: 0 | P925: 0 | Q925: 0 | R925: 0 | S925: 0 | T925: 0 | U925: 0 | V925: 0 | W925: 0 | X925: 0 | Y925: 0 | Z925: 0 | AA925: 0 | AB925: 0 | AC925: 0 | AD925: 0 | AE925: 0

Sheet Produkt.SAML.
B2: PRODUKTIVITETSINDEKS SAMLET FOR RETTEN
B4: EID | C4: Ret | D4: Samlet | F4: Retssager | H4: Straffesager | J4: Civile sager | L4: Fogedsager | N4: Skiftesager
D5: 2010 | E5: 2011 | F5: 2010 | G5: 2011 | H5: 2010 | I5: 2011 | J5: 2010 | K5: 2011 | L5: 2010 | M5: 2011 | N5: 2010 | O5: 2011
C6: 5. BEDSTE RET | D6: 103.5740787 | E6: 104.3573863 | F6: 109.1692881 | G6: 104.3855202 | H6: 112.3253149 | I6: 109.9581799 | J6: 105.6472882 | K6: 104.8567917 | L6: 112.3943114 | M6: 117.0979598 | N6: 118.1543505 | O6: 118.6205008
C7: SAMLET BYRETTERNE | D7: 100 | E7: 101.8 | F7: 100 | G7: 99.6 | H7: 100 | I7: 104.1 | J7: 100 | K7: 94.1 | L7: 100 | M7: 106.3 | N7: 100 | O7: 106.2
B9: 901 | C9: Retten i Hjørring | D9: 92.11008137 | E9: 110.8018073 | F9: 92.54219554 | G9: 104.3389699 | H9: 92.33532796 | I9: 112.4068142 | J9: 94.76672788 | K9: 97.89447796 | L9: 79.09636899 | M9: 110.5183804 | N9: 99.98285767 | O9: 127.6669814
B10: 902 | C10: Retten i Aalborg | D10: 90.03332259 | E10: 104.3573863 | F10: 86.00889378 | G10: 101.593655 | H10: 84.89720353 | I10: 100.0941367 | J10: 89.09130301 | K10: 105.4244858 | L10: 104.343463 | M10: 107.4757816 | N10: 83.8827995 | O10: 104.276232
B11: 903 | C11: Retten i Randers | D11: 104.7430429 | E11: 102.4931006 | F11: 98.09567356 | G11: 96.33773445 | H11: 91.92599549 | I11: 93.14718307 | J11: 107.6436075 | K11: 100.9109965 | L11: 122.9537733 | M11: 121.1148722 | N11: 100.0245413 | O11: 100.1095298
B12: 904 | C12: Retten i Århus | D12: 96.70311036 | E12: 96.31254643 | F12: 87.21478771 | G12: 87.38351201 | H12: 88.54029368 | I12: 93.55992892 | J12: 86.96605187 | K12: 82.29910875 | L12: 127.1937265 | M12: 124.72174 | N12: 101.3991766 | O12: 104.2886386
B13: 905 | C13: Retten i Viborg | D13: 97.23191978 | E13: 107.0699341 | F13: 98.14182099 | G13: 105.5364793 | H13: 95.74016164 | I13: 109.620461 | J13: 102.7042292 | K13: 107.7029458 | L13: 82.93253385 | M13: 103.126427 | N13: 106.4541917 | O13: 106.0883835
B14: 906 | C14: Retten i Holstebro | D14: 90.84673672 | E14: 97.14602361 | F14: 83.87503861 | G14: 89.98160644 | H14: 81.94334132 | I14: 102.5514248 | J14: 86.52850214 | K14: 77.67839299 | L14: 101.5667822 | M14: 128.6507709 | N14: 97.52199703 | O14: 93.20653251
B15: 907 | C15: Retten i Herning | D15: 97.88320095 | E15: 94.74397825 | F15: 92.71878657 | G15: 91.72123351 | H15: 87.10999329 | I15: 89.06194052 | J15: 99.81284893 | K15: 95.05124818 | L15: 119.2162009 | M15: 117.0979598 | N15: 93.77737819 | O15: 84.18084919
B16: 908 | C16: Retten i Horsens | D16: 93.89501629 | E16: 104.2162716 | F16: 91.77614437 | G16: 97.79673601 | H16: 112.8052544 | I16: 127.9424131 | J16: 79.9351054 | K16: 78.62536435 | L16: 96.54830436 | M16: 116.6634077 | N16: 93.56489234 | O16: 118.6205008
B17: 909 | C17: Retten i Kolding | D17: 101.2018092 | E17: 102.1705783 | F17: 92.15763902 | G17: 93.24447258 | H17: 94.46958048 | I17: 97.86357835 | J17: 90.88119214 | K17: 89.83657817 | L17: 112.3674315 | M17: 123.5691526 | N17: 124.9748102 | O17: 116.2542564
B18: 910 | C18: Retten i Esbjerg | D18: 94.89633869 | E18: 103.5057849 | F18: 88.41970162 | G18: 99.38475176 | H18: 83.85537358 | I18: 102.5092379 | J18: 91.02008523 | K18: 89.96663929 | L18: 101.2564523 | M18: 109.1703317 | N18: 118.9251133 | O18: 121.1232426
B19: 911 | C19: Retten i Sønderborg | D19: 102.3636408 | E19: 108.6404871 | F19: 111.4305914 | G19: 108.2311424 | H19: 124.1083448 | I19: 121.1882554 | J19: 96.30031524 | K19: 90.69943317 | L19: 86.61742929 | M19: 111.1208042 | N19: 98.09844767 | O19: 111.4503851
B20: 912 | C20: Retten i Odense | D20: 95.20495627 | E20: 100.0295857 | F20: 97.70296586 | G20: 96.52000781 | H20: 103.1885855 | I20: 96.33925459 | J20: 91.37865988 | K20: 94.37447476 | L20: 91.20259015 | M20: 104.8575832 | N20: 90.69257154 | O20: 105.2188982
B21: 913 | C21: Retten i Svendborg | D21: 91.79883246 | E21: 96.78432584 | F21: 95.63781113 | G21: 90.34909289 | H21: 92.47960517 | I21: 88.74027086 | J21: 101.6061339 | K21: 93.97386039 | L21: 76.02524676 | M21: 90.14604654 | N21: 94.0138776 | O21: 116.0484961
B22: 914 | C22: Retten i Nykøbing F. | D22: 103.5740787 | E22: 102.1815893 | F22: 103.5859757 | G22: 95.75405079 | H22: 100.026215 | I22: 91.30123245 | J22: 105.6472882 | K22: 102.3100161 | L22: 101.7277784 | M22: 104.9088502 | N22: 108.4279422 | O22: 113.8915228
B23: 915 | C23: Retten i Næstved | D23: 103.3241026 | E23: 104.3125838 | F23: 104.7298525 | G23: 100.2919656 | H23: 94.2978216 | I23: 92.93216065 | J23: 119.1285501 | K23: 109.5357818 | L23: 100.452435 | M23: 116.0912316 | N23: 100.0610068 | O23: 97.36485564
B24: 916 | C24: Retten i Holbæk | D24: 102.6175067 | E24: 103.2910575 | F24: 101.4603404 | G24: 104.3855202 | H24: 102.3476346 | I24: 103.3579296 | J24: 102.4632023 | K24: 104.8567917 | L24: 107.7726976 | M24: 109.3477839 | N24: 96.58136285 | O24: 91.74021319
B25: 917 | C25: Retten i Roskilde | D25: 102.5152515 | E25: 103.2113451 | F25: 109.3885543 | G25: 106.9239141 | H25: 112.3253149 | I25: 105.9424128 | J25: 105.6179079 | K25: 107.7060325 | L25: 97.1402855 | M25: 96.07500446 | N25: 90.41534164 | O25: 100.1559163
B26: 918 | C26: Retten i Hillerød | D26: 96.59758177 | E26: 96.697408 | F26: 91.12806252 | G26: 94.36630148 | H26: 91.36871437 | I26: 101.1079003 | J26: 93.3997554 | K26: 88.48560917 | L26: 113.6717395 | M26: 105.8353959 | N26: 91.35085573 | O26: 97.04579998
B27: 919 | C27: Retten i Helsingør | D27: 97.70746183 | E27: 98.03185712 | F27: 91.58715794 | G27: 94.65048425 | H27: 91.7512005 | I27: 108.0157387 | J27: 96.21452596 | K27: 83.66605801 | L27: 92.80909001 | M27: 90.88815236 | N27: 118.1543505 | O27: 123.6875662
B28: 920 | C28: Retten i Lyngby | D28: 106.033777 | E28: 97.73317023 | F28: 100.3260561 | G28: 87.42250899 | H28: 125.2442123 | I28: 99.83210096 | J28: 94.72790032 | K28: 89.53958136 | L28: 105.2173826 | M28: 112.7702342 | N28: 119.6167511 | O28: 105.2938505
B29: 921 | C29: Retten i Glostrup | D29: 111.4272148 | E29: 100.7270916 | F29: 109.1692881 | G29: 95.11108569 | H29: 99.36784643 | I29: 94.71111765 | J29: 120.8204169 | K29: 91.7548594 | L29: 112.3943114 | M29: 110.6717069 | N29: 140.2609214 | O29: 138.3612056
B30: 922 | C30: Retten på Frederiksberg | D30: 107.4512795 | E30: 103.6355054 | F30: 109.174209 | G30: 103.6568051 | H30: 115.5737971 | I30: 109.9581799 | J30: 99.02417376 | K30: 96.79197599 | L30: 111.1442275 | M30: 101.6179128 | N30: 100.4856769 | O30: 109.0273984
B31: 923 | C31: Københavns Byret | D31: 103.0084901 | E31: 104.7207282 | F31: 114.2043863 | G31: 115.0314965 | H31: 108.9771599 | I31: 121.3443096 | J31: 115.4889351 | K31: 96.24400529 | L31: 86.74721454 | M31: 92.33198794 | N31: 79.46538267 | O31: 87.45959893
B32: 924 | C32: Retten på Bornholm | D32: 69.39461353 | E32: 67.77157673 | F32: 77.76518002 | G32: 71.79271623 | H32: 80.07318276 | I32: 70.64192543 | J32: 76.11342881 | K32: 73.53660123 | L32: 51.92253514 | M32: 50.92489651 | N32: 67.87116348 | O32: 77.44865749
B34: 1) Der er sket en genberegning af produktiviteten for 2010 på baggrund af de forenklede sagsvægte samt den ændrede vægtning af årsværkene inden for de forskellige personalekategorier.
B35: 2) Indeks 100 svarer til gennemsnittet ved byretterne i 2010.
B36: 3) "Retssager" svarer til den samlede produktivitet for "straffesager" og "civile sager".
B37: 4) Ved beregningen af den samlede produktivitet, samlet for retten, anvendes rettens samlede vægtede årsværksforbrug - dvs. også årsværksforbruget til generel ledelse og administration mv. Ved beregning af produktiviteten på de enkelte sagsområder er årsværkforbruget til generel ledelse og administration mv. nøgletalsfordelt, således at forskelle i andele i årsværksforbrug til generel ledelse og administration mv. ikke vanskeliggør en sammenligning af de enkelte retter.

Sheet Produkt.JUR
B2: PRODUKTIVITETSINDEKS JURISTER
B4: EID | C4: Ret | D4: Samlet | F4: Retssager | H4: Straffesager | J4: Civile sager | L4: Fogedsager | N4: Skiftesager
D5: 2010 | E5: 2011 | F5: 2010 | G5: 2011 | H5: 2010 | I5: 2011 | J5: 2010 | K5: 2011 | L5: 2010 | M5: 2011 | N5: 2010 | O5: 2011
C6: 5. BEDSTE RET | D6: 105.955 | E6: 102.8985069 | F6: 108.0859503 | G6: 102.4340603 | H6: 109.0055995 | I6: 104.4371317 | J6: 113.3926493 | K6: 100.7859203 | L6: 118.3751832 | M6: 129.5617181 | N6: 125.3097556 | O6: 136.8
C7: SAMLET BYRETTERNE | D7: 100 | E7: 98.1 | F7: 100 | G7: 94.3 | H7: 100 | I7: 97.8 | J7: 100 | K7: 89.9 | L7: 100 | M7: 107.5 | N7: 100 | O7: 103.4
B9: 901 | C9: Retten i Hjørring | D9: 96.245 | E9: 113.4293936 | F9: 101.5352242 | G9: 102.4340603 | H9: 104.6222775 | I9: 110.2680869 | J9: 101.5033609 | K9: 96.7554365 | L9: 103.5872549 | M9: 130.0771816 | N9: 91.22934278 | O9: 129.3064852
B10: 902 | C10: Retten i Aalborg | D10: 88.513 | E10: 100.3245566 | F10: 83.82481907 | G10: 93.49646198 | H10: 84.34991712 | I10: 91.0636033 | J10: 85.54150556 | K10: 98.73176595 | L10: 92.36625406 | M10: 94.50986182 | N10: 81.98289264 | O10: 97.43321892
B11: 903 | C11: Retten i Randers | D11: 106.945 | E11: 96.84353833 | F11: 106.9936615 | G11: 95.5667644 | H11: 104.3069082 | I11: 92.82075284 | J11: 113.3926493 | K11: 99.60698986 | L11: 119.4906047 | M11: 138.9753661 | N11: 117.2475223 | O11: 108.8154975
B12: 904 | C12: Retten i Århus | D12: 93.656 | E12: 88.68845824 | F12: 87.58835461 | G12: 84.96334164 | H12: 82.66270855 | I12: 88.12644942 | J12: 93.90021725 | K12: 82.81746314 | L12: 118.3751832 | M12: 117.4380028 | N12: 88.81333194 | O12: 76.55261634
B13: 905 | C13: Retten i Viborg | D13: 93.68 | E13: 99.01475973 | F13: 90.64490291 | G13: 94.12698727 | H13: 83.62981233 | I13: 92.88913968 | J13: 100.2978023 | K13: 100.7859203 | L13: 108.9586751 | M13: 120.2955356 | N13: 85.8075588 | O13: 76.61529805
B14: 906 | C14: Retten i Holstebro | D14: 89.042 | E14: 91.92223398 | F14: 85.49187073 | G14: 93.44256891 | H14: 83.06006232 | I14: 103.3289298 | J14: 88.79724099 | K14: 83.17375666 | L14: 102.8691624 | M14: 158.5332106 | N14: 97.09736639 | O14: 90.3302737
B15: 907 | C15: Retten i Herning | D15: 97.891 | E15: 86.15520309 | F15: 92.37587251 | G15: 83.12330228 | H15: 84.16408568 | I15: 76.37950442 | J15: 102.4180992 | K15: 91.16501775 | L15: 115.8046612 | M15: 103.014722 | N15: 103.8685977 | O15: 68.91834794
B16: 908 | C16: Retten i Horsens | D16: 85.56 | E16: 95.03827517 | F16: 80.77763281 | G16: 88.13780322 | H16: 93.50859024 | I16: 104.4371317 | J16: 73.95887729 | K16: 76.32412132 | L16: 95.85162634 | M16: 129.5617181 | N16: 71.65338642 | O16: 97.65924983
B17: 909 | C17: Retten i Kolding | D17: 102.677 | E17: 98.70276316 | F17: 91.89848591 | G17: 87.26181186 | H17: 94.35915639 | I17: 89.58080032 | J17: 90.50986 | K17: 86.10738009 | L17: 108.8295941 | M17: 113.034696 | N17: 142.5855335 | O17: 140.4927525
B18: 910 | C18: Retten i Esbjerg | D18: 93.322 | E18: 97.70103833 | F18: 83.0112122 | G18: 86.49076802 | H18: 72.19706862 | I18: 84.50076455 | J18: 95.64734291 | K18: 83.0950241 | L18: 119.6041682 | M18: 132.2305733 | N18: 198.9553249 | O18: 177.0971369
B19: 911 | C19: Retten i Sønderborg | D19: 105.955 | E19: 112.0597483 | F19: 115.0801288 | G19: 114.1426785 | H19: 128.1213992 | I19: 121.4065382 | J19: 99.28173204 | K19: 100.5917004 | L19: 67.29056043 | M19: 92.67672714 | N19: 116.5783172 | O19: 109.04056
B20: 912 | C20: Retten i Odense | D20: 91.42 | E20: 94.28575515 | F20: 90.41627688 | G20: 85.21947018 | H20: 95.99051102 | I20: 84.37495687 | J20: 84.27122889 | K20: 83.84793296 | L20: 76.87340945 | M20: 100.4564771 | N20: 81.35662172 | O20: 102.9581562
B21: 913 | C21: Retten i Svendborg | D21: 99.141 | E21: 98.28186213 | F21: 109.2786383 | G21: 95.30276503 | H21: 107.0748935 | I21: 92.02176687 | J21: 114.9218685 | K21: 100.9244344 | L21: 80.10425806 | M21: 93.64471219 | N21: 130.7294484 | O21: 136.8122874
B22: 914 | C22: Retten i Nykøbing F. | D22: 100.393 | E22: 103.5652002 | F22: 100.5980245 | G22: 93.49799541 | H22: 98.37796965 | I22: 87.64554621 | J22: 99.17072516 | K22: 101.7050493 | L22: 92.56216891 | M22: 111.8744978 | N22: 107.3794666 | O22: 126.7009456
B23: 915 | C23: Retten i Næstved | D23: 102.958 | E23: 94.8783524 | F23: 102.1242228 | G23: 88.91778246 | H23: 87.31506769 | I23: 78.14624905 | J23: 122.3512632 | K23: 102.528478 | L23: 107.8263131 | M23: 120.6146181 | N23: 101.2058915 | O23: 76.12698934
B24: 916 | C24: Retten i Holbæk | D24: 100.939 | E24: 100.4599514 | F24: 101.1053168 | G24: 104.7418326 | H24: 107.3182981 | I24: 104.3488722 | J24: 97.85653973 | K24: 104.1306753 | L24: 110.9980483 | M24: 101.3976433 | N24: 84.06154282 | O24: 76.56169311
B25: 917 | C25: Retten i Roskilde | D25: 98.023 | E25: 102.8980378 | F25: 108.0859503 | G25: 108.5812095 | H25: 109.0055995 | I25: 109.3091589 | J25: 105.8422254 | K25: 107.4106829 | L25: 103.2074769 | M25: 96.38114466 | N25: 70.88330727 | O25: 95.75812871
B26: 918 | C26: Retten i Hillerød | D26: 95.622 | E26: 93.58817792 | F26: 93.79748859 | G26: 88.2259087 | H26: 96.50858257 | I26: 100.1039314 | J26: 94.70090766 | K26: 79.5753021 | L26: 138.8344571 | M26: 123.6598789 | N26: 97.84771171 | O26: 104.5732909
B27: 919 | C27: Retten i Helsingør | D27: 89.782 | E27: 87.44537757 | F27: 89.58096296 | G27: 84.72182269 | H27: 90.67925774 | I27: 99.17937923 | J27: 93.92828802 | K27: 73.63546602 | L27: 76.82259406 | M27: 81.8258299 | N27: 120.2837776 | O27: 138.72789
B28: 920 | C28: Retten i Lyngby | D28: 108.405 | E28: 92.42358696 | F28: 99.71725254 | G28: 78.93468727 | H28: 133.4162935 | I28: 91.64999504 | J28: 93.3395142 | K28: 81.87362587 | L28: 113.4986538 | M28: 114.393901 | N28: 125.3097556 | O28: 105.5735547
B29: 921 | C29: Retten i Glostrup | D29: 119.144 | E29: 99.93799485 | F29: 114.690143 | G29: 91.57946414 | H29: 110.4012543 | I29: 91.3197567 | J29: 117.1612426 | K29: 87.70258283 | L29: 129.6310837 | M29: 117.7500658 | N29: 158.8498364 | O29: 156.2494504
B30: 922 | C30: Retten på Frederiksberg | D30: 102.214 | E30: 100.9946625 | F30: 103.0671903 | G30: 94.55239285 | H30: 106.3925221 | I30: 98.86779085 | J30: 95.80409798 | K30: 89.87469788 | L30: 110.7164776 | M30: 112.3931922 | N30: 85.24973446 | O30: 112.0037174
B31: 923 | C31: Københavns Byret | D31: 109.292 | E31: 103.620143 | F31: 118.7254514 | G31: 110.2206368 | H31: 116.0259368 | I31: 120.1372662 | J31: 116.5199203 | K31: 88.2749856 | L31: 84.37790068 | M31: 87.5264973 | N31: 95.77356428 | O31: 101.4865308
B32: 924 | C32: Retten på Bornholm | D32: 68.747 | E32: 65.77437071 | F32: 83.19525561 | G32: 78.3455464 | H32: 79.60805723 | I32: 69.91633622 | J32: 87.35702104 | K32: 88.93204972 | L32: 52.4967042 | M32: 61.30470203 | N32: 94.21718277 | O32: 98.33582053
B34: 1) Der er sket en genberegning af produktiviteten for 2010 på baggrund af de forenklede sagsvægte samt den ændrede vægtning af årsværkene inden for de forskellige personalekategorier.
B35: 2) Indeks 100 svarer til gennemsnittet ved byretterne i 2010.
B36: 3) "Retssager" svarer til den samlede produktivitet for "straffesager" og "civile sager".
B37: 4) Ved beregningen af den samlede produktivitet for juristerne anvendes det samlede årsværksforbrug for gruppen - dvs. også årsværksforbruget til generel ledelse og administration mv. Ved beregning af produktiviteten på de enkelte sagsområder er kun medtaget det direkte årsværksforbrug - dvs. der er ikke foretaget en nøgletalsfordeling af årsværkforbruget til generel ledelse og administration mv.

Sheet Produkt.KON
B2: PRODUKTIVITETSINDEKS KONTORPERSONALE
B4: EID | C4: Ret | D4: Samlet | F4: Retssager | H4: Straffesager | J4: Civile sager | L4: Fogedsager | N4: Skiftesager
D5: 2010 | E5: 2011 | F5: 2010 | G5: 2011 | H5: 2010 | I5: 2011 | J5: 2010 | K5: 2011 | L5: 2010 | M5: 2011 | N5: 2010 | O5: 2011
C6: 5. BEDSTE RET | D6: 105.956 | E6: 110.5324666 | F6: 110.7496361 | G6: 114.3236428 | H6: 119.5091653 | I6: 124.442637 | J6: 112.1817994 | K6: 113.3104758 | L6: 112.686077 | M6: 121.6065407 | N6: 111.9884758 | O6: 122.4727651
C7: SAMLET BYRETTERNE | D7: 100 | E7: 105.3 | F7: 100 | G7: 106.2 | H7: 100 | I7: 111.8 | J7: 100 | K7: 99.2 | L7: 100 | M7: 103.3 | N7: 100 | O7: 106.1
B9: 901 | C9: Retten i Hjørring | D9: 88.757 | E9: 108.757508 | F9: 83.42277647 | G9: 98.21089942 | H9: 80.75942881 | I9: 105.7265798 | J9: 87.76527123 | K9: 91.25650382 | L9: 73.59477778 | M9: 98.21625681 | N9: 108.8378223 | O9: 122.4727651
B10: 902 | C10: Retten i Aalborg | D10: 88.201 | E10: 104.8666979 | F10: 82.13265227 | G10: 103.2990565 | H10: 83.8580387 | I10: 111.4405259 | J10: 81.96699622 | K10: 96.86500202 | L10: 108.5645021 | M10: 110.8637722 | N10: 78.69461756 | O10: 97.73800352
B11: 903 | C11: Retten i Randers | D11: 108.413 | E11: 113.8446003 | F11: 96.85190726 | G11: 106.2315905 | H11: 86.42443549 | I11: 101.2191916 | J11: 112.1817994 | K11: 113.3104758 | L11: 140.1368639 | M11: 122.3425322 | N11: 100.0447688 | O11: 101.6013135
B12: 904 | C12: Retten i Århus | D12: 101.449 | E12: 104.6909906 | F12: 77.69811228 | G12: 85.6160326 | H12: 86.11558882 | I12: 97.45968842 | J12: 70.69625932 | K12: 75.24494605 | L12: 129.071946 | M12: 125.6351171 | N12: 99.59411128 | O12: 122.9076756
B13: 905 | C13: Retten i Viborg | D13: 100.689 | E13: 115.1008543 | F13: 111.8519574 | G13: 121.9191283 | H13: 119.7947556 | I13: 138.4132381 | J13: 106.1022138 | K13: 113.9259555 | L13: 76.89945808 | M13: 93.37966726 | N13: 123.0509402 | O13: 129.562997
B14: 906 | C14: Retten i Holstebro | D14: 97.075 | E14: 108.4681698 | F14: 81.51783613 | G14: 94.33669453 | H14: 79.85526641 | I14: 112.3483962 | J14: 83.74680656 | K14: 77.55287925 | L14: 101.2775736 | M14: 123.4686036 | N14: 100.6083773 | O14: 104.013735
B15: 907 | C15: Retten i Herning | D15: 100.321 | E15: 104.9908503 | F15: 100.8702552 | G15: 107.4508081 | H15: 99.11958365 | I15: 114.6355901 | J15: 103.5640534 | K15: 100.8357187 | L15: 124.4142579 | M15: 121.6065407 | N15: 94.28509974 | O15: 95.94922293
B16: 908 | C16: Retten i Horsens | D16: 103.556 | E16: 114.9767019 | F16: 108.3241608 | G16: 114.8013249 | H16: 147.9557245 | I16: 186.2074167 | J16: 86.49001911 | K16: 80.00223892 | L16: 92.4650136 | M16: 107.0562878 | N16: 109.0930844 | O16: 132.8441696
B17: 909 | C17: Retten i Kolding | D17: 97.532 | E17: 102.2931658 | F17: 84.70288779 | G17: 91.02903568 | H17: 86.81921322 | I17: 98.61974445 | J17: 83.40424325 | K17: 84.35273038 | L17: 106.2680604 | M17: 119.749342 | N17: 111.9884758 | O17: 99.26990503
B18: 910 | C18: Retten i Esbjerg | D18: 95.667 | E18: 106.4985655 | F18: 90.29593578 | G18: 110.6526104 | H18: 99.35528794 | I18: 125.60537 | J18: 77.97805933 | K18: 90.08132119 | L18: 89.09385261 | M18: 91.70824579 | N18: 94.75830999 | O18: 97.165804
B19: 911 | C19: Retten i Sønderborg | D19: 102.391 | E19: 110.5324666 | F19: 103.9657564 | G19: 100.2341696 | H19: 116.4016411 | I19: 120.8695431 | J19: 89.61444384 | K19: 78.01855776 | L19: 104.4050937 | M19: 126.714447 | N19: 89.85201679 | O19: 114.6149775
B20: 912 | C20: Retten i Odense | D20: 98.088 | E20: 104.6120802 | F20: 94.19372118 | G20: 100.4885527 | H20: 98.46616936 | I20: 101.086935 | J20: 88.89066943 | K20: 97.80781494 | L20: 89.84677892 | M20: 94.90907607 | N20: 88.39036702 | O20: 96.81996375
B21: 913 | C21: Retten i Svendborg | D21: 90.83 | E21: 98.33607086 | F21: 95.98796351 | G21: 89.95818309 | H21: 91.74099153 | I21: 90.71797287 | J21: 102.9110525 | K21: 90.68754272 | L21: 81.94495565 | M21: 90.39456576 | N21: 91.60998392 | O21: 112.1942677
B22: 914 | C22: Retten i Nykøbing F. | D22: 107.436 | E22: 102.5046457 | F22: 109.8142012 | G22: 100.8368048 | H22: 103.3692726 | I22: 98.71638034 | J22: 118.258907 | K22: 104.4384438 | L22: 104.7964267 | M22: 99.94655178 | N22: 109.5037256 | O22: 107.1894862
B23: 915 | C23: Retten i Næstved | D23: 104.742 | E23: 115.1545134 | F23: 112.7592968 | G23: 120.2475652 | H23: 110.5949642 | I23: 122.2271712 | J23: 117.7773704 | K23: 119.3971448 | L23: 96.94318553 | M23: 108.8541297 | N23: 101.7270025 | O23: 114.0641831
B24: 916 | C24: Retten i Holbæk | D24: 103.119 | E24: 104.7877874 | F24: 102.5319139 | G24: 100.549137 | H24: 96.06888903 | I24: 98.84245114 | J24: 111.9324517 | K24: 102.4849237 | L24: 105.1077907 | M24: 109.3980533 | N24: 106.6680128 | O24: 101.8845351
B25: 917 | C25: Retten i Roskilde | D25: 104.929 | E25: 101.7618356 | F25: 110.7496361 | G25: 105.3110103 | H25: 116.6158171 | I25: 101.5164243 | J25: 104.5624162 | K25: 110.064692 | L25: 93.38771844 | M25: 93.7879589 | N25: 107.5602336 | O25: 103.4580225
B26: 918 | C26: Retten i Hillerød | D26: 99.388 | E26: 102.1427099 | F26: 101.2861278 | G26: 114.3236428 | H26: 97.70953142 | I26: 114.4718203 | J26: 107.0959007 | K26: 114.0860122 | L26: 112.686077 | M26: 103.5286085 | N26: 91.51546461 | O26: 92.75876742
B27: 919 | C27: Retten i Helsingør | D27: 106.691 | E27: 109.3635401 | F27: 94.15739964 | G27: 109.4364689 | H27: 92.52660414 | I27: 117.7991373 | J27: 99.4647502 | K27: 101.5720628 | L27: 100.5513641 | M27: 91.18985655 | N27: 116.6425168 | O27: 113.5409101
B28: 920 | C28: Retten i Lyngby | D28: 103.745 | E28: 102.1100936 | F28: 110.0919374 | G28: 104.8330963 | H28: 124.8553795 | I28: 110.6525827 | J28: 106.0298886 | K28: 108.339939 | L28: 112.9374594 | M28: 107.8972673 | N28: 124.8053781 | O28: 109.2796679
B29: 921 | C29: Retten i Glostrup | D29: 105.956 | E29: 103.2274652 | F29: 107.1551801 | G29: 100.7952846 | H29: 90.64954254 | I29: 98.49677524 | J29: 135.8367394 | K29: 100.9861007 | L29: 106.1843825 | M29: 108.0383803 | N29: 136.3552008 | O29: 130.2747375
B30: 922 | C30: Retten på Frederiksberg | D30: 111.631 | E30: 105.6210816 | F30: 111.2960615 | G30: 112.3268732 | H30: 119.5091653 | I30: 119.0951403 | J30: 99.49589019 | K30: 104.1690706 | L30: 108.6040734 | M30: 95.68029065 | N30: 105.6154684 | O30: 101.1975625
B31: 923 | C31: Københavns Byret | D31: 92.95 | E31: 101.1505428 | F31: 112.2469926 | G31: 126.8321725 | H31: 103.7920939 | I31: 124.442637 | J31: 121.5523456 | K31: 120.9654552 | L31: 87.5903422 | M31: 93.0897455 | N31: 72.9330095 | O31: 79.14171392
B32: 924 | C32: Retten på Bornholm | D32: 72.631 | E32: 73.07210829 | F32: 107.553947 | G32: 104.0607743 | H32: 126.8920461 | I32: 125.4509614 | J32: 92.98254826 | K32: 88.30009831 | L32: 64.74600878 | M32: 59.89850388 | N32: 73.05520183 | O32: 91.05848239
B34: 1) Der er sket en genberegning af produktiviteten for 2010 på baggrund af de forenklede sagsvægte samt den ændrede vægtning af årsværkene inden for de forskellige personalekategorier.
B35: 2) Indeks 100 svarer til gennemsnittet ved byretterne i 2010.
B36: 3) "Retssager" svarer til den samlede produktivitet for "straffesager" og "civile sager".
B37: 4) Ved beregningen af den samlede produktivitet for juristerne anvendes det samlede årsværksforbrug for gruppen - dvs. også årsværksforbruget til generel ledelse og administration mv. Ved beregning af produktiviteten på de enkelte sagsområder er kun medtaget det direkte årsværksforbrug - dvs. der er ikke foretaget en nøgletalsfordeling af årsværkforbruget til generel ledelse og administration mv.

Sheet Generel ledelse_Adm.
B3: ÅRSVÆRKSFORBRUG ANVENDT TIL GENEREL LEDELSE OG ADMINISTRATION MV.
B5: EID | C5: Ret | E5: Årsværk til generel ledelse og administration | H5: %-del til generel ledelse og administration
E6: 2009 | F6: 2010 | G6: 2011 | H6: 2009 | I6: 2010 | J6: 2011
C8: SAMLET BYRETTERNE | D8: Jurister | E8: =E15+E21+E27+E33+E39+E45+E51+E57+E63+E69+E75+E81+E87+E93+E99+E105+E111+E117+E123+E129+E135+E141+E147+E153 -> 48.51151866 | F8: =F15+F21+F27+F33+F39+F45+F51+F57+F63+F69+F75+F81+F87+F93+F99+F105+F111+F117+F123+F129+F135+F141+F147+F153 -> 45.47653176 | G8: =G15+G21+G27+G33+G39+G45+G51+G57+G63+G69+G75+G81+G87+G93+G99+G105+G111+G117+G123+G129+G135+G141+G147+G153 -> 40.56893356 | H8: 0.1107445136 | I8: 0.1007102714 | J8: 0.08819879641
D9: Kontor | E9: =E16+E22+E28+E34+E40+E46+E52+E58+E64+E70+E76+E82+E88+E94+E100+E106+E112+E118+E124+E130+E136+E142+E148+E154 -> 190.4655122 | F9: =F16+F22+F28+F34+F40+F46+F52+F58+F64+F70+F76+F82+F88+F94+F100+F106+F112+F118+F124+F130+F136+F142+F148+F154 -> 186.5622028 | G9: 174.4931743 | H9: 0.1994335779 | I9: 0.1801328228 | J9: 0.1798581356
D10: Elev | E10: =E17+E23+E29+E35+E41+E47+E53+E59+E65+E71+E77+E83+E89+E95+E101+E107+E113+E119+E125+E131+E137+E143+E149+E155 -> 17.20521841 | F10: 15.51275017 | G10: 15.56682294 | H10: 0.1608770992 | I10: 0.1582438291 | J10: 0.1601928278
D11: Fleks | E11: 27.69679686 | F11: 30.78959122 | G11: 28.34235436 | H11: 0.4894662935 | I11: 0.4499643155 | J11: 0.4305938459
D12: Øvrige | E12: 97.25699832 | F12: 91.24953143 | G12: 40.22732685 | H12: 0.8651976096 | I12: 0.8654574427 | J12: 0.8455782755
C13: Samlet byretterne | D13: Samlet | E13: 381.1360444 | F13: 369.5906074 | G13: 299.198612 | H13: 0.2283587062 | I13: 0.2100969757 | J13: 0.2023073891
B15: 901 | C15: Retten i Hjørring | D15: Jurister | E15: 2.330966017 | F15: 2.030382518 | G15: 1.059359706 | H15: 0.151291832 | I15: 0.1482830898 | J15: 0.07936449842
B16: 901 | C16: Retten i Hjørring | D16: Kontor | E16: 5.800564067 | F16: 5.707493588 | G16: 4.709397216 | H16: 0.1548446278 | I16: 0.1605353826 | J16: 0.1424079647
B17: 901 | C17: Retten i Hjørring | D17: Elev | E17: 0.7663172857 | F17: 0.696208074 | G17: 1.087924919 | H17: 0.1561088206 | I17: 0.177058021 | J17: 0.2555992356
B18: 901 | C18: Retten i Hjørring | D18: Fleks | E18: 0.303083353 | F18: 0.215673232 | G18: 0.3078901584 | H18: 0.07171532139 | I18: 0.07232599766 | J18: 0.05237518749
B19: 901 | C19: Retten i Hjørring | D19: Øvrige | E19: 4.265735802 | F19: 2.996792485 | G19: 2.894157176 | H19: 0.8460202854 | I19: 0.8961539222 | J19: 0.8925559131
B20: 901 | C20: Retten i Hjørring | D20: Samlet | E20: =SUM(E15:E19) -> 13.46666652 | F20: =SUM(F15:F19) -> 11.6465499 | G20: 10.05872917 | H20: 0.2008606688 | I20: 0.1957285249 | J20: 0.1682195073
B21: 902 | C21: Retten i Aalborg | D21: Jurister | E21: 2.508628288 | F21: 1.704260994 | G21: 1.269618719 | H21: 0.1100830796 | I21: 0.07525434163 | J21: 0.05722297428
B22: 902 | C22: Retten i Aalborg | D22: Kontor | E22: 11.57953118 | F22: 9.482692252 | G22: 8.50462573 | H22: 0.2370858422 | I22: 0.1762962321 | J22: 0.1744824942
B23: 902 | C23: Retten i Aalborg | D23: Elev | E23: 0.7813457423 | F23: 0.1807359348 | G23: 0.1956404732 | H23: 0.1587026956 | I23: 0.04100933583 | J23: 0.05615623855
B24: 902 | C24: Retten i Aalborg | D24: Fleks | E24: 0.4058858228 | F24: 0.9838443741 | G24: 0.9444791846 | H24: 0.2141648316 | I24: 0.4238936195 | J24: 0.3649991825
B25: 902 | C25: Retten i Aalborg | D25: Øvrige | E25: 2.95880172 | F25: 1.475458585 | G25: 2.690148644 | H25: 0.691188532 | I25: 0.434593681 | J25: 0.3584930046
B26: 902 | C26: Retten i Aalborg | D26: Samlet | E26: =SUM(E21:E25) -> 18.23419275 | F26: =SUM(F21:F25) -> 13.82699214 | G26: 13.60451275 | H26: 0.2204090662 | I26: 0.1597420112 | J26: 0.1511888232
B27: 903 | C27: Retten i Randers | D27: Jurister | E27: 2.903858376 | F27: 2.02186942 | G27: 2.615017133 | H27: 0.190815967 | I27: 0.1471092419 | J27: 0.1571335857
B28: 903 | C28: Retten i Randers | D28: Kontor | E28: 5.403930588 | F28: 6.019349083 | G28: 4.634087678 | H28: 0.1645609292 | I28: 0.1791739569 | J28: 0.1466390633
B29: 903 | C29: Retten i Randers | D29: Elev | E29: 0.28354666 | F29: 0.5308204012 | G29: 0.899566708 | H29: 0.08989922798 | I29: 0.1359895888 | J29: 0.226128032
B30: 903 | C30: Retten i Randers | D30: Fleks | E30: 1.82188357 | F30: 2.27905 | G30: 2.01327 | H30: 0.8159818921 | I30: 1 | J30: 1
B31: 903 | C31: Retten i Randers | D31: Øvrige | E31: 4.456520129 | F31: 4.414943915 | G31: 0.1084954903 | H31: 0.8772677419 | I31: 0.9052117311 | J31: 0.9325437653
B32: 903 | C32: Retten i Randers | D32: Samlet | E32: =SUM(E27:E31) -> 14.86973932 | F32: =SUM(F27:F31) -> 15.26603282 | G32: 10.27043701 | H32: 0.2540819939 | I32: 0.2614105354 | J32: 0.2377740383
B33: 904 | C33: Retten i Århus | D33: Jurister | E33: 2.461400047 | F33: 2.091587024 | G33: 2.283327639 | H33: 0.1045683744 | I33: 0.08137809119 | J33: 0.08594031634
B34: 904 | C34: Retten i Århus | D34: Kontor | E34: 5.710059525 | F34: 6.082888854 | G34: 8.016149736 | H34: 0.1151782156 | I34: 0.1124972186 | J34: 0.1583729486
B35: 904 | C35: Retten i Århus | D35: Elev | E35: 0.4266969565 | F35: 0.7522483383 | G35: 0.7127019773 | H35: 0.08259956377 | I35: 0.188471539 | J35: 0.169832474
B36: 904 | C36: Retten i Århus | D36: Fleks | E36: 1.408767416 | F36: 0.730927294 | G36: 0.831959407 | H36: 0.6861917848 | I36: 0.2436375586 | J36: 0.277311483
B37: 904 | C37: Retten i Århus | D37: Øvrige | E37: 4.301343277 | F37: 4.313237968 | G37: 0.01379649474 | H37: 0.6444925753 | I37: 0.6457378069 | J37: 0.7352082984
B38: 904 | C38: Retten i Århus | D38: Samlet | E38: =SUM(E33:E37) -> 14.30826722 | F38: =SUM(F33:F37) -> 13.97088948 | G38: 11.85793525 | H38: 0.1644488494 | I38: 0.1495100724 | J38: 0.1775157495
B39: 905 | C39: Retten i Viborg | D39: Jurister | E39: 1.451978009 | F39: 1.521874722 | G39: 1.242217873 | H39: 0.09998854783 | I39: 0.09476399658 | J39: 0.08188593831
B40: 905 | C40: Retten i Viborg | D40: Kontor | E40: 6.918569627 | F40: 6.790086112 | G40: 5.279208039 | H40: 0.2058968223 | I40: 0.1954839494 | J40: 0.1749100317
B41: 905 | C41: Retten i Viborg | D41: Elev | E41: 0.8889402937 | F41: 0.3797980117 | G41: 0.5572972906 | H41: 0.1741907869 | I41: 0.09799999787 | J41: 0.1313534659
B42: 905 | C42: Retten i Viborg | D42: Fleks | E42: 0.263044007 | F42: 0.3913845621 | G42: 0.5884963509 | H42: 0.3881616881 | I42: 0.2232592123 | J42: 0.2344971334
B43: 905 | C43: Retten i Viborg | D43: Øvrige | E43: 3.143674512 | F43: 3.079800969 | G43: 0.001271574018 | H43: 0.9703058484 | I43: 0.8609024319 | J43: 0.8956256544
B44: 905 | C44: Retten i Viborg | D44: Samlet | E44: =SUM(E39:E43) -> 12.66620645 | F44: =SUM(F39:F43) -> 12.16294438 | G44: 7.668491127 | H44: 0.2216527626 | I44: 0.2027146247 | J44: 0.189074221
B45: 906 | C45: Retten i Holstebro | D45: Jurister | E45: 1.500334203 | F45: 1.299837119 | G45: 1.895121643 | H45: 0.1405006283 | I45: 0.1174728531 | J45: 0.1681563126
B46: 906 | C46: Retten i Holstebro | D46: Kontor | E46: 4.151058853 | F46: 3.357476904 | G46: 3.361257142 | H46: 0.1763955095 | I46: 0.1349576696 | J46: 0.1457866561
B47: 906 | C47: Retten i Holstebro | D47: Elev | E47: 0.1618034555 | F47: 0.1772812127 | G47: 0.3681536819 | H47: 0.07346662766 | I47: 0.06725540518 | J47: 0.1273531231
B48: 906 | C48: Retten i Holstebro | D48: Fleks | E48: 2.309106567 | F48: 4.618006419 | G48: 4.485837861 | H48: 0.8298843544 | I48: 0.7692497775 | J48: 0.8155846406
B49: 906 | C49: Retten i Holstebro | D49: Øvrige | E49: 3.105771849 | F49: 3.25422113 | G49: 4.472791496 | H49: 0.8657541615 | I49: 0.8988543094 | J49: 0.860881251
B50: 906 | C50: Retten i Holstebro | D50: Samlet | E50: =SUM(E45:E49) -> 11.22807493 | F50: =SUM(F45:F49) -> 12.70682278 | G50: 14.58316182 | H50: 0.2624401244 | I50: 0.2636127543 | J50: 0.2867368008
B51: 907 | C51: Retten i Herning | D51: Jurister | E51: 0.9816028312 | F51: 1.06672063 | G51: 0.8945324398 | H51: 0.09417124 | I51: 0.09516448762 | J51: 0.07549606074
B52: 907 | C52: Retten i Herning | D52: Kontor | E52: 5.190336982 | F52: 5.683291555 | G52: 4.600633586 | H52: 0.2136099925 | I52: 0.2117227024 | J52: 0.1951814465
B53: 907 | C53: Retten i Herning | D53: Elev | E53: 0.707134838 | F53: 0.9792577501 | G53: 0.730855666 | H53: 0.1284817493 | I53: 0.250593756 | J53: 0.2077256417
B54: 907 | C54: Retten i Herning | D54: Fleks | E54: 0 | F54: 0 | G54: 0.1858774786 | H54: 0 | I54: 0 | J54: 0.2058603419
B55: 907 | C55: Retten i Herning | D55: Øvrige | E55: 3.17037 | F55: 3.19179 | G55: 0.1735182938 | H55: 1 | I55: 1 | J55: 1
B56: 907 | C56: Retten i Herning | D56: Samlet | E56: =SUM(E51:E55) -> 10.04944465 | F56: =SUM(F51:F55) -> 10.92105993 | G56: 6.585417464 | H56: 0.229668876 | I56: 0.2418739767 | J56: 0.2139144778
B57: 908 | C57: Retten i Horsens | D57: Jurister | E57: 1.355719405 | F57: 0.8845794819 | G57: 1.133333287 | H57: 0.09342544103 | I57: 0.06363405054 | J57: 0.07876370309
B58: 908 | C58: Retten i Horsens | D58: Kontor | E58: 6.610896334 | F58: 4.984127662 | G58: 4.86193959 | H58: 0.2318965033 | I58: 0.1797887054 | J58: 0.184030329
B59: 908 | C59: Retten i Horsens | D59: Elev | E59: 0.4118730322 | F59: 0.6647997324 | G59: 0.5717603323 | H59: 0.1073153339 | I59: 0.1584667554 | J59: 0.1193143503
B60: 908 | C60: Retten i Horsens | D60: Fleks | E60: 1.22962586 | F60: 2.253995602 | G60: 2.025641718 | H60: 0.4360215563 | I60: 0.5439572368 | J60: 0.4293296563
B61: 908 | C61: Retten i Horsens | D61: Øvrige | E61: 3.132914719 | F61: 3.08797 | G61: 7.0510466 | H61: 0.9997621692 | I61: 1 | J61: 0.9924338084
B62: 908 | C62: Retten i Horsens | D62: Samlet | E62: =SUM(E57:E61) -> 12.74102935 | F62: =SUM(F57:F61) -> 11.87547248 | G62: 15.64372153 | H62: 0.2412573947 | I62: 0.2238541241 | J62: 0.2183342823
B63: 909 | C63: Retten i Kolding | D63: Jurister | E63: 1.368375761 | F63: 1.415320897 | G63: 1.384406124 | H63: 0.06690135213 | I63: 0.07139154185 | J63: 0.06736926821
B64: 909 | C64: Retten i Kolding | D64: Kontor | E64: 7.728446254 | F64: 8.03371899 | G64: 7.034552531 | H64: 0.171836203 | I64: 0.1635889126 | J64: 0.1560960444
B65: 909 | C65: Retten i Kolding | D65: Elev | E65: 0.959388645 | F65: 0.6218857731 | G65: 0.6075599823 | H65: 0.1684497509 | I65: 0.1453350502 | J65: 0.1280645471
B66: 909 | C66: Retten i Kolding | D66: Fleks | E66: 1.737974227 | F66: 2.267910598 | G66: 2.000111815 | H66: 0.5834868776 | I66: 0.699355075 | J66: 0.6660467722
B67: 909 | C67: Retten i Kolding | D67: Øvrige | E67: 3.96421 | F67: 3.61937 | G67: 0.2312486737 | H67: 1 | I67: 1 | J67: 0.9410754978
B68: 909 | C68: Retten i Kolding | D68: Samlet | E68: =SUM(E63:E67) -> 15.75839489 | F68: =SUM(F63:F67) -> 15.95820626 | G68: 11.25787913 | H68: 0.2018560166 | I68: 0.1992903201 | J68: 0.1845932938
B69: 910 | C69: Retten i Esbjerg | D69: Jurister | E69: 1.860309869 | F69: 1.464373155 | G69: 1.160367795 | H69: 0.1257281331 | I69: 0.09494797705 | J69: 0.0766212672
B70: 910 | C70: Retten i Esbjerg | D70: Kontor | E70: 5.717593761 | F70: 4.939520592 | G70: 4.493902269 | H70: 0.1749963322 | I70: 0.1380596982 | J70: 0.1402960351
B71: 910 | C71: Retten i Esbjerg | D71: Elev | E71: 0.1487304969 | F71: 0.3849404935 | G71: 0.4456365248 | H71: 0.04724829414 | I71: 0.08787773141 | J71: 0.1190828287
B72: 910 | C72: Retten i Esbjerg | D72: Fleks | E72: 1.699439294 | F72: 2.013571611 | G72: 1.998862103 | H72: 0.4652238039 | I72: 0.6229936701 | J72: 0.710355452
B73: 910 | C73: Retten i Esbjerg | D73: Øvrige | E73: 3.609333089 | F73: 3.27064 | G73: 8.042404461 | H73: 0.9697093791 | I73: 1 | J73: 0.9976606252
B74: 910 | C74: Retten i Esbjerg | D74: Samlet | E74: =SUM(E69:E73) -> 13.03540651 | F74: =SUM(F69:F73) -> 12.07304585 | G74: 16.14117315 | H74: 0.2247801097 | I74: 0.1944624848 | J74: 0.1883800621
B75: 911 | C75: Retten i Sønderborg | D75: Jurister | E75: 0.9451449301 | F75: 1.379558633 | G75: 1.169355292 | H75: 0.0614037381 | I75: 0.09114420147 | J75: 0.07587796324
B76: 911 | C76: Retten i Sønderborg | D76: Kontor | E76: 7.907734459 | F76: 6.109533338 | G76: 6.329214842 | H76: 0.2291277563 | I76: 0.1617134288 | J76: 0.1715001989
B77: 911 | C77: Retten i Sønderborg | D77: Elev | E77: 0.9355629955 | F77: 0.9496279023 | G77: 0.5262988888 | H77: 0.2013439954 | I77: 0.2378708237 | J77: 0.131064227
B78: 911 | C78: Retten i Sønderborg | D78: Fleks | E78: 0.1692123957 | F78: 1 | G78: 1.00003 | H78: 0.378732317 | I78: 1 | J78: 1
B79: 911 | C79: Retten i Sønderborg | D79: Øvrige | E79: 4.424803918 | F79: 4.014350331 | G79: 0.1928960699 | H79: 0.9907290338 | I79: 0.8567676026 | J79: 0.9267221314
B80: 911 | C80: Retten i Sønderborg | D80: Samlet | E80: =SUM(E75:E79) -> 14.3824587 | F80: =SUM(F75:F79) -> 13.45307021 | G80: 9.217795092 | H80: 0.2418674138 | I80: 0.2149270422 | J80: 0.2219987197
B81: 912 | C81: Retten i Odense | D81: Jurister | E81: 1.736266904 | F81: 1.474916306 | G81: 1.451886822 | H81: 0.07098805345 | I81: 0.05850137956 | J81: 0.05984334091
B82: 912 | C82: Retten i Odense | D82: Kontor | E82: 6.60662897 | F82: 6.833176288 | G82: 6.292629396 | H82: 0.1296561316 | I82: 0.1235395489 | J82: 0.1203743051
B83: 912 | C83: Retten i Odense | D83: Elev | E83: 0.4153606912 | F83: 0.1419976585 | G83: 0.06539374453 | H83: 0.08116270446 | I83: 0.0342230654 | J83: 0.01677468077
B84: 912 | C84: Retten i Odense | D84: Fleks | E84: 2.67342813 | F84: 3.507483403 | G84: 2.676975449 | H84: 0.7851657426 | I84: 0.5930914291 | J84: 0.6646973325
B85: 912 | C85: Retten i Odense | D85: Øvrige | E85: 5.464146632 | F85: 5.04672304 | G85: 10.73687131 | H85: 0.9717594259 | I85: 0.9757325723 | J85: 0.9851594774
B86: 912 | C86: Retten i Odense | D86: Samlet | E86: =SUM(E81:E85) -> 16.89583133 | F86: =SUM(F81:F85) -> 17.00429669 | G86: 21.22375673 | H86: 0.1886557073 | I86: 0.1775745797 | J86: 0.1697729389
B87: 913 | C87: Retten i Svendborg | D87: Jurister | E87: 1.9134767 | F87: 2.013976402 | G87: 1.75106872 | H87: 0.1828844216 | I87: 0.1837207633 | J87: 0.1439572568
B88: 913 | C88: Retten i Svendborg | D88: Kontor | E88: 5.465566715 | F88: 5.306364643 | G88: 4.38673617 | H88: 0.2182939037 | I88: 0.1840829698 | J88: 0.163296235
B89: 913 | C89: Retten i Svendborg | D89: Elev | E89: 1.014709048 | F89: 0.7869755634 | G89: 1.18591699 | H89: 0.2794895162 | I89: 0.2310502288 | J89: 0.2796215624
B90: 913 | C90: Retten i Svendborg | D90: Fleks | E90: 0.4288171019 | F90: 0.4373747087 | G90: 0.4517778202 | H90: 0.4573254127 | I90: 0.4914874802 | J90: 0.4517642672
B91: 913 | C91: Retten i Svendborg | D91: Øvrige | E91: 3.592315885 | F91: 4.2062 | G91: 0.2097052494 | H91: 1 | I91: 1 | J91: 1
B92: 913 | C92: Retten i Svendborg | D92: Samlet | E92: =SUM(E87:E91) -> 12.41488545 | F92: =SUM(F87:F91) -> 12.75089132 | G92: 7.985204949 | H92: 0.2843474144 | I92: 0.2640467464 | J92: 0.2173778897
B93: 914 | C93: Retten i Nykøbing F. | D93: Jurister | E93: 1.762082262 | F93: 1.550241642 | G93: 1.510109577 | H93: 0.1305316201 | I93: 0.09738659161 | J93: 0.0998806531
B94: 914 | C94: Retten i Nykøbing F. | D94: Kontor | E94: 7.067366781 | F94: 6.2540025 | G94: 6.190823562 | H94: 0.2195157717 | I94: 0.1784829271 | J94: 0.1716655236
B95: 914 | C95: Retten i Nykøbing F. | D95: Elev | E95: 0.8474563767 | F95: 0.2844609067 | G95: 0.3530877466 | H95: 0.2313217207 | I95: 0.1043851099 | J95: 0.1653256981
B96: 914 | C96: Retten i Nykøbing F. | D96: Fleks | E96: 0.685418957 | F96: 0 | G96: 0 | H96: 0.5345439321 | I96: - | J96: -
B97: 914 | C97: Retten i Nykøbing F. | D97: Øvrige | E97: 3.895069547 | F97: 3.77977586 | G97: 0.2098611831 | H97: 0.9502241509 | I97: 0.9869510698 | J97: 0.9871204309
B98: 914 | C98: Retten i Nykøbing F. | D98: Samlet | E98: =SUM(E93:E97) -> 14.25739392 | F98: =SUM(F93:F97) -> 11.86848091 | G98: 8.263882069 | H98: 0.2604593119 | I98: 0.2063614568 | J98: 0.2106800886
B99: 915 | C99: Retten i Næstved | D99: Jurister | E99: 2.412331365 | F99: 2.200946313 | G99: 1.740462059 | H99: 0.1414457311 | I99: 0.1204514282 | J99: 0.08720898892
B100: 915 | C100: Retten i Næstved | D100: Kontor | E100: 9.151528616 | F100: 7.487158534 | G100: 6.809407446 | H100: 0.2113981128 | I100: 0.1701821489 | J100: 0.169250571
B101: 915 | C101: Retten i Næstved | D101: Elev | E101: 1.10964997 | F101: 1.253359212 | G101: 1.013940233 | H101: 0.2813578328 | I101: 0.3170532897 | J101: 0.236464354
B102: 915 | C102: Retten i Næstved | D102: Fleks | E102: 1.577523276 | F102: 1.205269206 | G102: 1.255311454 | H102: 0.8583338918 | I102: 0.4268812068 | J102: 0.4127806802
B103: 915 | C103: Retten i Næstved | D103: Øvrige | E103: 5.063146786 | F103: 4.624338615 | G103: 0.01116538035 | H103: 0.9991508128 | I103: 0.9987858675 | J103: 0.9659616703
B104: 915 | C104: Retten i Næstved | D104: Samlet | E104: =SUM(E99:E103) -> 19.31418001 | F104: =SUM(F99:F103) -> 16.77107188 | G104: 10.83028657 | H104: 0.2712872909 | I104: 0.2276389792 | J104: 0.2099155949
B105: 916 | C105: Retten i Holbæk | D105: Jurister | E105: 2.274845884 | F105: 1.405182699 | G105: 1.326085181 | H105: 0.1655814226 | I105: 0.1073997356 | J105: 0.1022663877
B106: 916 | C106: Retten i Holbæk | D106: Kontor | E106: 6.678849814 | F106: 5.744352577 | G106: 5.197457327 | H106: 0.2196999243 | I106: 0.1840937441 | J106: 0.1664351657
B107: 916 | C107: Retten i Holbæk | D107: Elev | E107: 0.7821646894 | F107: 0.5104103223 | G107: 0.9364592136 | H107: 0.2866647203 | I107: 0.1924442727 | J107: 0.3059374422
B108: 916 | C108: Retten i Holbæk | D108: Fleks | E108: 0.9038893302 | F108: 0.9977927964 | G108: 1.00003 | H108: 0.3189839966 | I108: 0.3325876212 | J108: 0.3333333333
B109: 916 | C109: Retten i Holbæk | D109: Øvrige | E109: 2.829730411 | F109: 2.675691127 | G109: 0.6060439219 | H109: 0.9967138457 | I109: 0.995702329 | J109: 0.9938255316
B110: 916 | C110: Retten i Holbæk | D110: Samlet | E110: =SUM(E105:E109) -> 13.46948013 | F110: =SUM(F105:F109) -> 11.33342952 | G110: 9.066075644 | H110: 0.2563680666 | I110: 0.215355288 | J110: 0.2088241287
B111: 917 | C111: Retten i Roskilde | D111: Jurister | E111: 2.263581273 | F111: 2.811727264 | G111: 2.574764026 | H111: 0.1098158993 | I111: 0.1230715037 | J111: 0.1226603795
B112: 917 | C112: Retten i Roskilde | D112: Kontor | E112: 8.829210377 | F112: 8.879431355 | G112: 8.712038866 | H112: 0.1864027896 | I112: 0.1721934616 | J112: 0.1737132449
B113: 917 | C113: Retten i Roskilde | D113: Elev | E113: 1.975438973 | F113: 0.9938220484 | G113: 0.8517664878 | H113: 0.3405929263 | I113: 0.1500477926 | J113: 0.1496209245
B114: 917 | C114: Retten i Roskilde | D114: Fleks | E114: 0 | F114: 0 | G114: 0 | H114: - | I114: - | J114: -
B115: 917 | C115: Retten i Roskilde | D115: Øvrige | E115: 3.873934784 | F115: 4.044313913 | G115: 0.1390242064 | H115: 0.7271618517 | I115: 0.9708815547 | J115: 0.9586353339
B116: 917 | C116: Retten i Roskilde | D116: Samlet | E116: =SUM(E111:E115) -> 16.94216541 | F116: =SUM(F111:F115) -> 16.72929458 | G116: 12.27759359 | H116: 0.2141696595 | I116: 0.1963489132 | J116: 0.1985138754
B117: 918 | C117: Retten i Hillerød | D117: Jurister | E117: 2.385702684 | F117: 2.230793815 | G117: 1.475710343 | H117: 0.1503224676 | I117: 0.1450785984 | J117: 0.09511942494
B118: 918 | C118: Retten i Hillerød | D118: Kontor | E118: 8.128314038 | F118: 7.140421326 | G118: 6.581705283 | H118: 0.2636662098 | I118: 0.2063777162 | J118: 0.2069016608
B119: 918 | C119: Retten i Hillerød | D119: Elev | E119: 0.3645291426 | F119: 0.4821314428 | G119: 0.3215368343 | H119: 0.06879686685 | I119: 0.1334328113 | J119: 0.0735501157
B120: 918 | C120: Retten i Hillerød | D120: Fleks | E120: 4.201030706 | F120: 3.585629739 | G120: 3.027722189 | H120: 0.8132297251 | I120: 0.6261621238 | J120: 0.7495252378
B121: 918 | C121: Retten i Hillerød | D121: Øvrige | E121: 2.820874179 | F121: 2.440846831 | G121: 1.07516895 | H121: 0.6131522078 | I121: 0.5855821236 | J121: 0.6221953335
B122: 918 | C122: Retten i Hillerød | D122: Samlet | E122: =SUM(E117:E121) -> 17.90045075 | F122: =SUM(F117:F121) -> 15.87982315 | G122: 12.4818436 | H122: 0.2563680666 | I122: 0.2501423709 | J122: 0.2339276241
B123: 919 | C123: Retten i Helsingør | D123: Jurister | E123: 2.138506454 | F123: 2.241062996 | G123: 1.9197985 | H123: 0.1291609476 | I123: 0.1337149759 | J123: 0.1151645316
B124: 919 | C124: Retten i Helsingør | D124: Kontor | E124: 4.595502721 | F124: 4.627202726 | G124: 4.414836968 | H124: 0.1509554643 | I124: 0.1391123633 | J124: 0.1440363634
B125: 919 | C125: Retten i Helsingør | D125: Elev | E125: 0.4541042359 | F125: 0.1381241038 | G125: 0.04252724309 | H125: 0.1619984146 | I125: 0.03864367955 | J125: 0.0104205089
B126: 919 | C126: Retten i Helsingør | D126: Fleks | E126: 1.275758046 | F126: 1.224950272 | G126: 1.384127866 | H126: 0.2562648236 | I126: 0.2469403896 | J126: 0.2802740653
B127: 919 | C127: Retten i Helsingør | D127: Øvrige | E127: 2.946585408 | F127: 3.69192 | G127: 0.176601449 | H127: 0.7600717638 | I127: 1 | J127: 1
B128: 919 | C128: Retten i Helsingør | D128: Samlet | E128: =SUM(E123:E127) -> 11.41045686 | F128: =SUM(F123:F127) -> 11.9232601 | G128: 7.937892026 | H128: 0.1945257452 | I128: 0.1915411764 | J128: 0.1834704084
B129: 920 | C129: Retten i Lyngby | D129: Jurister | E129: 1.724538122 | F129: 1.512934576 | G129: 1.14794877 | H129: 0.1134827627 | I129: 0.09022932095 | J129: 0.06051540392
B130: 920 | C130: Retten i Lyngby | D130: Kontor | E130: 10.44133896 | F130: 9.719649656 | G130: 8.744508645 | H130: 0.2948168266 | I130: 0.2512332626 | J130: 0.2347770579
B131: 920 | C131: Retten i Lyngby | D131: Elev | E131: 1.027060509 | F131: 1.514878121 | G131: 0.8075269174 | H131: 0.3553449132 | I131: 0.3622134627 | J131: 0.3153515095
B132: 920 | C132: Retten i Lyngby | D132: Fleks | E132: 2.69395162 | F132: 1.315336667 | G132: 0.440606 | H132: 0.525595057 | I132: 0.3333333333 | J132: 0.2
B133: 920 | C133: Retten i Lyngby | D133: Øvrige | E133: 2.798611043 | F133: 3.259376408 | G133: 0.2561945414 | H133: 0.8178583363 | I133: 0.8069321325 | J133: 0.7377416379
B134: 920 | C134: Retten i Lyngby | D134: Samlet | E134: =SUM(E129:E133) -> 18.68550025 | F134: =SUM(F129:F133) -> 17.32217543 | G134: 11.39678487 | H134: 0.3011334614 | I134: 0.2561583473 | J134: 0.2148466403
B135: 921 | C135: Retten i Glostrup | D135: Jurister | E135: 2.762922601 | F135: 2.842068008 | G135: 2.391526252 | H135: 0.09390137037 | I135: 0.09008433581 | J135: 0.06713870291
B136: 921 | C136: Retten i Glostrup | D136: Kontor | E136: 14.21089274 | F136: 15.98266153 | G136: 15.51739409 | H136: 0.2140237862 | I136: 0.204413987 | J136: 0.2012580232
B137: 921 | C137: Retten i Glostrup | D137: Elev | E137: 0.8550013961 | F137: 0.8501103334 | G137: 0.7688489253 | H137: 0.1477278281 | I137: 0.1718321465 | J137: 0.146637904
B138: 921 | C138: Retten i Glostrup | D138: Fleks | E138: 1.467880906 | F138: 1.747602443 | G138: 1.000035018 | H138: 0.3899416825 | I138: 0.3730725592 | J138: 0.2995632576
B139: 921 | C139: Retten i Glostrup | D139: Øvrige | E139: 6.945782148 | F139: 5.95517568 | G139: 0.2643553275 | H139: 0.8929806572 | I139: 0.6716262553 | J139: 0.6718187612
B140: 921 | C140: Retten i Glostrup | D140: Samlet | E140: =SUM(E135:E139) -> 26.24247979 | F140: =SUM(F135:F139) -> 27.377618 | G140: 19.94215962 | H140: 0.2319212056 | I140: 0.2134954095 | J140: 0.1995242933
B141: 922 | C141: Retten på Frederiksberg | D141: Jurister | E141: 2.058909911 | F141: 2.39824517 | G141: 1.90195052 | H141: 0.08405015129 | I141: 0.09454595656 | J141: 0.08065640072
B142: 922 | C142: Retten på Frederiksberg | D142: Kontor | E142: 6.553553758 | F142: 8.282039743 | G142: 8.473068183 | H142: 0.1344841301 | I142: 0.1539617492 | J142: 0.1677868509
B143: 922 | C143: Retten på Frederiksberg | D143: Elev | E143: 0.7992052068 | F143: 0.7530852765 | G143: 0.09552749362 | H143: 0.1309454937 | I143: 0.1683605765 | J143: 0.02802107682
B144: 922 | C144: Retten på Frederiksberg | D144: Fleks | E144: 0.4410762758 | F144: 0.0137882976 | G144: 0.05662581701 | H144: 0.1434613667 | I144: 0.004609497471 | J144: 0.01887470609
B145: 922 | C145: Retten på Frederiksberg | D145: Øvrige | E145: 3.297434176 | F145: 3.942413197 | G145: 0.5626014922 | H145: 0.8400827937 | I145: 0.7706106374 | J145: 0.7731661998
B146: 922 | C146: Retten på Frederiksberg | D146: Samlet | E146: =SUM(E141:E145) -> 13.15017933 | F146: =SUM(F141:F145) -> 15.38957168 | G146: 11.08977351 | H146: 0.1523240909 | I146: 0.1677537721 | J146: 0.1692999664
B147: 923 | C147: Københavns Byret | D147: Jurister | E147: 4.496211071 | F147: 5.0525422 | G147: 4.289576149 | H147: 0.08138337719 | I147: 0.08814455902 | J147: 0.07403238226
B148: 923 | C148: Københavns Byret | D148: Kontor | E148: 27.90206426 | F148: 30.78984297 | G148: 29.02415462 | H148: 0.2450510387 | I148: 0.2387726309 | J148: 0.2493023593
B149: 923 | C149: Københavns Byret | D149: Elev | E149: 0.4552028889 | F149: 0.7411092879 | G149: 1.642991035 | H149: 0.05728432768 | I149: 0.09082177145 | J149: 0.199020884
B150: 923 | C150: Københavns Byret | D150: Fleks | E150: 0 | F150: 0 | G150: 0.6666866667 | H150: - | I150: - | J150: 0.3333333333
B151: 923 | C151: Københavns Byret | D151: Øvrige | E151: 12.11841831 | F151: 9.72041138 | G151: 0.1079588569 | H151: 0.8176424475 | I151: 0.937432987 | J151: 0.7762928845
B152: 923 | C152: Københavns Byret | D152: Samlet | E152: =SUM(E147:E151) -> 44.97189653 | F152: =SUM(F147:F151) -> 46.30390584 | G152: 35.73136733 | H152: 0.2343118001 | I152: 0.2260924292 | J152: 0.220501962
B153: 924 | C153: Retten på Bornholm | D153: Jurister | E153: 0.9138256911 | F153: 0.8615297714 | G153: 0.9813889956 | H153: 0.246846436 | I153: 0.2316369895 | J153: 0.2662599728
B154: 924 | C154: Retten på Bornholm | D154: Kontor | E154: 2.115972793 | F154: 2.325719992 | G154: 2.323445356 | H154: 0.2277440985 | I154: 0.2763079568 | J154: 0.277736713
B155: 924 | C155: Retten på Bornholm | D155: Elev | E155: 0.633994878 | F155: 0.7446822699 | G155: 0.7779036328 | H155: 0.2153988135 | I155: 0.3595241008 | J155: 0.3746008576
B156: 924 | C156: Retten på Bornholm | D156: Fleks | E156: 0 | F156: 0 | G156: 0 | H156: - | I156: - | J156: -
B157: 924 | C157: Retten på Bornholm | D157: Øvrige | E157: 1.07747 | F157: 1.14377 | G157: 0 | H157: 1 | I157: 1 | J157: 0.9886204968
B158: 924 | C158: Retten på Bornholm | D158: Samlet | E158: =SUM(E153:E157) -> 4.741263362 | F158: =SUM(F153:F157) -> 5.075702034 | G158: 4.082737985 | H158: 0.2786710591 | I158: 0.3306321029 | J158: 0.3437150824
B160: 1) I opgørelsen er årsværksforbrug under kategorierne "ledelse og administration", "hjælpefunktioner" og "transporttid" henført under generel ledelse og administration mv.
B161: 2) Ansatte under socialt kapitel (fleksjobbere mv.) uden tidsfordeling indgår ikke i denne opgørelse.

Sheet Aktivitet
B2: AKTIVITET VED RETTEN MÅLT SOM VÆGTEDE AFSLUTTEDE SAGER
B4: EID | C4: Ret | D4: Samlet | F4: Straffesager | H4: Civile sager | J4: Fogedsager | L4: Skiftesager | N4: Notarialforretninger
D5: 2010 | E5: 2011 | F5: 2010 | G5: 2011 | H5: 2010 | I5: 2011 | J5: 2010 | K5: 2011 | L5: 2010 | M5: 2011 | N5: 2010 | O5: 2011
C7: SAMLET BYRETTERNE | D7: 782220.3099 | E7: 775132.1064 | F7: 161976.4879 | G7: 165777.7935 | H7: 70353.64072 | I7: 67432.42055 | J7: 417391.5476 | K7: 411676.5201 | L7: 76485.62614 | M7: 75808.30193 | N7: 63900.99909 | O7: 63905.99946
B9: 901 | C9: Retten i Hjørring | D9: 23305.14326 | E9: 26674.74971 | F9: 4314.29895 | G9: 4973.133301 | H9: 2145.958679 | I9: 2233.645508 | J9: 11362.00928 | K9: 14561.58392 | L9: 2898.92395 | M9: 3362.379181 | N9: 1398.000015 | O9: 1260.000015
B10: 902 | C10: Retten i Aalborg | D10: 35251.91887 | E10: 38590.99073 | F10: 6437.866211 | G10: 7211.565186 | H10: 3234.891235 | I10: 3625.326294 | J10: 17727.15474 | K10: 19767.90524 | L10: 4302.288483 | M10: 4366.632721 | N10: 2793 | O10: 2776.000092
B11: 903 | C11: Retten i Randers | D11: 26430.79288 | E11: 26685.21859 | F11: 4485.393677 | G11: 5001.125732 | H11: 2423.318909 | I11: 2348.859497 | J11: 15003.93744 | K11: 14664.25705 | L11: 3168.324371 | M11: 3074.647125 | N11: 1655.999969 | O11: 1796
B12: 904 | C12: Retten i Århus | D12: 41583.43025 | E12: 40451.7912 | F12: 8249.327881 | G12: 8416.570068 | H12: 3844.108643 | I12: 3752.798584 | J12: 21501.59885 | K12: 18983.82957 | L12: 4245.668396 | M12: 4160.350098 | N12: 4524.999878 | O12: 5017.999878
B13: 905 | C13: Retten i Viborg | D13: 26232.92934 | E13: 26130.76683 | F13: 4972.666016 | G13: 4310.118042 | H13: 2481.872192 | I13: 2605.584229 | J13: 12502.47263 | K13: 13983.2749 | L13: 3088.816864 | M13: 3029.419434 | N13: 1867 | O13: 1956.000061
B14: 906 | C14: Retten i Holstebro | D14: 17621.30192 | E14: 18391.77003 | F14: 3243.869873 | G14: 3667.48645 | H14: 1474.14679 | I14: 1435.997375 | J14: 9066.483719 | K14: 9566.714142 | L14: 2331.83577 | M14: 2358.660767 | N14: 1443.000046 | O14: 1479
B15: 907 | C15: Retten i Herning | D15: 19638.05111 | E15: 18160.97313 | F15: 3658.959595 | G15: 3403.994873 | H15: 1667.44043 | I15: 1526.030457 | J15: 10821.6545 | K15: 9771.320801 | L15: 2360.025146 | M15: 2242.320099 | N15: 1590 | O15: 1523.000031
B16: 908 | C16: Retten i Horsens | D16: 21116.02403 | E16: 23345.28932 | F16: 3970.299438 | G16: 4892.261597 | H16: 1961.659668 | I16: 2117.592224 | J16: 11474.26065 | K16: 12055.83107 | L16: 2257.302399 | M16: 2336.906311 | N16: 1566.000031 | O16: 1357.000015
B17: 909 | C17: Retten i Kolding | D17: 35698.59276 | E17: 34994.89916 | F17: 6976.764893 | G17: 7059.458008 | H17: 3214.342041 | I17: 3223.456665 | J17: 18062.66956 | K17: 17578.15915 | L17: 4037.239136 | M17: 3689.743835 | N17: 3090.999939 | O17: 2839.999939
B18: 910 | C18: Retten i Esbjerg | D18: 25369.11508 | E18: 25698.66 | F18: 5661.999512 | G18: 6082.808105 | H18: 1979.855957 | I18: 1934.889099 | J18: 12939.21954 | K18: 12693.07306 | L18: 2836.123505 | M18: 2808.682739 | N18: 1700 | O18: 1617
B19: 911 | C19: Retten i Sønderborg | D19: 28461.06806 | E19: 30341.20396 | F19: 6124.478516 | G19: 6829.274658 | H19: 2236.146057 | I19: 2284.787231 | J19: 14846.58167 | K19: 15533.07974 | L19: 3257.359467 | M19: 3491.468658 | N19: 2083.999969 | O19: 1865
B20: 912 | C20: Retten i Odense | D20: 40429.22478 | E20: 40426.87364 | F20: 8305.206543 | G20: 8117.817627 | H20: 3387.732666 | I20: 3073.014648 | J20: 21155.91562 | K20: 24373.01373 | L20: 4546.557739 | M20: 4542.66864 | N20: 3234 | O20: 3200.999939
B21: 913 | C21: Retten i Svendborg | D21: 19276.25215 | E21: 19454.98871 | F21: 3287.074219 | G21: 3291.627808 | H21: 1732.620728 | I21: 1647.596924 | J21: 9909.390015 | K21: 10301.48819 | L21: 2600.52034 | M21: 2754.970032 | N21: 1071 | O21: 1116.999969
B22: 914 | C22: Retten i Nykøbing F. | D22: 28047.67655 | E22: 27511.763 | F22: 5568.130615 | G22: 4607.053711 | H22: 2142.316956 | I22: 2265.528503 | J22: 18370.18457 | K22: 18787.22348 | L22: 2957.180115 | M22: 3158.183502 | N22: 1040.000031 | O22: 962.0000153
B23: 915 | C23: Retten i Næstved | D23: 33646.15627 | E23: 33846.36999 | F23: 5724.979004 | G23: 5871.42041 | H23: 2848.835815 | I23: 2637.773987 | J23: 23387.48224 | K23: 23922.22498 | L23: 3507.739563 | M23: 3745.109344 | N23: 1777.999939 | O23: 1840
B24: 916 | C24: Retten i Holbæk | D24: 23557.77197 | E24: 23586.51068 | F24: 4186.012573 | G24: 4274.383789 | H24: 2031.427063 | I24: 1791.953247 | J24: 15812.40613 | K24: 16790.20789 | L24: 2389.009277 | M24: 2531.067017 | N24: 989 | O24: 1049.999985
B25: 917 | C25: Retten i Roskilde | D25: 39780.20529 | E25: 37960.15515 | F25: 8041.206787 | G25: 7577.484863 | H25: 3342.66687 | I25: 3245.133057 | J25: 23221.82535 | K25: 22408.4906 | L25: 4069.841309 | M25: 3820.086548 | N25: 2687.000031 | O25: 2442.999969
B26: 918 | C26: Retten i Hillerød | D26: 25715.11141 | E26: 24870.66124 | F26: 4731.588013 | G26: 5283.521484 | H26: 2438.393433 | I26: 2315.687805 | J26: 14875.8479 | K26: 11940.20374 | L26: 2534.508972 | M26: 2486.020355 | N26: 2054.999939 | O26: 1933.999969
B27: 919 | C27: Retten i Helsingør | D27: 26422.56326 | E27: 25289.64412 | F27: 4291.956177 | G27: 5218.071289 | H27: 2632.329956 | I27: 2236.35022 | J27: 15322.16177 | K27: 13268.44662 | L27: 2897.966553 | M27: 2644.592102 | N27: 1498.000046 | O27: 1597.999939
B28: 920 | C28: Retten i Lyngby | D28: 30940.55371 | E28: 29602.62537 | F28: 5152.96167 | G28: 4301.837036 | H28: 3665.000488 | I28: 3812.60022 | J28: 12533.93494 | K28: 11905.19533 | L28: 3093.457161 | M28: 2950.643074 | N28: 6310.999756 | O28: 6193.000244
B29: 921 | C29: Retten i Glostrup | D29: 63947.63821 | E29: 60959.68107 | F29: 14305.45703 | G29: 14673.34229 | H29: 5783.116699 | I29: 5106.318237 | J29: 38033.64548 | K29: 35067.03699 | L29: 4551.086988 | M29: 4438.957081 | N29: 3803.999878 | O29: 3838.999939
B30: 922 | C30: Retten på Frederiksberg | D30: 45138.59342 | E30: 40814.4518 | F30: 9820.166992 | G30: 8632.144775 | H30: 3550.728516 | I30: 3562.549805 | J30: 28619.94788 | K30: 24137.69328 | L30: 3840.02437 | M30: 3393.930279 | N30: 4495.999878 | O30: 4695.999939
B31: 923 | C31: Københavns Byret | D31: 100092.0038 | E31: 96945.51204 | F31: 29650.62012 | G31: 31389.0625 | H31: 9765.906982 | I31: 8333.914795 | J31: 38712.785 | K31: 37108.61017 | L31: 4031.688147 | M31: 3694.600903 | N31: 10981.99976 | O31: 11285.99951
B32: 924 | C32: Retten på Bornholm | D32: 4518.191523 | E32: 4396.556898 | F32: 815.2036133 | G32: 692.22995 | H32: 368.8239441 | I32: 315.0319366 | J32: 2127.978127 | K32: 2507.65646 | L32: 682.1381187 | M32: 726.2620811 | N32: 242.9999924 | O32: 260.0000076
B34: 1) Vægtningen på tværs af sagstyper betyder, at antallet af vægtede sager inden for de enkelte sagområder ikke summer op til det samlede antal vægtede sager.
B35: 2) Der foretages en tilsvarende opgørelse samlet for henholdsvis jurister og kontor.

Sheet Målopf.Straf
B2: MÅLOPFYLDELSE STRAFFESAGER (PROCENT)
B4: EID | C4: Ret | D4: Nævningesager | H4: Domsmandssager | L4: Sager uden domsmænd | P4: Tilståelsessager | T4: Voldssager | X4: Voldtægtssager
D5: 2010 | E5: 2011 | F5: 2010 | G5: 2011 | H5: 2010 | I5: 2011 | J5: 2010 | K5: 2011 | L5: 2010 | M5: 2011 | N5: 2010 | O5: 2011 | P5: 2010 | Q5: 2011 | R5: 2010 | S5: 2011 | T5: 2010 | U5: 2011 | V5: 2010 | W5: 2011 | X5: 2010 | Y5: 2011 | Z5: 2010 | AA5: 2011
D6: <4 MDR. | F6: <6 MDR. | H6: <3 MDR. | J6: <6 MDR. | L6: <2 MDR. | N6: <6 MDR. | P6: <2 MDR. | R6: <6 MDR. | T6: <37 DG. | V6: <2 MDR. | X6: <37 DG. | Z6: <2 MDR.
C8: MÅL (procent) | D8: 60 | E8: 60 | F8: 80 | G8: 80 | H8: 58 | I8: 65 | J8: 83 | K8: 90 | L8: 56 | M8: 65 | N8: 95 | O8: 95 | P8: 48 | Q8: 62 | R8: 72 | S8: 90 | T8: 50 | U8: 60 | V8: 70 | W8: 75 | X8: 45 | Y8: 55 | Z8: 64 | AA8: 75
C9: SAMLET BYRETTERNE | D9: 36.15438462 | E9: 43.0898374 | F9: 65.38476923 | G9: 70.73065041 | H9: 47.20667163 | I9: 53.4037446 | J9: 72.51244787 | K9: 77.37195785 | L9: 49.22563623 | M9: 62.18324053 | N9: 87.81327073 | O9: 92.70601708 | P9: 38.19902406 | Q9: 49.07108473 | R9: 73.36659649 | S9: 83.36319254 | T9: 43.17912218 | U9: 53.65497076 | V9: 58.06642942 | W9: 68.05555556 | X9: 34.32835821 | Y9: 24.24242424 | Z9: 58.20895522 | AA9: 50
C10: 5. BEDSTE RET | D10: 100 | E10: 100 | F10: 100 | G10: 100 | H10: 60.68 | I10: 69.43 | J10: 87 | K10: 90.51 | L10: 74.35 | M10: 79.36 | N10: 95.38 | O10: 97.64 | P10: 50.84 | Q10: 63.71 | R10: 92.07 | S10: 96.29 | T10: 57.30337079 | U10: 70 | V10: 67.85714286 | W10: 82.35294118 | X10: 50 | Y10: 37.5 | Z10: 100 | AA10: 75
B12: 901 | C12: Retten i Hjørring | D12: 100 | E12: 50 | F12: 100 | G12: 100 | H12: 60.68 | I12: 61.35 | J12: 91.02 | K12: 87.43 | L12: 69.35 | M12: 78.67 | N12: 94.7 | O12: 95.67 | P12: 41.26 | Q12: 38.24 | R12: 90.98 | S12: 91.18 | T12: 57.30337079 | U12: 72.72727273 | V12: 77.52808989 | W12: 81.81818182 | X12: 20 | Y12: 75 | Z12: 40 | AA12: 75
B13: 902 | C13: Retten i Aalborg | D13: 80 | E13: 100 | F13: 80 | G13: 100 | H13: 56.5 | I13: 69.43 | J13: 85.55 | K13: 90.51 | L13: 34.45 | M13: 69.48 | N13: 95.38 | O13: 97.92 | P13: 37.55 | Q13: 53.1 | R13: 87.36 | S13: 94.34 | T13: 54.73684211 | U13: 70 | V13: 62.10526316 | W13: 75.71428571 | X13: 66.66666667 | Y13: 0 | Z13: 66.66666667 | AA13: 100
B14: 903 | C14: Retten i Randers | D14: - | E14: 50 | F14: - | G14: 83.33 | H14: 44.66 | I14: 46.83 | J14: 73.63 | K14: 73.01 | L14: 63.28 | M14: 73.83 | N14: 89.45 | O14: 91.59 | P14: 33.03 | Q14: 45.24 | R14: 74.87 | S14: 80.97 | T14: 43.42105263 | U14: 43.1372549 | V14: 56.57894737 | W14: 66.66666667 | X14: - | Y14: 0 | Z14: - | AA14: 50
B15: 904 | C15: Retten i Århus | D15: 20 | E15: 50 | F15: 80 | G15: 50 | H15: 40.4 | I15: 41.79 | J15: 57.83 | K15: 67.75 | L15: 32.18 | M15: 52.71 | N15: 81.47 | O15: 90.52 | P15: 31.03 | Q15: 41.66 | R15: 51.85 | S15: 72.74 | T15: 37 | U15: 44.44444444 | V15: 45 | W15: 48.14814815 | X15: 0 | Y15: 0 | Z15: 66.66666667 | AA15: 66.66666667
B16: 905 | C16: Retten i Viborg | D16: 71.43 | E16: 100 | F16: 100 | G16: 100 | H16: 46.81 | I16: 60.03 | J16: 69.36 | K16: 83.74 | L16: 64.6 | M16: 74.36 | N16: 85.98 | O16: 96.28 | P16: 42.77 | Q16: 54.95 | R16: 80.4 | S16: 90.1 | T16: 40.81632653 | U16: 67.64705882 | V16: 55.10204082 | W16: 82.35294118 | X16: 100 | Y16: 100 | Z16: 100 | AA16: 100
B17: 906 | C17: Retten i Holstebro | D17: 0 | E17: 100 | F17: 100 | G17: 100 | H17: 49.16 | I17: 69.33 | J17: 84.96 | K17: 88 | L17: 53.37 | M17: 76.74 | N17: 94.76 | O17: 97 | P17: 34.53 | Q17: 63.71 | R17: 92.18 | S17: 96.91 | T17: 51.5625 | U17: 44.06779661 | V17: 59.375 | W17: 61.01694915 | X17: 0 | Y17: 66.66666667 | Z17: 66.66666667 | AA17: 66.66666667
B18: 907 | C18: Retten i Herning | D18: 100 | E18: 100 | F18: 100 | G18: 100 | H18: 65.8 | I18: 63.25 | J18: 87 | K18: 88.2 | L18: 74.86 | M18: 79.36 | N18: 95.97 | O18: 97.23 | P18: 53.85 | Q18: 45.3 | R18: 90.38 | S18: 91.99 | T18: 52.77777778 | U18: 60.41666667 | V18: 77.77777778 | W18: 68.75 | X18: 0 | Y18: 0 | Z18: 100 | AA18: 100
B19: 908 | C19: Retten i Horsens | D19: - | E19: 100 | F19: - | G19: 100 | H19: 75.39 | I19: 79.36 | J19: 88.59 | K19: 93.58 | L19: 87.23 | M19: 81.64 | N19: 98.09 | O19: 98.23 | P19: 67.77 | Q19: 66.07 | R19: 97.01 | S19: 97.5 | T19: 52.94117647 | U19: 54.23728814 | V19: 64.70588235 | W19: 62.71186441 | X19: 33.33333333 | Y19: - | Z19: 33.33333333 | AA19: -
B20: 909 | C20: Retten i Kolding | D20: 20 | E20: 20 | F20: 60 | G20: 40 | H20: 47.9 | I20: 47.06 | J20: 78.89 | K20: 72.55 | L20: 42.45 | M20: 58.56 | N20: 91.85 | O20: 93.55 | P20: 37.39 | Q20: 44.44 | R20: 79.72 | S20: 77.61 | T20: 59.52380952 | U20: 65.51724138 | V20: 73.80952381 | W20: 68.96551724 | X20: 100 | Y20: - | Z20: 100 | AA20: -
B21: 910 | C21: Retten i Esbjerg | D21: 0 | E21: 83.33 | F21: 100 | G21: 100 | H21: 44.48 | I21: 42.44 | J21: 82.49 | K21: 79.83 | L21: 36.66 | M21: 78.17 | N21: 91.14 | O21: 96.43 | P21: 66.08 | Q21: 63.34 | R21: 92.07 | S21: 96.31 | T21: 39.13043478 | U21: 31.91489362 | V21: 46.37681159 | W21: 53.19148936 | X21: 50 | Y21: 20 | Z21: 50 | AA21: 40
B22: 911 | C22: Retten i Sønderborg | D22: 100 | E22: 0 | F22: 100 | G22: 100 | H22: 50.31 | I22: 46.45 | J22: 75.15 | K22: 70.32 | L22: 19.95 | M22: 34.22 | N22: 83.75 | O22: 85.56 | P22: 35.79 | Q22: 37.89 | R22: 81.66 | S22: 78.87 | T22: 38.70967742 | U22: 51.25 | V22: 56.98924731 | W22: 65 | X22: 0 | Y22: 0 | Z22: 0 | AA22: 0
B23: 912 | C23: Retten i Odense | D23: 50 | E23: 100 | F23: 66.67 | G23: 100 | H23: 66.83 | I23: 74.6 | J23: 89.04 | K23: 90.25 | L23: 75.46 | M23: 84.67 | N23: 98.32 | O23: 99.12 | P23: 50.84 | Q23: 64.04 | R23: 93.26 | S23: 96.29 | T23: 41.52542373 | U23: 60.46511628 | V23: 66.10169492 | W23: 76.74418605 | X23: 42.85714286 | Y23: 37.5 | Z23: 57.14285714 | AA23: 50
B24: 913 | C24: Retten i Svendborg | D24: 0 | E24: 0 | F24: 100 | G24: 0 | H24: 53.1 | I24: 65.12 | J24: 81.86 | K24: 87.9 | L24: 31.04 | M24: 78.91 | N24: 92.91 | O24: 97.04 | P24: 37.67 | Q24: 61.16 | R24: 89.39 | S24: 93.62 | T24: 54.54545455 | U24: 60.52631579 | V24: 64.77272727 | W24: 80.26315789 | X24: 50 | Y24: 0 | Z24: 50 | AA24: 33.33333333
B25: 914 | C25: Retten i Nykøbing F. | D25: 40 | E25: 100 | F25: 73.33 | G25: 100 | H25: 50.72 | I25: 72.91 | J25: 82.89 | K25: 90.84 | L25: 65.54 | M25: 86.56 | N25: 93.06 | O25: 96.41 | P25: 39.42 | Q25: 63.98 | R25: 83.21 | S25: 93.2 | T25: 42.85714286 | U25: 75 | V25: 60 | W25: 84.21052632 | X25: 25 | Y25: 33.33333333 | Z25: 50 | AA25: 66.66666667
B26: 915 | C26: Retten i Næstved | D26: 21.43 | E26: 66.67 | F26: 71.43 | G26: 100 | H26: 32.09 | I26: 33.53 | J26: 60.86 | K26: 62.18 | L26: 42.12 | M26: 41.07 | N26: 87.54 | O26: 86.72 | P26: 22.63 | Q26: 33.85 | R26: 60.74 | S26: 68.99 | T26: 20.3125 | U26: 19.60784314 | V26: 31.25 | W26: 31.37254902 | X26: 40 | Y26: 42.85714286 | Z26: 80 | AA26: 57.14285714
B27: 916 | C27: Retten i Holbæk | D27: 33.33 | E27: 75 | F27: 66.67 | G27: 75 | H27: 42.46 | I27: 53.09 | J27: 74.57 | K27: 81.28 | L27: 69.13 | M27: 71.56 | N27: 90.64 | O27: 93.63 | P27: 29.02 | Q27: 47.37 | R27: 70.66 | S27: 83.21 | T27: 38.02816901 | U27: 45.90163934 | V27: 52.11267606 | W27: 77.04918033 | X27: 0 | Y27: 0 | Z27: 100 | AA27: 50
B28: 917 | C28: Retten i Roskilde | D28: 80 | E28: 0 | F28: 100 | G28: 100 | H28: 45.21 | I28: 40.11 | J28: 73.51 | K28: 63.37 | L28: 74.35 | M28: 59.49 | N28: 92.25 | O28: 92.26 | P28: 37.27 | Q28: 47.35 | R28: 81.61 | S28: 76.5 | T28: 57.14285714 | U28: 57.69230769 | V28: 67.85714286 | W28: 65.38461538 | X28: 0 | Y28: 0 | Z28: 0 | AA28: 0
B29: 918 | C29: Retten i Hillerød | D29: 100 | E29: 50 | F29: 100 | G29: 100 | H29: 44.48 | I29: 59.53 | J29: 79.6 | K29: 90.82 | L29: 26.75 | M29: 54.01 | N29: 91.71 | O29: 95.76 | P29: 41.38 | Q29: 51.78 | R29: 85.47 | S29: 89.64 | T29: 58.82352941 | U29: 67.56756757 | V29: 67.64705882 | W29: 70.27027027 | X29: 0 | Y29: 0 | Z29: 100 | AA29: 0
B30: 919 | C30: Retten i Helsingør | D30: 50 | E30: 33.33 | F30: 100 | G30: 100 | H30: 43.42 | I30: 68.02 | J30: 74.19 | K30: 89.55 | L30: 37.23 | M30: 77.72 | N30: 90.04 | O30: 97.64 | P30: 39.9 | Q30: 61.42 | R30: 78.48 | S30: 93.47 | T30: 25.71428571 | U30: 65.71428571 | V30: 42.85714286 | W30: 82.85714286 | X30: 50 | Y30: 33.33333333 | Z30: 50 | AA30: 33.33333333
B31: 920 | C31: Retten i Lyngby | D31: 100 | E31: 100 | F31: 100 | G31: 100 | H31: 49.15 | I31: 64.79 | J31: 70.94 | K31: 86.31 | L31: 43.56 | M31: 61.61 | N31: 85.15 | O31: 91.3 | P31: 35.35 | Q31: 49.83 | R31: 73.72 | S31: 91.25 | T31: 60.71428571 | U31: 92 | V31: 60.71428571 | W31: 96 | X31: - | Y31: 0 | Z31: - | AA31: 100
B32: 921 | C32: Retten i Glostrup | D32: 25 | E32: 23.08 | F32: 30 | G32: 92.31 | H32: 40.51 | I32: 38.73 | J32: 58.51 | K32: 60.88 | L32: 23.71 | M32: 48.76 | N32: 62.74 | O32: 83.31 | P32: 26.51 | Q32: 41.03 | R32: 48.83 | S32: 78.96 | T32: 32.35294118 | U32: 31.86813187 | V32: 59.55882353 | W32: 50.54945055 | X32: 50 | Y32: 0 | Z32: 50 | AA32: 25
B33: 922 | C33: Retten på Frederiksberg | D33: 12.5 | E33: 0 | F33: 25 | G33: 80 | H33: 30.96 | I33: 41.31 | J33: 64.02 | K33: 67.58 | L33: 62.87 | M33: 69.63 | N33: 89.91 | O33: 93.6 | P33: 30.2 | Q33: 33.88 | R33: 56.6 | S33: 66.12 | T33: 16 | U33: 13.79310345 | V33: 33.33333333 | W33: 55.17241379 | X33: 60 | Y33: 0 | Z33: 80 | AA33: 33.33333333
B34: 923 | C34: Københavns Byret | D34: 17.65 | E34: 23.81 | F34: 47.06 | G34: 33.33 | H34: 38.44 | I34: 49.3 | J34: 57.33 | K34: 73.97 | L34: 45.49 | M34: 48.2 | N34: 89.15 | O34: 92.11 | P34: 33 | Q34: 46.07 | R34: 53.72 | S34: 73.71 | T34: 33.33333333 | U34: 31.50684932 | V34: 48.41269841 | W34: 61.64383562 | X34: 0 | Y34: 12.5 | Z34: 33.33333333 | AA34: 50
B35: 924 | C35: Retten på Bornholm | D35: 100 | E35: - | F35: 100 | G35: - | H35: 98.94 | I35: 95.12 | J35: 100 | K35: 98.78 | L35: 90.35 | M35: 89.63 | N35: 100 | O35: 99.47 | P35: 94.66 | Q35: 93.4 | R35: 100 | S35: 100 | T35: 88 | U35: 100 | V35: 100 | W35: 100 | X35: - | Y35: - | Z35: - | AA35: -
B37: 1) Målene for de enkelte sagstyper er opstillet i samarbejde med byretterne. Dog er målene for voldssager og voldtægtssager fastsat eksternt.

Sheet Målopf.Civil
B2: MÅLOPFYLDELSE CIVILE SAGER (PROCENT)
B4: EID | C4: Ret | D4: "Tunge" almindelige sager | H4: Øvrige almindelige sager | L4: Alle almindelige civile sager | P4: Ægteskabssager | T4: Forældreansvarssager
D5: 2010 | E5: 2011 | F5: 2010 | G5: 2011 | H5: 2010 | I5: 2011 | J5: 2010 | K5: 2011 | L5: 2010 | M5: 2011 | N5: 2010 | O5: 2011 | P5: 2010 | Q5: 2011 | R5: 2010 | S5: 2011 | T5: 2010 | U5: 2011 | V5: 2010 | W5: 2011
D6: <15 MDR. | F6: <18 MDR. | H6: <12 MDR. | J6: <15 MDR. | L6: <6 MDR. | N6: <12 MDR. | P6: <4 MDR. | R6: <6 MDR. | T6: <6 MDR. | V6: <8 MDR.
C8: MÅL (procent) | D8: 40 | E8: 45 | F8: 60 | G8: 60 | H8: 45 | I8: 60 | J8: 60 | K8: 72 | L8: 55 | M8: 70 | N8: 70 | O8: 85 | P8: 40 | Q8: 56 | R8: 75 | S8: 83 | T8: 55 | U8: 60 | V8: 73 | W8: 75
C9: SAMLET BYRETTERNE | D9: 42.47491639 | E9: 37.79249655 | F9: 59.19750836 | G9: 51.72424828 | H9: 30.94605798 | I9: 30.10320759 | J9: 48.56356789 | K9: 45.91576068 | L9: 67.95961025 | M9: 67.39739703 | N9: 83.80764726 | O9: 83.57068988 | P9: 46.03625096 | Q9: 52.7310768 | R9: 71.51716705 | S9: 75.88355067 | T9: 48.9360761 | U9: 52.64157576 | V9: 67.51214403 | W9: 70.82284416
C10: 5. BEDSTE RET | D10: 55.55333333 | E10: 50 | F10: 67.65 | G10: 64.52 | H10: 50 | I10: 47.48460432 | J10: 59.996 | K10: 63.36099237 | L10: 72.94 | M10: 72.27 | N10: 87.92 | O10: 86.86 | P10: 63.331 | Q10: 68.75 | R10: 83.338 | S10: 89.29 | T10: 65.82670886 | U10: 65.64610687 | V10: 78.07263158 | W10: 80.59895522
B12: 901 | C12: Retten i Hjørring | D12: 33.33333333 | E12: 54.84 | F12: 55.555 | G12: 64.52 | H12: 28.72829787 | I12: 32.45614035 | J12: 50.00425532 | K12: 45.61263158 | L12: 64.2 | M12: 70.04 | N12: 81.43 | O12: 85.92 | P12: 63.331 | Q12: 51.22 | R12: 83.338 | S12: 80.49 | T12: 53.8467033 | U12: 49.57983193 | V12: 75.8256044 | W12: 69.74966387
B13: 902 | C13: Retten i Aalborg | D13: 55 | E13: 35.14 | F13: 67.5 | G13: 48.65 | H13: 41.81406061 | I13: 37.10647799 | J13: 56.97345455 | K13: 52.20433962 | L13: 72.94 | M13: 70 | N13: 87.92 | O13: 83.77 | P13: 81.36 | Q13: 62.3 | R13: 91.53 | S13: 80.33 | T13: 70.17929825 | U13: 69.29425197 | V13: 78.07263158 | W13: 79.52637795
B14: 903 | C14: Retten i Randers | D14: 29.17 | E14: 29.63037037 | F14: 45.83 | G14: 44.44074074 | H14: 10.71342857 | I14: 18.11557971 | J14: 25.71428571 | K14: 38.40789855 | L14: 69.38 | M14: 61.87 | N14: 80.29 | O14: 73.88 | P14: 25.81 | Q14: 55 | R14: 70.97 | S14: 80 | T14: 46.249 | U14: 56.78305085 | V14: 66.2465 | W14: 78.81101695
B15: 904 | C15: Retten i Århus | D15: 28.56982143 | E15: 32.78360656 | F15: 66.07589286 | G15: 52.4557377 | H15: 20.33587571 | I15: 15.64123457 | J15: 41.24745763 | K15: 30.45419753 | L15: 64.3 | M15: 62.14 | N15: 80.24 | O15: 78.88 | P15: 36.25 | Q15: 50 | R15: 71.25 | S15: 71.24525 | T15: 36.56671642 | U15: 45.06971831 | V15: 55.22731343 | W15: 64.08697183
B16: 905 | C16: Retten i Viborg | D16: 55.55333333 | E16: 28.57214286 | F16: 66.66592593 | G16: 53.575 | H16: 17.65 | I16: 23.9295092 | J16: 44.85352941 | K16: 39.87920245 | L16: 69.39 | M16: 71.56 | N16: 84.13 | O16: 85.35 | P16: 39.13043478 | Q16: 58.54 | R16: 58.69565217 | S16: 73.8097619 | T16: 32.94 | U16: 59.78369565 | V16: 58.822 | W16: 81.52195652
B17: 906 | C17: Retten i Holstebro | D17: 61.90666667 | E17: 45.45 | F17: 66.66857143 | G17: 50 | H17: 50.94301887 | I17: 44.27908397 | J17: 60.37320755 | K17: 63.36099237 | L17: 69.35 | M17: 68.57 | N17: 87.69 | O17: 85.07 | P17: 37.93 | Q17: 46.43 | R17: 79.31 | S17: 67.86 | T17: 42.85349206 | U17: 42.18671875 | V17: 57.1447619 | W17: 62.499375
B18: 907 | C18: Retten i Herning | D18: 54.55 | E18: 38.45846154 | F18: 63.64 | G18: 46.15692308 | H18: 50.40349593 | I18: 47.48460432 | J18: 65.03634146 | K18: 62.58705036 | L18: 73.72 | M18: 72.21 | N18: 87.87 | O18: 86.49 | P18: 55.88 | Q18: 67.86 | R18: 73.53 | S18: 89.29 | T18: 57.89236842 | U18: 43.33333333 | V18: 72.37131579 | W18: 66.6625
B19: 908 | C19: Retten i Horsens | D19: 88.89111111 | E19: 48.89 | F19: 88.89111111 | G19: 60 | H19: 52.79391304 | I19: 54.38163743 | J19: 70.18801242 | K19: 64.91438596 | L19: 70.25 | M19: 69.77 | N19: 89.13 | O19: 86.41 | P19: 70 | Q19: 74.29 | R19: 85 | S19: 82.86 | T19: 69.01647887 | U19: 65.42814815 | V19: 80.28126761 | W19: 79.01308642
B20: 909 | C20: Retten i Kolding | D20: 29.63 | E20: 45.16 | F20: 44.44 | G20: 58.06 | H20: 22.07225225 | I20: 14.94511494 | J20: 45.4954955 | K20: 35.05321839 | L20: 65.6 | M20: 66.08 | N20: 82.13 | O20: 81.36 | P20: 50.59963855 | Q20: 61.97 | R20: 69.87927711 | S20: 83.1 | T20: 41.53615385 | U20: 65.64610687 | V20: 65.38061538 | W20: 77.86312977
B21: 910 | C21: Retten i Esbjerg | D21: 27.27 | E21: 14.28857143 | F21: 27.27 | G21: 42.85714286 | H21: 29.45141104 | I21: 33.68136842 | J21: 47.23705521 | K21: 50.00263158 | L21: 68.65 | M21: 65.55 | N21: 82.5 | O21: 82.17 | P21: 66.04 | Q21: 51.85 | R21: 84.91 | S21: 81.81672727 | T21: 51.27888889 | U21: 58.51212766 | V21: 64.95521368 | W21: 73.40521277
B22: 911 | C22: Retten i Sønderborg | D22: 41.66333333 | E22: 16.67 | F22: 58.3375 | G22: 27.78 | H22: 32.19520548 | I22: 15.2659542 | J22: 49.31780822 | K22: 35.11763359 | L22: 69.22 | M22: 69.93 | N22: 85.34 | O22: 83.3 | P22: 48.33 | Q22: 50 | R22: 70 | S22: 75 | T22: 50.52473684 | U22: 62.69044776 | V22: 74.73894737 | W22: 80.59895522
B23: 912 | C23: Retten i Odense | D23: 50 | E23: 69.56521739 | F23: 67.65 | G23: 73.91304348 | H23: 58.55675676 | I23: 57.89494737 | J23: 68.92234234 | K23: 63.68084211 | L23: 71.27 | M23: 76.15 | N23: 86.45 | O23: 90.38 | P23: 60.49 | Q23: 72.31 | R23: 80.25 | S23: 90.77 | T23: 52.51892086 | U23: 51.64065574 | V23: 71.22208633 | W23: 78.68721311
B24: 913 | C24: Retten i Svendborg | D24: 60 | E24: 61.9 | F24: 70 | G24: 71.43 | H24: 36.13 | I24: 52.94205882 | J24: 50.42 | K24: 66.66882353 | L24: 65.06 | M24: 66.64 | N24: 82.87 | O24: 86.86 | P24: 62.96 | Q24: 65 | R24: 85.19 | S24: 92.5 | T24: 71.42857143 | U24: 86.20793103 | V24: 89.28761905 | W24: 96.55195402
B25: 914 | C25: Retten i Nykøbing F. | D25: 40 | E25: 47.06 | F25: 60 | G25: 52.94 | H25: 27.67571429 | I25: 43.36548673 | J25: 51.78142857 | K25: 53.97920354 | L25: 75.79 | M25: 75.1 | N25: 88.97 | O25: 90.87 | P25: 44.83 | Q25: 68.75 | R25: 82.76 | S25: 81.25 | T25: 56.84315789 | U25: 74.32608108 | V25: 77.89768421 | W25: 85.13891892
B26: 915 | C26: Retten i Næstved | D26: 25 | E26: 16.66944444 | F26: 37.5 | G26: 33.32944444 | H26: 18.58576923 | I26: 5.968059701 | J26: 37.82076923 | K26: 23.13328358 | L26: 71.62 | M26: 66.94 | N26: 85.61 | O26: 83.57 | P26: 17.31 | Q26: 33.33 | R26: 59.62 | S26: 51.28 | T26: 41.23927835 | U26: 40.40272727 | V26: 56.69814433 | W26: 60.60343434
B27: 916 | C27: Retten i Holbæk | D27: 50 | E27: 50 | F27: 66.67 | G27: 66.67 | H27: 33.04026087 | I27: 38.68207547 | J27: 53.04373913 | K27: 54.71320755 | L27: 73.41 | M27: 73.2 | N27: 89.13 | O27: 88.58 | P27: 28.57 | Q27: 44.83 | R27: 61.9 | S27: 56.666 | T27: 62.02443038 | U27: 56.24875 | V27: 75.94835443 | W27: 79.68625
B28: 917 | C28: Retten i Roskilde | D28: 26.67 | E28: 30.76923077 | F28: 53.33 | G28: 53.84615385 | H28: 24.34111111 | I28: 23.7093299 | J28: 40.21095238 | K28: 42.78335052 | L28: 71.57 | M28: 72.27 | N28: 85.46 | O28: 86 | P28: 37.93 | Q28: 46 | R28: 68.97 | S28: 72 | T28: 31.62649573 | U28: 40.67847458 | V28: 55.55923077 | W28: 57.62949153
B29: 918 | C29: Retten i Hillerød | D29: 57.69 | E29: 56.52 | F29: 69.23 | G29: 65.22 | H29: 34.77833333 | I29: 41.60176 | J29: 52.895 | K29: 61.60296 | L29: 72.02 | M29: 67.02 | N29: 87.11 | O29: 84.73 | P29: 56 | Q29: 78.85 | R29: 76 | S29: 96.15 | T29: 65.82670886 | U29: 56.52391304 | V29: 78.48202532 | W29: 77.17608696
B30: 919 | C30: Retten i Helsingør | D30: 40.62625 | E30: 33.33 | F30: 59.37375 | G30: 55.56 | H30: 17.855 | I30: 26.17348993 | J30: 42.25839286 | K30: 40.94013423 | L30: 65.37 | M30: 70.04 | N30: 80.31 | O30: 83.65 | P30: 69.57 | Q30: 63.41 | R30: 82.61 | S30: 78.05 | T30: 44.15818182 | U30: 29.78787234 | V30: 57.14 | W30: 53.19106383
B31: 920 | C31: Retten i Lyngby | D31: 24.32027027 | E31: 12.76234043 | F31: 37.83459459 | G31: 34.0387234 | H31: 14.65324841 | I31: 18.08558511 | J31: 29.29802548 | K31: 28.71914894 | L31: 61.74 | M31: 60.77 | N31: 79.91 | O31: 77.46 | P31: 14.63414634 | Q31: 29.82 | R31: 53.65853659 | S31: 56.89189655 | T31: 27.05623529 | U31: 29.03129032 | V31: 42.35529412 | W31: 45.16483871
B32: 921 | C32: Retten i Glostrup | D32: 15.38307692 | E32: 14.89446809 | F32: 34.61230769 | G32: 19.14468085 | H32: 7.90779661 | I32: 7.142063492 | J32: 12.99661017 | K32: 15.87515873 | L32: 63.47 | M32: 61.61 | N32: 79.59 | O32: 78.7 | P32: 41.18 | Q32: 49.49 | R32: 62.09 | S32: 83.0017 | T32: 47.34669388 | U32: 43.31630573 | V32: 69.79212245 | W32: 64.97133758
B33: 922 | C33: Retten på Frederiksberg | D33: 48.27275862 | E33: 37.5025 | F33: 68.96137931 | G33: 52.5025 | H33: 32.25737327 | I33: 33.82411765 | J33: 49.31082949 | K33: 52.45 | L33: 65.35 | M33: 64.59 | N33: 85.13 | O33: 85.86 | P33: 39.36425532 | Q33: 33.65 | R33: 65.95617021 | S33: 65.38 | T33: 40.31023256 | U33: 39.68285714 | V33: 65.11348837 | W33: 61.11007937
B34: 923 | C34: Københavns Byret | D34: 47.06176471 | E34: 46.01513274 | F34: 62.35552941 | G34: 60.1799115 | H34: 37.1324558 | I34: 31.53912863 | J34: 56.97697446 | K34: 53.7353112 | L34: 65.1 | M34: 64.98 | N34: 81.99 | O34: 83.69 | P34: 37.96 | Q34: 40.35 | R34: 68.61 | S34: 65.81512821 | T34: 45.712 | U34: 40.40066225 | V34: 63.57371429 | W34: 55.62735099
B35: 924 | C35: Retten på Bornholm | D35: - | E35: - | F35: - | G35: - | H35: 50 | I35: 72.72727273 | J35: 59.996 | K35: 72.72727273 | L35: 76.36 | M35: 81.4 | N35: 91.69 | O35: 94.57 | P35: 60 | Q35: 100 | R35: 80 | S35: 100 | T35: 77.27272727 | U35: 87.5 | V35: 95.45454545 | W35: 93.75
B37: 1) Målene for de enkelte sagstyper er opstillet i samarbejde med byretterne. Generelt er målene opstillet i forhold til hovedforhandlede sager.
B38: 2) Ved "tunge" almindelige sager forstås sager, der er behandlet kollegialt, med en værdi på mere end 1 mio. kr. eller rubriceret som forvaltningssag (det offentlige er part eller der er tale om en advokatnævnssag). Ved "Øvrige almindelige sager" forstås almindelige sager, der ikke er "tunge". Boligretssager og småsager inkluderes ikke.
B39: 3) Ved alle almindelige civile sager forstås både sager med og uden hovedforhandling, herunder udeblivelsesdomme, forligte sager, henviste sager og afviste sager, ligesom alle sager med forhandlingsmaksime (almindelige sager, boligretssager og småsager) er inkluderede.
B40: 4) Forældreansvarssager inkluderer hovedforhandlede sager, sager sluttet efter forlig og sager sluttet efter retsmægling.

Sheet Målopf.Foged
B2: MÅLOPFYLDELSE FOGEDSAGER (PROCENT)
B4: EID | C4: Ret | D4: Alm. fogedsager | H4: Særlige fogedsager | L4: Betalingspåkrav
D5: 2010 | E5: 2011 | F5: 2010 | G5: 2011 | H5: 2010 | I5: 2011 | J5: 2010 | K5: 2011 | L5: 2010 | M5: 2011 | N5: 2010 | O5: 2011
D6: <2 MDR. | F6: <4 MDR. | H6: <2 MDR. | J6: <4 MDR. | L6: <2 MDR. | N6: <4 MDR.
C8: MÅL (procent) | D8: 60 | E8: 72 | F8: 85 | G8: 93 | H8: 70 | I8: 80 | J8: 93 | K8: 97 | L8: 45 | M8: 55 | N8: 78 | O8: 85
C9: SAMLET BYRETTERNE | D9: 45.84557832 | E9: 57.14694273 | F9: 75.61193588 | G9: 85.08257103 | H9: 66.00398825 | I9: 71.41345188 | J9: 89.11798191 | K9: 93.38299556 | L9: 46.41328514 | M9: 57.75168078 | N9: 76.57674124 | O9: 85.42391725
C10: 5. BEDSTE RET | D10: 72.18 | E10: 77.37074486 | F10: 91.81 | G10: 94.59622553 | H10: 87.27 | I10: 89.34828 | J10: 97.19 | K10: 98.17916 | L10: 70.29 | M10: 76.35722938 | N10: 93.67 | O10: 94.14067244
B12: 901 | C12: Retten i Hjørring | D12: 61.2 | E12: 67.81879207 | F12: 85.37 | G12: 89.92753402 | H12: 70.55 | I12: 75.16376 | J12: 92.56 | K12: 94.47877 | L12: 42.94 | M12: 52.80623844 | N12: 76.49 | O12: 86.03006605
B13: 902 | C13: Retten i Aalborg | D13: 47.37 | E13: 43.22409347 | F13: 84.2 | G13: 78.24771296 | H13: 72.33 | I13: 74.97598 | J13: 92.99 | K13: 93.3708 | L13: 69.17 | M13: 60.19395104 | N13: 93.67 | O13: 92.53516163
B14: 903 | C14: Retten i Randers | D14: 31.79 | E14: 31.44286487 | F14: 87.61 | G14: 86.79706837 | H14: 72.01 | I14: 69.19637 | J14: 93.96 | K14: 94.51686 | L14: 59.62 | M14: 50.40585466 | N14: 89.04 | O14: 88.43290156
B15: 904 | C15: Retten i Århus | D15: 44.93 | E15: 72.27973776 | F15: 77.81 | G15: 91.67184593 | H15: 87.35 | I15: 91.86241 | J15: 98.32 | K15: 98.17916 | L15: 47.88 | M15: 38.21834309 | N15: 84.96 | O15: 84.91120419
B16: 905 | C16: Retten i Viborg | D16: 47.4916833 | E16: 52.05511998 | F16: 86.90618762 | G16: 87.34853885 | H16: 70.98704 | I16: 69.56522 | J16: 95.31406 | K16: 95.43478 | L16: 62.08470708 | M16: 67.44270644 | N16: 93.35531321 | O16: 93.47035286
B17: 906 | C17: Retten i Holstebro | D17: 81.31542219 | E17: 89.46913367 | F17: 94.81856246 | G17: 97.89036832 | H17: 86.92811 | I17: 94.47983 | J17: 96.2963 | K17: 99.15074 | L17: 87.46835443 | M17: 92.87564767 | N17: 97.40506329 | O17: 98.31606218
B18: 907 | C18: Retten i Herning | D18: 54.15 | E18: 78.42821359 | F18: 88.71 | G18: 94.81944651 | H18: 75.46 | I18: 82.33393 | J18: 96.87 | K18: 98.15825 | L18: 51.53 | M18: 73.2266276 | N18: 78.94 | O18: 94.45747469
B19: 908 | C19: Retten i Horsens | D19: 70.53 | E19: 72.40287068 | F19: 91.92 | G19: 93.29955315 | H19: 73.78 | I19: 73.11729 | J19: 94.85 | K19: 96.01256 | L19: 42.92 | M19: 64.65672867 | N19: 76.12 | O19: 89.52459696
B20: 909 | C20: Retten i Kolding | D20: 74.9 | E20: 77.37074486 | F20: 89.5 | G20: 92.70853126 | H20: 87.46 | I20: 89.34828 | J20: 97.34 | K20: 98.59846 | L20: 52.46 | M20: 66.75662987 | N20: 82.53 | O20: 89.00559971
B21: 910 | C21: Retten i Esbjerg | D21: 76.8 | E21: 67.66287921 | F21: 92.11 | G21: 92.02824049 | H21: 91.86 | I21: 89.5633 | J21: 97.19 | K21: 97.31491 | L21: 78.96 | M21: 72.8173419 | N21: 93.85 | O21: 93.13662036
B22: 911 | C22: Retten i Sønderborg | D22: 64.73 | E22: 61.75976522 | F22: 90.04 | G22: 89.36025217 | H22: 75.97 | I22: 71.68419 | J22: 94.44 | K22: 93.29765 | L22: 42.17 | M22: 58.50768768 | N22: 81.03 | O22: 88.14397473
B23: 912 | C23: Retten i Odense | D23: 62.66941156 | E23: 57.11362086 | F23: 90.00686224 | G23: 90.27514591 | H23: 80.37171 | I23: 81.64111 | J23: 97.09882 | K23: 97.26482 | L23: 48.94206917 | M23: 76.35722938 | N23: 89.94600905 | O23: 93.11749807
B24: 913 | C24: Retten i Svendborg | D24: 65.9217016 | E24: 84.18583535 | F24: 91.06041924 | G24: 96.39830508 | H24: 76.67239 | I24: 90.11726 | J24: 94.1681 | K24: 98.65997 | L24: 80.42312277 | M24: 81.12865648 | N24: 96.24553039 | O24: 96.66062646
B25: 914 | C25: Retten i Nykøbing F. | D25: 43.41277576 | E25: 72.73755656 | F25: 79.44537964 | G25: 90.58661926 | H25: 68.57143 | I25: 77.3672 | J25: 91.32275 | K25: 95.61201 | L25: 10.45788581 | M25: 45.53867403 | N25: 46.76370831 | O25: 85.78729282
B26: 915 | C26: Retten i Næstved | D26: 26.80525873 | E26: 54.19992398 | F26: 62.7031928 | G26: 81.95236285 | H26: 48.23677 | I26: 72.32813 | J26: 85.4534 | K26: 95.08955 | L26: 49.9070632 | M26: 52.23354725 | N26: 87.94476899 | O26: 88.3855543
B27: 916 | C27: Retten i Holbæk | D27: 30.48 | E27: 55.07186968 | F27: 55.64 | G27: 83.731779 | H27: 49.18 | I27: 54.25668 | J27: 78.48 | K27: 97.12511 | L27: 8.54 | M27: 72.85220207 | N27: 48.55 | O27: 92.09007772
B28: 917 | C28: Retten i Roskilde | D28: 38.74 | E28: 58.26758679 | F28: 71.1 | G28: 84.94124506 | H28: 65.02 | I28: 64.17958 | J28: 93.97 | K28: 94.44326 | L28: 27.98 | M28: 26.51134454 | N28: 54.02 | O28: 67.13223477
B29: 918 | C29: Retten i Hillerød | D29: 47.79 | E29: 64.4565592 | F29: 66.49 | G29: 89.40380468 | H29: 80.55 | I29: 86.10402 | J29: 96.14 | K29: 98.37737 | L29: 68.91 | M29: 69.33173714 | N29: 91.51 | O29: 94.14067244
B30: 919 | C30: Retten i Helsingør | D30: 35.71 | E30: 64.75058055 | F30: 53.28 | G30: 84.1965796 | H30: 59.73 | I30: 74.22578 | J30: 88.67 | K30: 94.71889 | L30: 56.54 | M30: 70.20480298 | N30: 83.13 | O30: 90.37261833
B31: 920 | C31: Retten i Lyngby | D31: 72.18 | E31: 75.407429 | F31: 91.81 | G31: 94.59622553 | H31: 87.27 | I31: 86.94678 | J31: 97.55 | K31: 97.86317 | L31: 70.29 | M31: 83.54087452 | N31: 89.3 | O31: 93.75315046
B32: 921 | C32: Retten i Glostrup | D32: 28.87 | E32: 42.98614478 | F32: 68.9 | G32: 79.40026191 | H32: 42.79 | I32: 64.39373 | J32: 70.41 | K32: 89.45441 | L32: 37.46 | M32: 66.05039418 | N32: 78.45 | O32: 87.08860858
B33: 922 | C33: Retten på Frederiksberg | D33: 35.12 | E33: 33.34018288 | F33: 60.77 | G33: 71.9427601 | H33: 64.22 | I33: 60.69679 | J33: 89.52 | K33: 89.10375 | L33: 50.98 | M33: 47.28277817 | N33: 76.99 | O33: 78.22597874
B34: 923 | C34: Københavns Byret | D34: 21.57 | E34: 30.34707852 | F34: 56.94 | G34: 66.71687669 | H34: 54.08 | I34: 55.03101 | J34: 84.66 | K34: 87.36516 | L34: 19.8 | M34: 21.69268962 | N34: 43.27 | O34: 53.08369629
B35: 924 | C35: Retten på Bornholm | D35: 88.51303735 | E35: 89.67109059 | F35: 98.80197322 | G35: 97.74956722 | H35: 87.39496 | I35: 83.87096 | J35: 100 | K35: 97.58064 | L35: 92.01101928 | M35: 89.41860465 | N35: 99.31129477 | O35: 96.62790698
B37: 1) Målene for de enkelte sagstyper er opstillet i samarbejde med byretterne.

Sheet Sagstid.Straf
B2: GENNEMSNITLIG SAGSBEHANDLINGSTID STRAFFESAGER (DAGE)
B4: EID | C4: Ret | D4: Nævningesager | F4: Domsmandssager | H4: Sager uden domsmænd | J4: Tilståelsessager
D5: 2010 | E5: 2011 | F5: 2010 | G5: 2011 | H5: 2010 | I5: 2011 | J5: 2010 | K5: 2011
C6: 5. BEDSTE RET | D6: 101 | E6: 85 | F6: 96 | G6: 89 | H6: 60 | I6: 46 | J6: 77 | K6: 65
C7: SAMLET BYRETTERNE | D7: 153.8538462 | E7: 176 | F7: 155.9518646 | G7: 134.981328 | H7: 98.94509184 | I7: 75.38156916 | J7: 141.1381194 | K7: 109.9842539
B9: 901 | C9: Retten i Hjørring | D9: 62 | E9: 101 | F9: 96 | G9: 93 | H9: 60 | I9: 52 | J9: 87 | K9: 94
B10: 902 | C10: Retten i Aalborg | D10: 137 | E10: 85 | F10: 108 | G10: 89 | H10: 79 | I10: 50 | J10: 100 | K10: 75
B11: 903 | C11: Retten i Randers | D11: - | E11: 129 | F11: 152 | G11: 160 | H11: 91 | I11: 76 | J11: 149 | K11: 116
B12: 904 | C12: Retten i Århus | D12: 150 | E12: 154 | F12: 195 | G12: 187 | H12: 126 | I12: 87 | J12: 194 | K12: 152
B13: 905 | C13: Retten i Viborg | D13: 121 | E13: 77 | F13: 152 | G13: 110 | H13: 90 | I13: 59 | J13: 118 | K13: 100
B14: 906 | C14: Retten i Holstebro | D14: 162 | E14: 73 | F14: 116 | G14: 99 | H14: 75 | I14: 56 | J14: 91 | K14: 64
B15: 907 | C15: Retten i Herning | D15: 83 | E15: 85 | F15: 91 | G15: 93 | H15: 54 | I15: 52 | J15: 76 | K15: 83
B16: 908 | C16: Retten i Horsens | D16: - | E16: 86 | F16: 87 | G16: 75 | H16: 43 | I16: 46 | J16: 56 | K16: 60
B17: 909 | C17: Retten i Kolding | D17: 168 | E17: 185 | F17: 134 | G17: 150 | H17: 88 | I17: 73 | J17: 125 | K17: 118
B18: 910 | C18: Retten i Esbjerg | D18: 151 | E18: 107 | F18: 131 | G18: 134 | H18: 94 | I18: 46 | J18: 67 | K18: 65
B19: 911 | C19: Retten i Sønderborg | D19: 77 | E19: 123 | F19: 140 | G19: 146 | H19: 137 | I19: 111 | J19: 121 | K19: 129
B20: 912 | C20: Retten i Odense | D20: 130 | E20: 108 | F20: 95 | G20: 86 | H20: 50 | I20: 39 | J20: 77 | K20: 64
B21: 913 | C21: Retten i Svendborg | D21: 182 | E21: - | F21: 113 | G21: 100 | H21: 94 | I21: 54 | J21: 96 | K21: 73
B22: 914 | C22: Retten i Nykøbing F. | D22: 142 | E22: 64 | F22: 119 | G22: 89 | H22: 72 | I22: 46 | J22: 115 | K22: 77
B23: 915 | C23: Retten i Næstved | D23: 138 | E23: 119 | F23: 204 | G23: 175 | H23: 104 | I23: 96 | J23: 191 | K23: 157
B24: 916 | C24: Retten i Holbæk | D24: 138 | E24: 130 | F24: 151 | G24: 129 | H24: 74 | I24: 60 | J24: 162 | K24: 112
B25: 917 | C25: Retten i Roskilde | D25: 106 | E25: 160 | F25: 150 | G25: 161 | H25: 72 | I25: 73 | J25: 125 | K25: 113
B26: 918 | C26: Retten i Hillerød | D26: 101 | E26: 92 | F26: 132 | G26: 94 | H26: 110 | I26: 77 | J26: 101 | K26: 85
B27: 919 | C27: Retten i Helsingør | D27: 109 | E27: 123 | F27: 196 | G27: 91 | H27: 103 | I27: 53 | J27: 141 | K27: 74
B28: 920 | C28: Retten i Lyngby | D28: 60 | E28: 68 | F28: 143 | G28: 97 | H28: 113 | I28: 74 | J28: 135 | K28: 80
B29: 921 | C29: Retten i Glostrup | D29: 215 | E29: 131 | F29: 224 | G29: 204 | H29: 192 | I29: 138 | J29: 211 | K29: 146
B30: 922 | C30: Retten på Frederiksberg | D30: 194 | E30: 185 | F30: 183 | G30: 165 | H30: 82 | I30: 66 | J30: 196 | K30: 162
B31: 923 | C31: Københavns Byret | D31: 164 | E31: 279 | F31: 209 | G31: 149 | H31: 99 | I31: 81 | J31: 203 | K31: 136
B32: 924 | C32: Retten på Bornholm | D32: 114 | E32: - | F32: 37 | G32: 37 | H32: 33 | I32: 33 | J32: 32 | K32: 30

Sheet Sagstid.Civil
B2: GENNEMSNITLIG SAGSBEHANDLINGSTID CIVILE SAGER (DAGE)
B4: EID | C4: Ret | D4: Hovedforhandlede almindelige sager | F4: Hovedforhandlede boligretssager | H4: Hovedforhandlede småsager | J4: Alle civile sager m. forhandlingsmaksime | L4: Alle ægteskabssager | N4: Alle forældre- ansvarssager
D5: 2010 | E5: 2011 | F5: 2010 | G5: 2011 | H5: 2010 | I5: 2011 | J5: 2010 | K5: 2011 | L5: 2010 | M5: 2011 | N5: 2010 | O5: 2011
C6: 5. BEDSTE RET | D6: 479.5037594 | E6: 492.7288136 | F6: 348.6129032 | G6: 406 | H6: 256.8157895 | I6: 251.2631579 | J6: 163 | K6: 180 | L6: 113 | M6: 100 | N6: 155 | O6: 144
C7: SAMLET BYRETTERNE | D7: 552.3603798 | E7: 580.9047619 | F7: 532.2584814 | G7: 536.9069374 | H7: 327.6766021 | I7: 314.9797608 | J7: 195.3802683 | K7: 201.5423916 | L7: 149.8818665 | M7: 136.1166966 | N7: 182.7719251 | O7: 170.5571872
B9: 901 | C9: Retten i Hjørring | D9: 540.9854369 | E9: 588.737931 | F9: 301.6363636 | G9: 430.6 | H9: 287.9363636 | I9: 299.5147059 | J9: 208 | K9: 196 | L9: 110 | M9: 114 | N9: 162 | O9: 178
B10: 902 | C10: Retten i Aalborg | D10: 530.7219512 | E10: 549.7346939 | F10: 497.6666667 | G10: 520.0666667 | H10: 301.2926829 | I10: 266.12 | J10: 158 | K10: 187 | L10: 90 | M10: 143 | N10: 135 | O10: 138
B11: 903 | C11: Retten i Randers | D11: 632 | E11: 633.4363636 | F11: 732.9565217 | G11: 640.5384615 | H11: 382.0606061 | I11: 424.925 | J11: 210 | K11: 271 | L11: 175 | M11: 150 | N11: 175 | O11: 148
B12: 904 | C12: Retten i Århus | D12: 559.8969957 | E12: 585.8815789 | F12: 505.0491803 | G12: 518.6792453 | H12: 363.6423841 | I12: 305.4050633 | J12: 212 | K12: 228 | L12: 138 | M12: 148 | N12: 205 | O12: 193
B13: 905 | C13: Retten i Viborg | D13: 583.8895706 | E13: 598.0942408 | F13: 550.625 | G13: 611.8 | H13: 321.1363636 | I13: 236.8450704 | J13: 199 | K13: 201 | L13: 207 | M13: 169 | N13: 198 | O13: 149
B14: 906 | C14: Retten i Holstebro | D14: 497.0629921 | E14: 517.1038961 | F14: 389.9166667 | G14: 363 | H14: 256.8157895 | I14: 251.2631579 | J14: 175 | K14: 192 | L14: 185 | M14: 144 | N14: 199 | O14: 187
B15: 907 | C15: Retten i Herning | D15: 442.2238806 | E15: 504 | F15: 348.5 | G15: 288 | H15: 216.1081081 | I15: 202.0232558 | J15: 160 | K15: 180 | L15: 172 | M15: 134 | N15: 170 | O15: 181
B16: 908 | C16: Retten i Horsens | D16: 412.122905 | E16: 454.2037037 | F16: 366 | G16: 409.3 | H16: 247.1089109 | I16: 199.0952381 | J16: 164 | K16: 186 | L16: 113 | M16: 96 | N16: 138 | O16: 149
B17: 909 | C17: Retten i Kolding | D17: 609.3172691 | E17: 651.4146341 | F17: 476.3043478 | G17: 546.7073171 | H17: 363.0833333 | I17: 331.0952381 | J17: 200 | K17: 211 | L17: 166 | M17: 123 | N17: 197 | O17: 144
B18: 910 | C18: Retten i Esbjerg | D18: 561.3793103 | E18: 627.5329949 | F18: 324.0526316 | G18: 300.3 | H18: 258.55 | I18: 258.3802817 | J18: 192 | K18: 222 | L18: 126 | M18: 121 | N18: 190 | O18: 164
B19: 911 | C19: Retten i Sønderborg | D19: 593.0822785 | E19: 670.3020134 | F19: 639 | G19: 512.5294118 | H19: 283 | I19: 372.6666667 | J19: 186 | K19: 201 | L19: 134 | M19: 146 | N19: 175 | O19: 165
B20: 912 | C20: Retten i Odense | D20: 436.4921875 | E20: 428.4694836 | F20: 348.6129032 | G20: 484.3157895 | H20: 223.6170213 | I20: 207.2153846 | J20: 203 | K20: 147 | L20: 125 | M20: 99 | N20: 165 | O20: 149
B21: 913 | C21: Retten i Svendborg | D21: 499.5116279 | E21: 457.0487805 | F21: 453.6153846 | G21: 380 | H21: 348.5263158 | I21: 351.5903614 | J21: 193 | K21: 180 | L21: 113 | M21: 102 | N21: 132 | O21: 110
B22: 914 | C22: Retten i Nykøbing F. | D22: 532.9230769 | E22: 511.1076923 | F22: 454 | G22: 457.4666667 | H22: 319.2413793 | I22: 267.6774194 | J22: 163 | K22: 151 | L22: 139 | M22: 100 | N22: 167 | O22: 124
B23: 915 | C23: Retten i Næstved | D23: 631.8604651 | E23: 667.1578947 | F23: 488.1818182 | G23: 614.8333333 | H23: 376.6538462 | I23: 382.1832061 | J23: 172 | K23: 193 | L23: 213 | M23: 182 | N23: 206 | O23: 203
B24: 916 | C24: Retten i Holbæk | D24: 479.5037594 | E24: 492.7288136 | F24: 413.6666667 | G24: 501.25 | H24: 280.1538462 | I24: 261.7272727 | J24: 147 | K24: 155 | L24: 143 | M24: 164 | N24: 155 | O24: 154
B25: 917 | C25: Retten i Roskilde | D25: 578.0588235 | E25: 580.0681818 | F25: 722.5 | G25: 659 | H25: 327.4488189 | I25: 284.9375 | J25: 180 | K25: 180 | L25: 154 | M25: 133 | N25: 240 | O25: 197
B26: 918 | C26: Retten i Hillerød | D26: 532.7987805 | E26: 535.2297297 | F26: 513.2352941 | G26: 438.5555556 | H26: 297.5652174 | I26: 324.8275862 | J26: 171 | K26: 190 | L26: 104 | M26: 82 | N26: 160 | O26: 171
B27: 919 | C27: Retten i Helsingør | D27: 615.075 | E27: 625.1616766 | F27: 526.8 | G27: 582.9166667 | H27: 399.9259259 | I27: 364.7419355 | J27: 213 | K27: 195 | L27: 130 | M27: 113 | N27: 201 | O27: 200
B28: 920 | C28: Retten i Lyngby | D28: 651.1443299 | E28: 681.4340426 | F28: 748.4651163 | G28: 744.15625 | H28: 432 | I28: 352.5081967 | J28: 234 | K28: 239 | L28: 178 | M28: 188 | N28: 238 | O28: 212
B29: 921 | C29: Retten i Glostrup | D29: 763.0295567 | E29: 771.7123746 | F29: 566.8181818 | G29: 704.7142857 | H29: 555.6216216 | I29: 463.2484472 | J29: 233 | K29: 256 | L29: 176 | M29: 127 | N29: 181 | O29: 172
B30: 922 | C30: Retten på Frederiksberg | D30: 550.1788618 | E30: 581.0327869 | F30: 552.3061224 | G30: 453.8474576 | H30: 298.65625 | I30: 294.46875 | J30: 188 | K30: 194 | L30: 158 | M30: 160 | N30: 186 | O30: 204
B31: 923 | C31: Københavns Byret | D31: 509.4090909 | E31: 545 | F31: 544.0735294 | G31: 521.9090909 | H31: 317.7966102 | I31: 295.5774648 | J31: 212 | K31: 199 | L31: 146 | M31: 155 | N31: 198 | O31: 209
B32: 924 | C32: Retten på Bornholm | D32: 413.4666667 | E32: 359.8181818 | F32: 278 | G32: 406 | H32: 182 | I32: 270.2727273 | J32: 132 | K32: 124 | L32: 135 | M32: 54 | N32: 106 | O32: 108
B34: 1) Alle civile sager med forhandlingsmaksime inkluderer sagstyperne almindelige sager, boligretssager og småsager.

Sheet Sagstid.Foged
B2: GENNEMSNITLIG SAGSBEHANDLINGSTID FOGEDSAGER (DAGE)
B4: EID | C4: Ret | D4: Alm. fogedsager | F4: Særlige fogedsager | H4: Betalingspåkrav | J4: Tvangsauktioner
D5: 2010 | E5: 2011 | F5: 2010 | G5: 2011 | H5: 2010 | I5: 2011 | J5: 2010 | K5: 2011
C6: 5. BEDSTE RET | D6: 57 | E6: 48.64405845 | F6: 38 | G6: 36.42545 | H6: 57 | I6: 51.85348961 | J6: 81 | K6: 76
C7: SAMLET BYRETTERNE | D7: 90.19244826 | E7: 75.19237396 | F7: 58.97301681 | G7: 52.82475197 | H7: 98.15500585 | I7: 80.0792543 | J7: 114.0808203 | K7: 97.85074024
B9: 901 | C9: Retten i Hjørring | D9: 68 | E9: 59.02804965 | F9: 53 | G9: 45.90585 | H9: 87 | I9: 76.09180978 | J9: 120 | K9: 99
B10: 902 | C10: Retten i Aalborg | D10: 72 | E10: 81.29756381 | F10: 56 | G10: 51.6592 | H10: 57 | I10: 61.72036717 | J10: 107 | K10: 107
B11: 903 | C11: Retten i Randers | D11: 75 | E11: 76.65538674 | F11: 52 | G11: 50.91365 | H11: 69 | I11: 73.07960199 | J11: 125 | K11: 108
B12: 904 | C12: Retten i Århus | D12: 83 | E12: 68.09649662 | F12: 32 | G12: 30.48057 | H12: 83 | I12: 87.76239606 | J12: 82 | K12: 101
B13: 905 | C13: Retten i Viborg | D13: 74.56833001 | E13: 70.36160608 | F13: 50.15753 | G13: 50.58587 | H13: 63.04767943 | I13: 58.25081848 | J13: 102 | K13: 119
B14: 906 | C14: Retten i Holstebro | D14: 43.52704117 | E14: 33.32733875 | F14: 37.4488 | G14: 30.00425 | H14: 39.85696203 | I14: 33.64948187 | J14: 70 | K14: 79
B15: 907 | C15: Retten i Herning | D15: 67 | E15: 46.15043463 | F15: 44 | G15: 40.08909 | H15: 80 | I15: 51.85348961 | J15: 90 | K15: 90
B16: 908 | C16: Retten i Horsens | D16: 60 | E16: 53.19851049 | F16: 48 | G16: 45.46824 | H16: 100 | I16: 62.68206115 | J16: 78 | K16: 76
B17: 909 | C17: Retten i Kolding | D17: 57 | E17: 50.7865086 | F17: 38 | G17: 34.07008 | H17: 80 | I17: 62.66887417 | J17: 81 | K17: 68
B18: 910 | C18: Retten i Esbjerg | D18: 51 | E18: 57.25041368 | F18: 35 | G18: 36.42545 | H18: 54 | I18: 58.10553597 | J18: 90 | K18: 90
B19: 911 | C19: Retten i Sønderborg | D19: 65 | E19: 66.74565217 | F19: 52 | G19: 52.6922 | H19: 85 | I19: 69.05746954 | J19: 129 | K19: 114
B20: 912 | C20: Retten i Odense | D20: 66.47992795 | E20: 66.62457364 | F20: 42.53717 | G20: 43.03647 | H20: 77.21742303 | I20: 54.60356789 | J20: 99 | K20: 111
B21: 913 | C21: Retten i Svendborg | D21: 58.94143033 | E21: 39.74894068 | F21: 46.06175 | G21: 31.50586 | H21: 47.19219309 | I21: 46.23712141 | J21: 107 | K21: 91
B22: 914 | C22: Retten i Nykøbing F. | D22: 90.97971117 | E22: 58.32441823 | F22: 58.96614 | G22: 46.22633 | H22: 154.11645 | I22: 78.69364641 | J22: 101 | K22: 84
B23: 915 | C23: Retten i Næstved | D23: 126.1694838 | E23: 90.31952363 | F23: 74.17947 | G23: 55.4766 | H23: 77.55204461 | I23: 73.50144709 | J23: 175 | K23: 125
B24: 916 | C24: Retten i Holbæk | D24: 117 | E24: 79.91707956 | F24: 74 | G24: 57.70107 | H24: 132 | I24: 62.1955095 | J24: 131 | K24: 109
B25: 917 | C25: Retten i Roskilde | D25: 95 | E25: 78.76805332 | F25: 53 | G25: 55.98091 | H25: 134 | I25: 118.3370536 | J25: 103 | K25: 89
B26: 918 | C26: Retten i Hillerød | D26: 98 | E26: 69.77698997 | F26: 41 | G26: 36.61663 | H26: 63 | I26: 58.22771268 | J26: 84 | K26: 69
B27: 919 | C27: Retten i Helsingør | D27: 125 | E27: 80.56226998 | F27: 63 | G27: 56.41712 | H27: 84 | I27: 60.74306365 | J27: 107 | K27: 110
B28: 920 | C28: Retten i Lyngby | D28: 55 | E28: 48.64405845 | F28: 39 | G28: 36.59494 | H28: 62 | I28: 45.5353069 | J28: 67 | K28: 61
B29: 921 | C29: Retten i Glostrup | D29: 115 | E29: 86.84454431 | F29: 90 | G29: 59.25515 | H29: 108 | I29: 70.87386096 | J29: 148 | K29: 98
B30: 922 | C30: Retten på Frederiksberg | D30: 116 | E30: 111.6069617 | F30: 60 | G30: 66.51472 | H30: 93 | I30: 90.29638554 | J30: 138 | K30: 103
B31: 923 | C31: Københavns Byret | D31: 125 | E31: 119.5509634 | F31: 73 | G31: 71.7687 | H31: 201 | I31: 203.9628906 | J31: 170 | K31: 118
B32: 924 | C32: Retten på Bornholm | D32: 34.87174066 | E32: 39.08944028 | F32: 32.37815 | G32: 41.30645 | H32: 34.06336088 | I32: 37.95116279 | J32: 74 | K32: 65

Sheet Sagstid.Skifte
B2: GENNEMSNITLIG SAGSBEHANDLINGSTID SKIFTESAGER (DAGE)
B4: EID | C4: Ret | D4: Boudlæg | F4: Uskiftet bo | H4: Privat skifte | J4: Forenklet privat skifte
D5: 2010 | E5: 2011 | F5: 2010 | G5: 2011 | H5: 2010 | I5: 2011 | J5: 2010 | K5: 2011
C6: 5. BEDSTE RET | D6: 28.97 | E6: 29.32 | F6: 63.96 | G6: 59.07 | H6: 344.39 | I6: 346.07 | J6: 49.5 | K6: 53.46
C7: SAMLET BYRETTERNE | D7: 44.40375702 | E7: 37.99235341 | F7: 77.53290076 | G7: 76.27811949 | H7: 372.4504188 | I7: 362.4446844 | J7: 64.09417258 | K7: 62.15621875
B9: 901 | C9: Retten i Hjørring | D9: 68.16 | E9: 63.54 | F9: 86.08 | G9: 88.33 | H9: 370.43 | I9: 390.39 | J9: 79.64 | K9: 76.97
B10: 902 | C10: Retten i Aalborg | D10: 34.34 | E10: 33.47 | F10: 58.47 | G10: 58.6 | H10: 371.39 | I10: 355.45 | J10: 48.99 | K10: 54.71
B11: 903 | C11: Retten i Randers | D11: 50.57 | E11: 45.74 | F11: 81.19 | G11: 80.72 | H11: 394.87 | I11: 378.62 | J11: 68.52 | K11: 67.31
B12: 904 | C12: Retten i Århus | D12: 46.19 | E12: 39.97 | F12: 81.24 | G12: 83 | H12: 385.02 | I12: 378.63 | J12: 55.52 | K12: 53.89
B13: 905 | C13: Retten i Viborg | D13: 52.09 | E13: 47.73 | F13: 101.52 | G13: 92.56 | H13: 362.66 | I13: 377.52 | J13: 75.62 | K13: 91.05
B14: 906 | C14: Retten i Holstebro | D14: 51.29 | E14: 39.84 | F14: 73.56 | G14: 62.78 | H14: 349.12 | I14: 354.41 | J14: 70.72 | K14: 54.99
B15: 907 | C15: Retten i Herning | D15: 37.26 | E15: 39.85 | F15: 67.59 | G15: 68.72 | H15: 351.2 | I15: 334.92 | J15: 55.67 | K15: 53.46
B16: 908 | C16: Retten i Horsens | D16: 34.23 | E16: 38.44 | F16: 65.48 | G16: 59.07 | H16: 387.35 | I16: 376.94 | J16: 51.26 | K16: 56.85
B17: 909 | C17: Retten i Kolding | D17: 43.9 | E17: 42.16 | F17: 81.83 | G17: 73.79 | H17: 355.22 | I17: 341.94 | J17: 71.01 | K17: 70.44
B18: 910 | C18: Retten i Esbjerg | D18: 28.97 | E18: 29.32 | F18: 68.92 | G18: 71.53 | H18: 331.68 | I18: 336.38 | J18: 51.92 | K18: 48.06
B19: 911 | C19: Retten i Sønderborg | D19: 36.6 | E19: 36.24 | F19: 70.16 | G19: 72.47 | H19: 339.46 | I19: 351.46 | J19: 58.05 | K19: 58.37
B20: 912 | C20: Retten i Odense | D20: 89.65 | E20: 41.23 | F20: 68.28 | G20: 61.38 | H20: 361.45 | I20: 364.45 | J20: 49.5 | K20: 57.82
B21: 913 | C21: Retten i Svendborg | D21: 32.54 | E21: 32.99 | F21: 65.42 | G21: 67.46 | H21: 340.02 | I21: 353.6 | J21: 59.14 | K21: 55.93
B22: 914 | C22: Retten i Nykøbing F. | D22: 38.35 | E22: 34.76 | F22: 45.77 | G22: 47.35 | H22: 364.17 | I22: 346.07 | J22: 49.2 | K22: 48.26
B23: 915 | C23: Retten i Næstved | D23: 49.18 | E23: 46.47 | F23: 47.24 | G23: 44.06 | H23: 378.5 | I23: 365.57 | J23: 91.5 | K23: 77.75
B24: 916 | C24: Retten i Holbæk | D24: 27.97 | E24: 27.83 | F24: 102.42 | G24: 86.28 | H24: 344.39 | I24: 353.89 | J24: 57.71 | K24: 50.2
B25: 917 | C25: Retten i Roskilde | D25: 45.11 | E25: 41.99 | F25: 94.77 | G25: 83.97 | H25: 397.13 | I25: 383.94 | J25: 77.21 | K25: 67.32
B26: 918 | C26: Retten i Hillerød | D26: 28.8 | E26: 31.2 | F26: 92.64 | G26: 100.07 | H26: 368.09 | I26: 350.24 | J26: 71.54 | K26: 67.87
B27: 919 | C27: Retten i Helsingør | D27: 28.31 | E27: 29.28 | F27: 63.96 | G27: 66.6 | H27: 380.42 | I27: 357.73 | J27: 46.47 | K27: 57.17
B28: 920 | C28: Retten i Lyngby | D28: 49.53 | E28: 36.35 | F28: 95.24 | G28: 104.09 | H28: 421.68 | I28: 384.54 | J28: 65.6 | K28: 59.91
B29: 921 | C29: Retten i Glostrup | D29: 37.02 | E29: 37.92 | F29: 86.98 | G29: 95.27 | H29: 378.74 | I29: 358.84 | J29: 71.58 | K29: 68.09
B30: 922 | C30: Retten på Frederiksberg | D30: 40.85 | E30: 33.62 | F30: 123.41 | G30: 97.08 | H30: 377.37 | I30: 357.99 | J30: 63.98 | K30: 61.3
B31: 923 | C31: Københavns Byret | D31: 42.28 | E31: 29.32 | F31: 93.25 | G31: 105.97 | H31: 399.81 | I31: 361.3 | J31: 81.27 | K31: 77.28
B32: 924 | C32: Retten på Bornholm | D32: 15.52 | E32: 17 | F32: 26.83 | G32: 29.47 | H32: 315.99 | I32: 329.93 | J32: 19.81 | K32: 26.57

Sheet HR-nøgletal_lønsum
B2: UDVALGTE HR-NØGLETAL
B4: EID | C4: Ret | D4: Gnst. antal sygedage pr. ansat | F4: Personaleomsætning (%) | H4: Lønsumsforbrug (mio.)
D5: 2010 | E5: 2011 | F5: 2010 | G5: 2011 | H5: 2010 | I5: 2011
C6: 5. BEDSTE RET | D6: 7.5 | E6: 7.2
C7: SAMLET BYRETTERNE | D7: 10.3 | E7: 9.4 | F7: 9.1 | G7: 10.5 | I7: 34.1
B9: 901 | C9: Retten i Hjørring | D9: 6.086013536 | E9: 9.195340336 | F9: 16.1 | G9: 13.3 | H9: 28.55702312 | I9: 25.84077727
B10: 902 | C10: Retten i Aalborg | D10: 7.879051478 | E10: 7.44756948 | F10: 12.6 | G10: 11.1 | H10: 40.69568149 | I10: 38.77436805
B11: 903 | C11: Retten i Randers | D11: 12.16075878 | E11: 7.923213529 | F11: 13.6 | G11: 6.1 | H11: 28.64132008 | I11: 28.27830635
B12: 904 | C12: Retten i Århus | D12: 10.44064694 | E12: 10.94548768 | F12: 5.1 | G12: 11.4 | H12: 44.60559758 | I12: 43.96941009
B13: 905 | C13: Retten i Viborg | D13: 8.644733458 | E13: 7.021671724 | F13: 4.6 | G13: 10.2 | H13: 28.67566336 | I13: 26.64360749
B14: 906 | C14: Retten i Holstebro | D14: 13.91934598 | E14: 7.512563132 | F14: 18.1 | G14: 11.9 | H14: 21.82798543 | I14: 21.76629581
B15: 907 | C15: Retten i Herning | D15: 6.983540585 | E15: 12.53367166 | F15: 4.2 | G15: 17.4 | H15: 21.28914883 | I15: 21.11471095
B16: 908 | C16: Retten i Horsens | D16: 9.728029728 | E16: 9.656788281 | F16: 6.7 | G16: 12.5 | H16: 24.29318801 | I16: 25.08928797
B17: 909 | C17: Retten i Kolding | D17: 7.106268607 | E17: 8.675627926 | F17: 12.4 | G17: 6.1 | H17: 36.92171264 | I17: 36.12998449
B18: 910 | C18: Retten i Esbjerg | D18: 9.997435444 | E18: 9.830962196 | F18: 14.3 | G18: 12.2 | H18: 28.87912257 | I18: 27.40345038
B19: 911 | C19: Retten i Sønderborg | D19: 7.880169516 | E19: 5.1 | F19: 14.7 | G19: 12.9 | H19: 33.33050493 | I19: 32.31378702
B20: 912 | C20: Retten i Odense | D20: 12.60012097 | E20: 7.222463525 | F20: 4 | G20: 20.8 | H20: 43.97215031 | I20: 42.19547545
B21: 913 | C21: Retten i Svendborg | D21: 9.313944501 | E21: 7.534810135 | F21: 8.3 | G21: 13.5 | H21: 21.80040844 | I21: 21.33413431
B22: 914 | C22: Retten i Nykøbing F. | D22: 8.954153072 | E22: 3.1 | F22: 7.3 | G22: 5.9 | H22: 28.26114514 | I22: 27.75952561
B23: 915 | C23: Retten i Næstved | D23: 11.13291785 | E23: 9.143692893 | F23: 8.8 | G23: 8.7 | H23: 33.84379004 | I23: 33.44395386
B24: 916 | C24: Retten i Holbæk | D24: 16.58498693 | E24: 10.0927266 | F24: 3.6 | G24: 3.7 | H24: 24.65045647 | I24: 24.06054675
B25: 917 | C25: Retten i Roskilde | D25: 11.23169131 | E25: 8.041632025 | F25: 10.8 | G25: 8.1 | H25: 42.34975582 | I25: 40.35202857
B26: 918 | C26: Retten i Hillerød | D26: 5.779228549 | E26: 10.53646297 | F26: 6.3 | G26: 15.7 | H26: 29.40745557 | I26: 28.1485882
B27: 919 | C27: Retten i Helsingør | D27: 9.141667559 | E27: 8.100239201 | F27: 7.9 | G27: 11 | H27: 28.26124847 | I27: 27.2421141
B28: 920 | C28: Retten i Lyngby | D28: 12.44791936 | E28: 13.96319244 | F28: 10.6 | G28: 11.4 | H28: 31.25930623 | I28: 32.28066977
B29: 921 | C29: Retten i Glostrup | D29: 10.74525425 | E29: 10.93379043 | F29: 8.1 | G29: 11.7 | H29: 60.40716146 | I29: 61.81072972
B30: 922 | C30: Retten på Frederiksberg | D30: 11.58837139 | E30: 13.6 | F30: 7 | G30: 6.9 | H30: 43.522526 | I30: 41.59169201
B31: 923 | C31: Københavns Byret | D31: 11.82564679 | E31: 9.68431915 | F31: 8.6 | G31: 7 | H31: 104.7107975 | I31: 102.5840725
B32: 924 | C32: Retten på Bornholm | D32: 7.49434803 | E32: 6.887992143 | F32: 9.7 | G32: 6.4 | H32: 7.35925936 | I32: 7.34
B34: 1) Tallene er ekskl. ansatte under socialt kapitel. Deltidssygdom, barns sygdom, omsorgsdage og særlige feriedage indgår ikke.
B35: 2) Fraværsdata for Retten i Sønderborg, Retten i Nykøbing Falster samt Retten på Frederiksberg er ikke kommet med i Moderniseringsstyrelsen kørsel for 2011 som følge af manglede data for et eller flere kvartaler af 2011. Retterne har imidlertid indberettet korrekt, hvorfor styrelsen er ved at undersøge sagen nærmere. Det gennemsnitlige sygefravær er ved disse retter fastlagt efter kontakt til de tre retters administration. Det samlede tal for byretterne er eksklusiv de tre retter.
B38: 3) Lønsumsforbruget inkluderer egentlig løn, over- og merarbejde, stævningsmænd, refusioner og pensionsbidrag og er i faste priser.

Sheet Årsværk_Pers.kat
B2: ÅRSVÆRKSFORBRUG 2010 OG 2011
B4: EID | C4: Ret | D4: Jur | E4: Kon | F4: Elev | G4: Fleks | H4: Øvr. | I4: I ALT | J4: Jur | K4: Kon | L4: Elev | M4: Fleks | N4: Øvr. | O4: I ALT | P4: Jur | Q4: Kon | R4: Elev | S4: Fleks | T4: Øvr. | U4: I ALT | V4: Jur | W4: Kon | X4: Elev | Y4: Fleks | Z4: Øvr. | AA4: I ALT
D5: 2010 | J5: 2011 | P5: 2010 | V5: 2011
D6: - absolutte tal - | J6: - absolutte tal - | P6: - indeks - | V6: - indeks -
C8: SAMLET BYRETTERNE | D8: 451.55803 | E8: 1035.69244 | F8: 98.03068 | G8: 68.42674 | H8: 105.43503 | I8: 1759.14292 | J8: 459.97151 | K8: 970.17115 | L8: 97.17553 | M8: 65.82155 | N8: 98.4541 | O8: 1691.59384 | P8: 100 | Q8: 100 | R8: 100 | S8: 100 | T8: 100 | U8: 100 | V8: 101.8632112 | W8: 93.67367305 | X8: 99.12767105 | Y8: 96.19273109 | Z8: 93.37892729 | AA8: 96.16011415
B10: 901 | C10: Retten i Hjørring | D10: 13.69261 | E10: 35.55287 | F10: 3.93209 | G10: 2.98196 | H10: 3.34406 | I10: 59.50359 | J10: 13.34803 | K10: 33.06976 | L10: 4.25637 | M10: 5.87855 | N10: 3.24255 | O10: 59.79526 | P10: 100 | Q10: 100 | R10: 100 | S10: 100 | T10: 100 | U10: 100 | V10: 97.48346006 | W10: 93.01572559 | X10: 108.2470137 | Y10: 197.1371179 | Z10: 96.96446834 | AA10: 100.4901721
B11: 902 | C11: Retten i Aalborg | D11: 22.64668 | E11: 53.7884 | F11: 4.40719 | G11: 2.32097 | H11: 3.39503 | I11: 86.55827 | J11: 22.18722 | K11: 48.742 | L11: 3.48386 | M11: 2.58762 | N11: 3.50828 | O11: 80.50898 | P11: 100 | Q11: 100 | R11: 100 | S11: 100 | T11: 100 | U11: 100 | V11: 97.97118165 | W11: 90.61805148 | X11: 79.04946236 | Y11: 111.488731 | Z11: 103.3357584 | AA11: 93.01130903
B12: 903 | C12: Retten i Randers | D12: 13.744 | E12: 33.595 | F12: 3.90339 | G12: 2.27905 | H12: 4.87725 | I12: 58.39869 | J12: 16.642 | K12: 31.602 | L12: 3.97813 | M12: 2.01327 | N12: 3.93487 | O12: 58.17027 | P12: 100 | Q12: 100 | R12: 100 | S12: 100 | T12: 100 | U12: 100 | V12: 121.0855646 | W12: 94.06756958 | X12: 101.9147459 | Y12: 88.33812334 | Z12: 80.67804603 | AA12: 99.60886109
B13: 904 | C13: Retten i Århus | D13: 25.70209 | E13: 54.07146 | F13: 3.99131 | G13: 3.00006 | H13: 6.67955 | I13: 93.44447 | J13: 26.56876 | K13: 50.61565 | L13: 4.1965 | M13: 3.00009 | N13: 5.62105 | O13: 90.00205 | P13: 100 | Q13: 100 | R13: 100 | S13: 100 | T13: 100 | U13: 100 | V13: 103.3719826 | W13: 93.60880953 | X13: 105.1409186 | Y13: 100.001 | Z13: 84.15312409 | AA13: 96.31607949
B14: 905 | C14: Retten i Viborg | D14: 16.05963 | E14: 34.73475 | F14: 3.87549 | G14: 1.75305 | H14: 3.57741 | I14: 60.00033 | J14: 15.1701 | K14: 30.18242 | L14: 4.24273 | M14: 2.50961 | N14: 3.09173 | O14: 55.19659 | P14: 100 | Q14: 100 | R14: 100 | S14: 100 | T14: 100 | U14: 100 | V14: 94.46108036 | W14: 86.89401824 | X14: 109.475963 | Y14: 143.1567839 | Z14: 86.42369759 | AA14: 91.9938107
B15: 906 | C15: Retten i Holstebro | D15: 11.065 | E15: 24.878 | F15: 2.63594 | G15: 6.00326 | H15: 3.62041 | I15: 48.20261 | J15: 11.27 | K15: 23.056 | L15: 2.89081 | M15: 5.50015 | N15: 3.72407 | O15: 46.44103 | P15: 100 | Q15: 100 | R15: 100 | S15: 100 | T15: 100 | U15: 100 | V15: 101.8526887 | W15: 92.67626015 | X15: 109.6690365 | Y15: 91.6193868 | Z15: 102.8632116 | AA15: 96.3454676
B16: 907 | C16: Retten i Herning | D16: 11.20923 | E16: 26.84309 | F16: 3.90775 | G16: 1.32892 | H16: 3.19179 | I16: 46.48078 | J16: 11.84873 | K16: 23.57106 | L16: 3.51837 | M16: 0.90293 | N16: 2.68506 | O16: 42.52615 | P16: 100 | Q16: 100 | R16: 100 | S16: 100 | T16: 100 | U16: 100 | V16: 105.7051198 | W16: 87.8105315 | X16: 90.03569829 | Y16: 67.94464678 | Z16: 84.12395552 | AA16: 91.49190267
B17: 908 | C17: Retten i Horsens | D17: 13.90104 | E17: 27.72214 | F17: 4.1952 | G17: 4.1437 | H17: 3.08797 | I17: 53.05005 | J17: 14.38903 | K17: 26.41923 | L17: 4.79205 | M17: 4.71815 | N17: 3.09207 | O17: 53.41053 | P17: 100 | Q17: 100 | R17: 100 | S17: 100 | T17: 100 | U17: 100 | V17: 103.5104568 | W17: 95.30011031 | X17: 114.2269737 | Y17: 113.863214 | Z17: 100.1327733 | AA17: 100.6795093
B18: 909 | C18: Retten i Kolding | D18: 19.82477 | E18: 49.10919 | F18: 4.27898 | G18: 3.24286 | H18: 3.61937 | I18: 80.07517 | J18: 20.54952 | K18: 45.06554 | L18: 4.74417 | M18: 3.00296 | N18: 3.32531 | O18: 76.6875 | P18: 100 | Q18: 100 | R18: 100 | S18: 100 | T18: 100 | U18: 100 | V18: 103.6557801 | W18: 91.76600143 | X18: 110.8715161 | Y18: 92.60220916 | Z18: 91.87538163 | AA18: 95.76938769
B19: 910 | C19: Retten i Esbjerg | D19: 15.4229 | E19: 35.77815 | F19: 4.38041 | G19: 3.23209 | H19: 3.27064 | I19: 62.08419 | J19: 15.1442 | K19: 32.03157 | L19: 3.74224 | M19: 2.81389 | N19: 2.50006 | O19: 56.23196 | P19: 100 | Q19: 100 | R19: 100 | S19: 100 | T19: 100 | U19: 100 | V19: 98.19294685 | W19: 89.52830149 | X19: 85.43127242 | Y19: 87.06100387 | Z19: 76.43947362 | AA19: 90.57371933
B20: 911 | C20: Retten i Sønderborg | D20: 15.136 | E20: 37.78 | F20: 3.9922 | G20: 1 | H20: 4.68546 | I20: 62.59366 | J20: 15.411 | K20: 36.905 | L20: 4.01558 | M20: 1.00003 | N20: 5.25404 | O20: 62.58565 | P20: 100 | Q20: 100 | R20: 100 | S20: 100 | T20: 100 | U20: 100 | V20: 101.8168605 | W20: 97.68395977 | X20: 100.585642 | Y20: 100.003 | Z20: 112.1349878 | AA20: 99.98720318
B21: 912 | C21: Retten i Odense | D21: 25.21165 | E21: 55.31165 | F21: 4.14918 | G21: 5.9139 | H21: 5.17224 | I21: 95.75862 | J21: 24.26146 | K21: 52.27552 | L21: 3.89836 | M21: 4.02736 | N21: 4.72487 | O21: 89.18757 | P21: 100 | Q21: 100 | R21: 100 | S21: 100 | T21: 100 | U21: 100 | V21: 96.23114711 | W21: 94.51086706 | X21: 93.95495013 | Y21: 68.09990024 | Z21: 91.35055605 | AA21: 93.13790236
B22: 913 | C22: Retten i Svendborg | D22: 10.96216 | E22: 28.82594 | F22: 3.40608 | G22: 0.8899 | H22: 4.2062 | I22: 48.29028 | J22: 12.16381 | K22: 26.86367 | L22: 4.24115 | M22: 1.00003 | N22: 2.36069 | O22: 46.62935 | P22: 100 | Q22: 100 | R22: 100 | S22: 100 | T22: 100 | U22: 100 | V22: 110.9617995 | W22: 93.1926938 | X22: 124.5170401 | Y22: 112.3755478 | Z22: 56.12405497 | AA22: 96.56052937
B23: 914 | C23: Retten i Nykøbing F. | D23: 15.91843 | E23: 35.03978 | F23: 2.72511 | G23: 0.24254 | H23: 3.82975 | I23: 57.75561 | J23: 15.11914 | K23: 36.06329 | L23: 2.13571 | M23: 0.30619 | N23: 4.09439 | O23: 57.71872 | P23: 100 | Q23: 100 | R23: 100 | S23: 100 | T23: 100 | U23: 100 | V23: 94.97883899 | W23: 102.9209944 | X23: 78.37151528 | Y23: 126.2430939 | Z23: 106.9101116 | AA23: 99.93612742
B24: 915 | C24: Retten i Næstved | D24: 18.27248 | E24: 43.99497 | F24: 3.95315 | G24: 2.82343 | H24: 4.62996 | I24: 73.67399 | J24: 19.95737 | K24: 40.2327 | L24: 4.28792 | M24: 3.04111 | N24: 4.43649 | O24: 71.95559 | P24: 100 | Q24: 100 | R24: 100 | S24: 100 | T24: 100 | U24: 100 | V24: 109.2209158 | W24: 91.44840876 | X24: 108.4684366 | Y24: 107.7097714 | Z24: 95.82134619 | AA24: 97.66756219
B25: 916 | C25: Retten i Holbæk | D25: 13.08367 | E25: 31.20341 | F25: 2.65225 | G25: 3.00009 | H25: 2.68724 | I25: 52.62666 | J25: 12.96697 | K25: 31.22812 | L25: 3.06095 | M25: 3.00009 | N25: 2.59192 | O25: 52.84805 | P25: 100 | Q25: 100 | R25: 100 | S25: 100 | T25: 100 | U25: 100 | V25: 99.10804843 | W25: 100.0791901 | X25: 115.4095579 | Y25: 100 | Z25: 96.45286614 | AA25: 100.4206803
B26: 917 | C26: Retten i Roskilde | D26: 22.84629 | E26: 51.5666 | F26: 6.62337 | G26: 0.33336 | H26: 4.16561 | I26: 85.53523 | J26: 20.991 | K26: 50.15184 | L26: 5.69283 | M26: 1.00003 | N26: 4.09721 | O26: 81.93291 | P26: 100 | Q26: 100 | R26: 100 | S26: 100 | T26: 100 | U26: 100 | V26: 91.87925042 | W26: 97.25644118 | X26: 85.95065654 | Y26: 299.9850012 | Z26: 98.35798358 | AA26: 95.78849557
B27: 918 | C27: Retten i Hillerød | D27: 15.37645 | E27: 34.5988 | F27: 3.61329 | G27: 5.72636 | H27: 4.16824 | I27: 63.48314 | J27: 15.51429 | K27: 31.81079 | L27: 4.37167 | M27: 4.03952 | N27: 4.2022 | O27: 59.93847 | P27: 100 | Q27: 100 | R27: 100 | S27: 100 | T27: 100 | U27: 100 | V27: 100.8964358 | W27: 91.94188816 | X27: 120.9886281 | Y27: 70.54254361 | Z27: 100.8147324 | AA27: 94.41636
B28: 919 | C28: Retten i Helsingør | D28: 16.76 | E28: 33.26234 | F28: 3.5743 | G28: 4.96051 | H28: 3.69192 | I28: 62.24907 | J28: 16.67005 | K28: 30.65085 | L28: 4.08111 | M28: 4.93848 | N28: 3.15423 | O28: 59.49472 | P28: 100 | Q28: 100 | R28: 100 | S28: 100 | T28: 100 | U28: 100 | V28: 99.46330549 | W28: 92.14880853 | X28: 114.1792799 | Y28: 99.55589244 | Z28: 85.43603328 | AA28: 95.57527526
B29: 920 | C29: Retten i Lyngby | D29: 16.76766 | E29: 38.68775 | F29: 4.18228 | G29: 3.94601 | H29: 4.03922 | I29: 67.62292 | J29: 18.96953 | K29: 37.24601 | L29: 2.56072 | M29: 2.20303 | N29: 3.74952 | O29: 64.72881 | P29: 100 | Q29: 100 | R29: 100 | S29: 100 | T29: 100 | U29: 100 | V29: 113.1316475 | W29: 96.27339403 | X29: 61.22784701 | Y29: 55.82930606 | Z29: 92.82782319 | AA29: 95.72022326
B30: 921 | C30: Retten i Glostrup | D30: 31.54897 | E30: 78.18771 | F30: 4.94733 | G30: 4.68435 | H30: 8.8668 | I30: 128.23516 | J30: 35.62068 | K30: 77.10199 | L30: 5.24318 | M30: 3.33831 | N30: 9.58157 | O30: 130.88573 | P30: 100 | Q30: 100 | R30: 100 | S30: 100 | T30: 100 | U30: 100 | V30: 112.9059998 | W30: 98.61139302 | X30: 105.9799932 | Y30: 71.26517019 | Z30: 108.0611946 | AA30: 102.0669604
B31: 922 | C31: Retten på Frederiksberg | D31: 25.36592 | E31: 53.79284 | F31: 4.47305 | G31: 2.99128 | H31: 5.11596 | I31: 91.73905 | J31: 23.5809 | K31: 50.499 | L31: 3.40913 | M31: 3.00009 | N31: 5.13298 | O31: 85.6221 | P31: 100 | Q31: 100 | R31: 100 | S31: 100 | T31: 100 | U31: 100 | V31: 92.96292033 | W31: 93.87680591 | X31: 76.21488693 | Y31: 100.2945227 | Z31: 100.3326844 | AA31: 93.33222875
B32: 923 | C32: Københavns Byret | D32: 57.32109 | E32: 128.95047 | F32: 8.16004 | G32: 1.62909 | H32: 10.36918 | I32: 206.42987 | J32: 57.94189 | K32: 116.4215 | L32: 8.25537 | M32: 2.00006 | N32: 9.14985 | O32: 193.76867 | P32: 100 | Q32: 100 | R32: 100 | S32: 100 | T32: 100 | U32: 100 | V32: 101.083022 | W32: 90.28388962 | X32: 101.1682541 | Y32: 122.7716087 | Z32: 88.24082521 | AA32: 93.8665853
B33: 924 | C33: Retten på Bornholm | D33: 3.71931 | E33: 8.41713 | F33: 2.0713 | G33: 0 | H33: 1.14377 | I33: 15.35151 | J33: 3.68583 | K33: 8.36564 | L33: 2.07662 | M33: 0 | N33: 1.19909 | O33: 15.32718 | P33: 100 | Q33: 100 | R33: 100 | S33: - | T33: 100 | U33: 100 | V33: 99.09983303 | W33: 99.3882713 | X33: 100.2568435 | Y33: - | Z33: 104.8366367 | AA33: 99.84151396
B35: 1) Det opgjorte årsværksforbrug er inkl. de korrektioner, der foretages som led i produktivitetsberegningen, hvorfor det ikke kan stemmes af i forhold til eksempelvis prognoseværktøjet SOL.

Sheet Årsværk_Sagsområder
B2: ÅRSVÆRKSFORBRUG DE ENKELTE SAGSOMRÅDER I 2011
B4: EID | C4: Ret | E4: Straf | G4: Civil | I4: Foged | K4: Skifte | M4: Notarial
E5: Årsværk | F5: % | G5: Årsværk | H5: % | I5: Årsværk | J5: % | K5: Årsværk | L5: % | M5: Årsværk | N5: %
C7: SAMLET BYRETTERNE | D7: Jurister | E7: 155.7507819 | F7: 0.3386096279 | G7: 165.8270726 | H7: 0.3605159646 | I7: 52.17725748 | J7: 0.1134358462 | K7: 45.18859445 | L7: 0.0982421595 | M7: 0.4588700448 | N7: 0.0009976053621
D8: Kontor | E8: 202.5148359 | F8: 0.2087413504 | G8: 185.3054244 | H8: 0.1910028188 | I8: 231.5844837 | J8: 0.2387047725 | K8: 163.5360042 | L8: 0.1685640768 | M8: 12.73722755 | N8: 0.01312884592
D9: Elev | E9: 17.68027607 | F9: 0.181941648 | G9: 16.77385626 | H9: 0.172613993 | I9: 27.80629505 | J9: 0.2861450311 | K9: 19.29311147 | L9: 0.198538783 | M9: 0.05516821229 | N9: 0.0005677171227
D10: Fleks | E10: 6.285304333 | F10: 0.09549006872 | G10: 10.06919577 | H10: 0.1529771901 | I10: 11.36382237 | J10: 0.1726459247 | K10: 7.493473423 | L10: 0.1138452896 | M10: 0.9611797552 | N10: 0.01460281253
D11: Øvrige | E11: 4.566025829 | F11: 0.04637720348 | G11: 4.048830292 | H11: 0.04112403945 | I11: 5.605620971 | J11: 0.05693638935 | K11: 0.8968001987 | L11: 0.00910881516 | M11: 0.08617461389 | N11: 0.0008752770468
B13: 901 | C13: Retten i Hjørring | D13: Jurister | E13: 4.144686206 | F13: 0.3105092067 | G13: 5.107225646 | H13: 0.3826201803 | I13: 1.479946907 | J13: 0.1108738074 | K13: 1.556696182 | L13: 0.1166236652 | M13: 0.0001153541016 | N13: 8.642031943e-06
B14: 901 | C14: Retten i Hjørring | D14: Kontor | E14: 6.387676088 | F14: 0.1931576186 | G14: 6.614799338 | H14: 0.2000256227 | I14: 8.764982685 | J14: 0.2650452463 | K14: 6.400009737 | L14: 0.1935305771 | M14: 0.1928949363 | N14: 0.005832970555
B15: 901 | C15: Retten i Hjørring | D15: Elev | E15: 0.2642261321 | F15: 0.06207781092 | G15: 1.183183961 | H15: 0.2779795837 | I15: 0.816918957 | J15: 0.1919285581 | K15: 0.9041160316 | L15: 0.2124148116 | M15: 0 | N15: 0
B16: 901 | C16: Retten i Hjørring | D16: Fleks | E16: 1.77454985 | F16: 0.3018686326 | G16: 1.781014678 | H16: 0.3029683644 | I16: 1.054413887 | J16: 0.179366321 | K16: 0.5604735235 | L16: 0.09534213768 | M16: 0.400207903 | N16: 0.06807935681
B17: 901 | C17: Retten i Hjørring | D17: Øvrige | E17: 0.01978858701 | F17: 0.006102785465 | G17: 0.07367616116 | H17: 0.02272167311 | I17: 0.174127208 | J17: 0.053700701 | K17: 0.08080086779 | L17: 0.02491892732 | M17: 0 | N17: 0
B18: 902 | C18: Retten i Aalborg | D18: Jurister | E18: 7.185968402 | F18: 0.3238787195 | G18: 8.274444085 | H18: 0.3729373975 | I18: 2.757508574 | J18: 0.124283645 | K18: 2.690148644 | L18: 0.1212476662 | M18: 0.009531575603 | N18: 0.0004295975612
B19: 902 | C19: Retten i Aalborg | D19: Kontor | E19: 8.953169108 | F19: 0.1836848941 | G19: 9.770315644 | H19: 0.2004496254 | I19: 10.5601781 | J19: 0.2166545915 | K19: 10.3949031 | L19: 0.2132637786 | M19: 0.5588083232 | N19: 0.01146461621
B20: 902 | C20: Retten i Aalborg | D20: Elev | E20: 0.4432502947 | F20: 0.1272296518 | G20: 0.8979141032 | H20: 0.2577354151 | I20: 1.051748472 | J20: 0.3018917156 | K20: 0.8953066567 | L20: 0.256986979 | M20: 0 | N20: 0
B21: 902 | C21: Retten i Aalborg | D21: Fleks | E21: 7.835501916e-05 | F21: 3.028072868e-05 | G21: 0.3551974229 | H21: 0.1372680003 | I21: 0.2927269907 | J21: 0.1131259577 | K21: 0.9951380468 | L21: 0.3845765788 | M21: 0 | N21: 0
B22: 902 | C22: Retten i Aalborg | D22: Øvrige | E22: 1.300578311 | F22: 0.3707167931 | G22: 0 | H22: 0 | I22: 0.950007851 | J22: 0.2707902023 | K22: 0 | L22: 0 | M22: 0 | N22: 0
B23: 903 | C23: Retten i Randers | D23: Jurister | E23: 5.236686542 | F23: 0.3146668995 | G23: 5.493518704 | H23: 0.3300996698 | I23: 1.484971587 | J23: 0.08923035615 | K23: 1.805581949 | L23: 0.1084954903 | M23: 0.006224084408 | N23: 0.0003739985824
B24: 903 | C24: Retten i Randers | D24: Kontor | E24: 6.769953532 | F24: 0.2142254772 | G24: 5.708002583 | H24: 0.1806215614 | I24: 7.083891849 | J24: 0.2241596054 | K24: 7.03827796 | L24: 0.2227162192 | M24: 0.3677863979 | N24: 0.01163807347
B25: 903 | C25: Retten i Randers | D25: Elev | E25: 0.8083495743 | F25: 0.2031983807 | G25: 0.5329950002 | H25: 0.1339812928 | I25: 1.000200596 | J25: 0.2514248142 | K25: 0.7370181214 | L25: 0.1852674803 | M25: 0 | N25: 0
B26: 903 | C26: Retten i Randers | D26: Fleks | E26: 0 | F26: 0 | G26: 0 | H26: 0 | I26: 0 | J26: 0 | K26: 0 | L26: 0 | M26: 0 | N26: 0
B27: 903 | C27: Retten i Randers | D27: Øvrige | E27: 0 | F27: 0 | G27: 0.01340165115 | H27: 0.003405868848 | I27: 0.2379410997 | J27: 0.06046987569 | K27: 0.01408876324 | L27: 0.003580490141 | M27: 0 | N27: 0
B28: 904 | C28: Retten i Århus | D28: Jurister | E28: 8.696826346 | F28: 0.3273327903 | G28: 10.0184624 | H28: 0.3770767772 | I28: 2.243026866 | J28: 0.08442346823 | K28: 3.313320258 | L28: 0.1247073728 | M28: 0.01379649474 | N28: 0.0005192750713
B29: 904 | C29: Retten i Århus | D29: Kontor | E29: 11.88712674 | F29: 0.2348508168 | G29: 13.49439019 | H29: 0.2666050953 | I29: 8.647731977 | J29: 0.1708509518 | K29: 7.786390525 | L29: 0.1538336567 | M29: 0.7838608259 | N29: 0.01548653086
B30: 904 | C30: Retten i Århus | D30: Elev | E30: 0.3725693936 | F30: 0.08878098262 | G30: 0.6006904826 | H30: 0.1431408275 | I30: 1.903431849 | J30: 0.4535760394 | K30: 0.6039979698 | L30: 0.1439289812 | M30: 0.003108327586 | N30: 0.0007406952427
B31: 904 | C31: Retten i Århus | D31: Fleks | E31: 0.09762779815 | F31: 0.03254162313 | G31: 0.9024022018 | H31: 0.3007917102 | I31: 1.00003 | J31: 0.3333333333 | K31: 0.1659598675 | L31: 0.0553182963 | M31: 0.002110725488 | N31: 0.0007035540559
B32: 904 | C32: Retten i Århus | D32: Øvrige | E32: 0.5916695814 | F32: 0.105259619 | G32: 0.3553611025 | H32: 0.0632197014 | I32: 0.5306575682 | J32: 0.09440541682 | K32: 0.00625999723 | L32: 0.00111367044 | M32: 0.004459144882 | N32: 0.0007932939365
B33: 905 | C33: Retten i Viborg | D33: Jurister | E33: 4.215991985 | F33: 0.277914581 | G33: 5.775740246 | H33: 0.3807318505 | I33: 1.592009434 | J33: 0.1049438985 | K33: 2.324850557 | L33: 0.1532521577 | M33: 0.01928990501 | N33: 0.001271574018
B34: 905 | C34: Retten i Viborg | D34: Kontor | E34: 4.300008228 | F34: 0.1424673114 | G34: 6.069458785 | H34: 0.2010925163 | I34: 8.64775959 | J34: 0.286516442 | K34: 5.520758694 | L34: 0.1829130565 | M34: 0.3652266643 | N34: 0.01210064217
B35: 905 | C35: Retten i Viborg | D35: Elev | E35: 0.9518688638 | F35: 0.2243529199 | G35: 0.5430037385 | H35: 0.1279845143 | I35: 1.425680945 | J35: 0.3360291476 | K35: 0.7648791616 | L35: 0.1802799522 | M35: 0 | N35: 0
B36: 905 | C36: Retten i Viborg | D36: Fleks | E36: 0.4320599646 | F36: 0.1721621943 | G36: 0.3367898821 | H36: 0.1342000877 | I36: 1.151319648 | J36: 0.4587643691 | K36: 0.0009441541191 | L36: 0.0003762154754 | M36: 0 | N36: 0
B37: 905 | C37: Retten i Viborg | D37: Øvrige | E37: 0.06662196716 | F37: 0.02154844283 | G37: 0.01348788342 | H37: 0.004362568341 | I37: 0.2425874451 | J37: 0.07846333447 | K37: 0 | L37: 0 | M37: 0 | N37: 0
B38: 906 | C38: Retten i Holstebro | D38: Jurister | E38: 3.242183635 | F38: 0.287682665 | G38: 3.773083501 | H38: 0.3347900178 | I38: 0.8248368551 | J38: 0.07318871829 | K38: 1.527414271 | L38: 0.1355292166 | M38: 0.00736009542 | N38: 0.0006530696912
B39: 906 | C39: Retten i Holstebro | D39: Kontor | E39: 4.472791496 | F39: 0.1939968553 | G39: 5.115486786 | H39: 0.2218722583 | I39: 4.480641201 | J39: 0.1943373179 | K39: 5.373314598 | L39: 0.2330549357 | M39: 0.2525087757 | N39: 0.01095197674
B40: 906 | C40: Retten i Holstebro | D40: Elev | E40: 0.2445035533 | F40: 0.08457959994 | G40: 0.9204480017 | H40: 0.3184048767 | I40: 0.8530450505 | J40: 0.2950885913 | K40: 0.5042345362 | L40: 0.1744267303 | M40: 0.0004251763208 | N40: 0.0001470786115
B41: 906 | C41: Retten i Holstebro | D41: Fleks | E41: 0.0003501336724 | F41: 6.365893155e-05 | G41: 0.005110194262 | H41: 0.0009291008903 | I41: 0 | J41: 0 | K41: 1.008851811 | L41: 0.1834225996 | M41: 0 | N41: 0
B42: 906 | C42: Retten i Holstebro | D42: Øvrige | E42: 0.08640865077 | F42: 0.02320274613 | G42: 0.1090158359 | H42: 0.02927330472 | I42: 0.1174033484 | J42: 0.03152554824 | K42: 0.1340349138 | L42: 0.03599151301 | M42: 0.0712252106 | N42: 0.0191256369
B43: 907 | C43: Retten i Herning | D43: Jurister | E43: 4.056451255 | F43: 0.3423532526 | G43: 3.657913554 | H43: 0.3087177743 | I43: 1.278290377 | J43: 0.1078841679 | K43: 1.901963623 | L43: 0.1605204628 | M43: 0.05957875131 | N43: 0.005028281623
B44: 907 | C44: Retten i Herning | D44: Kontor | E44: 4.090010115 | F44: 0.1735182938 | G44: 4.18152037 | H44: 0.1774006078 | I44: 4.691020234 | J44: 0.1990160915 | K44: 5.540141667 | L44: 0.2350399883 | M44: 0.4677340288 | N44: 0.01984357211
B45: 907 | C45: Retten i Herning | D45: Elev | E45: 0.5941935999 | F45: 0.1688832044 | G45: 0.1168771458 | H45: 0.03321911732 | I45: 1.049903626 | J45: 0.2984062579 | K45: 1.026539963 | L45: 0.2917657786 | M45: 0 | N45: 0
B46: 907 | C46: Retten i Herning | D46: Fleks | E46: 0 | F46: 0 | G46: 0.01794067069 | H46: 0.01986939264 | I46: 0.6991118507 | J46: 0.7742702654 | K46: 0 | L46: 0 | M46: 0 | N46: 0
B47: 907 | C47: Retten i Herning | D47: Øvrige | E47: 0 | F47: 0 | G47: 0 | H47: 0 | I47: 0 | J47: 0 | K47: 0 | L47: 0 | M47: 0 | N47: 0
B48: 908 | C48: Retten i Horsens | D48: Jurister | E48: 4.40360603 | F48: 0.3060391166 | G48: 6.18594211 | H48: 0.4299068186 | I48: 1.242359383 | J48: 0.08634073199 | K48: 1.411219839 | L48: 0.09807609264 | M48: 0.01256935059 | N48: 0.0008735370343
B49: 908 | C49: Retten i Horsens | D49: Kontor | E49: 3.44587105 | F49: 0.1304304119 | G49: 7.0510466 | H49: 0.2668906929 | I49: 6.614951637 | J49: 0.2503839679 | K49: 4.144752418 | L49: 0.156883922 | M49: 0.3006687053 | N49: 0.01138067632
B50: 908 | C50: Retten i Horsens | D50: Elev | E50: 0.2578834634 | F50: 0.0538148524 | G50: 1.942938626 | H50: 0.4054504077 | I50: 1.315552422 | J50: 0.2745281085 | K50: 0.7039151558 | L50: 0.1468922811 | M50: 0 | N50: 0
B51: 908 | C51: Retten i Horsens | D51: Fleks | E51: 0.03289784669 | F51: 0.006972615684 | G51: 1.646479414 | H51: 0.3489671616 | I51: 0 | J51: 0 | K51: 1.013131022 | L51: 0.2147305664 | M51: 0 | N51: 0
B52: 908 | C52: Retten i Horsens | D52: Øvrige | E52: 0 | F52: 0 | G52: 0.01686032609 | H52: 0.005452763389 | I52: 0.006534867854 | J52: 0.002113428174 | K52: 0 | L52: 0 | M52: 0 | N52: 0
B53: 909 | C53: Retten i Kolding | D53: Jurister | E53: 7.201931111 | F53: 0.3504671209 | G53: 8.240665673 | H53: 0.4010149956 | I53: 2.121126057 | J53: 0.103220224 | K53: 1.592448046 | L53: 0.07749319916 | M53: 0.008942988455 | N53: 0.000435192085
B54: 909 | C54: Retten i Kolding | D54: Kontor | E54: 9.801400278 | F54: 0.2174921299 | G54: 10.42134635 | H54: 0.2312486737 | I54: 8.500798932 | J54: 0.188631911 | K54: 8.58452957 | L54: 0.1904898859 | M54: 0.7229123347 | N54: 0.01604135521
B55: 909 | C55: Retten i Kolding | D55: Elev | E55: 0.8451363098 | F55: 0.1781420796 | G55: 0.8519462082 | H55: 0.1795775042 | I55: 0.9758530384 | J55: 0.2056952087 | K55: 1.454451065 | L55: 0.3065765066 | M55: 0.00922339596 | N55: 0.001944153763
B56: 909 | C56: Retten i Kolding | D56: Fleks | E56: 0.9739156583 | F56: 0.3243185585 | G56: 0 | H56: 0 | I56: 0.002620226883 | J56: 0.0008725480469 | K56: 0.02631229974 | L56: 0.008762121285 | M56: 0 | N56: 0
B57: 909 | C57: Retten i Kolding | D57: Øvrige | E57: 0.004561732937 | F57: 0.001371821856 | G57: 0.008243702442 | H57: 0.002479077873 | I57: 0.1831368009 | J57: 0.05507360242 | K57: 0 | L57: 0 | M57: 0 | N57: 0
B58: 910 | C58: Retten i Esbjerg | D58: Jurister | E58: 6.613503597 | F58: 0.4367020772 | G58: 5.08467291 | H58: 0.3357505124 | I58: 1.302765815 | J58: 0.08602407625 | K58: 0.9491769969 | L58: 0.06267594174 | M58: 0.03371288617 | N58: 0.002226125261
B59: 910 | C59: Retten i Esbjerg | D59: Kontor | E59: 6.579255188 | F59: 0.2053990856 | G59: 5.942453376 | H59: 0.1855186423 | I59: 8.042404461 | J59: 0.2510774358 | K59: 6.739847857 | L59: 0.2104126603 | M59: 0.2337068487 | N59: 0.007296140924
B60: 910 | C60: Retten i Esbjerg | D60: Elev | E60: 0.6396129169 | F60: 0.170917129 | G60: 0.4263239349 | H60: 0.1139221255 | I60: 1.499342342 | J60: 0.4006537107 | K60: 0.7302873972 | L60: 0.1951471304 | M60: 0.001036883846 | N60: 0.000277075721
B61: 910 | C61: Retten i Esbjerg | D61: Fleks | E61: 0 | F61: 0 | G61: 0 | H61: 0 | I61: 0 | J61: 0 | K61: 0.8150278971 | L61: 0.289644548 | M61: 0 | N61: 0
B62: 910 | C62: Retten i Esbjerg | D62: Øvrige | E62: 0 | F62: 0 | G62: 0 | H62: 0 | I62: 0.005848577439 | J62: 0.002339374831 | K62: 0 | L62: 0 | M62: 0 | N62: 0
B63: 911 | C63: Retten i Sønderborg | D63: Jurister | E63: 5.12154721 | F63: 0.3323306216 | G63: 4.909380338 | H63: 0.3185633857 | I63: 2.276618569 | J63: 0.1477268554 | K63: 1.926747446 | L63: 0.1250241675 | M63: 0.007351146238 | N63: 0.0004770064394
B64: 911 | C64: Retten i Sønderborg | D64: Kontor | E64: 7.77887312 | F64: 0.2107810085 | G64: 8.247372998 | H64: 0.223475762 | I64: 7.118829459 | J64: 0.1928960699 | K64: 7.075060008 | L64: 0.1917100666 | M64: 0.3556495723 | N64: 0.009636893979
B65: 911 | C65: Retten i Sønderborg | D65: Elev | E65: 0.7245295968 | F65: 0.1804296258 | G65: 1.120920741 | H65: 0.2791429235 | I65: 1.145932338 | J65: 0.2853715621 | K65: 0.4978984361 | L65: 0.1239916615 | M65: 0 | N65: 0
B66: 911 | C66: Retten i Sønderborg | D66: Fleks | E66: 0 | F66: 0 | G66: 0 | H66: 0 | I66: 0 | J66: 0 | K66: 0 | L66: 0 | M66: 0 | N66: 0
B67: 911 | C67: Retten i Sønderborg | D67: Øvrige | E67: 0.001232314569 | F67: 0.0002345460957 | G67: 0 | H67: 0 | I67: 0.3421086889 | J67: 0.06511345344 | K67: 0.04166384951 | L67: 0.007929869113 | M67: 0 | N67: 0
B68: 912 | C68: Retten i Odense | D68: Jurister | E68: 8.754408765 | F68: 0.3608360241 | G68: 8.02436206 | H68: 0.3307452256 | I68: 3.313899333 | J68: 0.1365910928 | K68: 2.708691323 | L68: 0.11164585 | M68: 0.008211696664 | N68: 0.0003384667149
B69: 912 | C69: Retten i Odense | D69: Kontor | E69: 11.06605991 | F69: 0.2116872279 | G69: 8.651426625 | H69: 0.165496711 | I69: 14.85769263 | J69: 0.2842189351 | K69: 10.73687131 | L69: 0.2053900433 | M69: 0.6708401253 | N69: 0.01283277766
B70: 912 | C70: Retten i Odense | D70: Elev | E70: 0.6322423346 | F70: 0.1621816186 | G70: 0.4367884251 | H70: 0.1120441481 | I70: 1.601437885 | J70: 0.4107978445 | K70: 1.158445131 | L70: 0.2971621735 | M70: 0.004052479947 | N70: 0.00103953456
B71: 912 | C71: Retten i Odense | D71: Fleks | E71: 0.07649203506 | F71: 0.01899309599 | G71: 1.273892516 | H71: 0.3163095715 | I71: 0 | J71: 0 | K71: 0 | L71: 0 | M71: 0 | N71: 0
B72: 912 | C72: Retten i Odense | D72: Øvrige | E72: 0.07011953999 | F72: 0.01484052259 | G72: 0 | H72: 0 | I72: 0 | J72: 0 | K72: 0 | L72: 0 | M72: 0 | N72: 0
B73: 913 | C73: Retten i Svendborg | D73: Jurister | E73: 3.533812534 | F73: 0.2905185574 | G73: 3.889030073 | H73: 0.3197213762 | I73: 1.633361157 | J73: 0.1342803905 | K73: 1.342444215 | L73: 0.1103637935 | M73: 0.01409330087 | N73: 0.001158625535
B74: 913 | C74: Retten i Svendborg | D74: Kontor | E74: 5.025653207 | F74: 0.187079919 | G74: 5.015128995 | H74: 0.1866881552 | I74: 6.603690144 | J74: 0.2458223372 | K74: 5.633452618 | L74: 0.2097052494 | M74: 0.1990088649 | N74: 0.007408104137
B75: 913 | C75: Retten i Svendborg | D75: Elev | E75: 0.7204419254 | F75: 0.1698694754 | G75: 0.3059761557 | H75: 0.07214462014 | I75: 1.4050731 | J75: 0.3312953091 | K75: 0.6199287844 | L75: 0.1461699738 | M75: 0.003813044712 | N75: 0.0008990591496
B76: 913 | C76: Retten i Svendborg | D76: Fleks | E76: 0.04644105771 | F76: 0.04643966452 | G76: 0.03242437977 | H76: 0.03242340707 | I76: 0.2912172718 | J76: 0.2912085355 | K76: 0.009218638942 | L76: 0.009218362391 | M76: 0.1689508317 | N76: 0.1689457633
B77: 913 | C77: Retten i Svendborg | D77: Øvrige | E77: 0 | F77: 0 | G77: 0 | H77: 0 | I77: 0 | J77: 0 | K77: 0 | L77: 0 | M77: 0 | N77: 0
B78: 914 | C78: Retten i Nykøbing F. | D78: Jurister | E78: 4.775819311 | F78: 0.3158790322 | G78: 4.931863659 | H78: 0.3262000127 | I78: 2.286875464 | J78: 0.1512569805 | K78: 1.613670423 | L78: 0.1067303049 | M78: 0.0008015656123 | N78: 5.301661419e-05
B79: 914 | C79: Retten i Nykøbing F. | D79: Kontor | E79: 6.444992101 | F79: 0.1787133703 | G79: 5.854049609 | H79: 0.1623271091 | I79: 10.89743484 | J79: 0.3021752823 | K79: 6.466128709 | L79: 0.1792994679 | M79: 0.2098611831 | N79: 0.005819246748
B80: 914 | C80: Retten i Nykøbing F. | D80: Elev | E80: 0.3734244962 | F80: 0.174847941 | G80: 0.3178310744 | H80: 0.1488175241 | I80: 0.9208528266 | J80: 0.4311694128 | K80: 0.1683772544 | L80: 0.07883900643 | M80: 0.002136601782 | N80: 0.001000417558
B81: 914 | C81: Retten i Nykøbing F. | D81: Fleks | E81: 0 | F81: 0 | G81: 0 | H81: 0 | I81: 0 | J81: 0 | K81: 0 | L81: 0 | M81: 0 | N81: 0
B82: 914 | C82: Retten i Nykøbing F. | D82: Øvrige | E82: 0.04599540279 | F82: 0.011233762 | G82: 0 | H82: 0 | I82: 0.00673857616 | J82: 0.001645807107 | K82: 0 | L82: 0 | M82: 0 | N82: 0
B83: 915 | C83: Retten i Næstved | D83: Jurister | E83: 6.894439939 | F83: 0.3454583414 | G83: 5.510411135 | H83: 0.2761090832 | I83: 2.681152526 | J83: 0.1343439805 | K83: 3.126794175 | L83: 0.1566736587 | M83: 0.00411016524 | N83: 0.0002059472385
B84: 915 | C84: Retten i Næstved | D84: Kontor | E84: 6.53787256 | F84: 0.1625014617 | G84: 6.318436068 | H84: 0.1570472791 | I84: 12.80358577 | J84: 0.318238293 | K84: 7.314184759 | L84: 0.1817970148 | M84: 0.449213398 | N84: 0.01116538035
B85: 915 | C85: Retten i Næstved | D85: Elev | E85: 0.53268835 | F85: 0.1242300113 | G85: 0.7212785986 | H85: 0.1682117667 | I85: 0.9917704965 | J85: 0.2312940765 | K85: 1.027691398 | L85: 0.2396713087 | M85: 0.0005509240378 | N85: 0.0001284828163
B86: 915 | C86: Retten i Næstved | D86: Fleks | E86: 0.03814369084 | F86: 0.01254268699 | G86: 0.3692076459 | H86: 0.1214055545 | I86: 1.260516724 | J86: 0.4144923151 | K86: 0.1179304847 | L86: 0.03877876326 | M86: 0 | N86: 0
B87: 915 | C87: Retten i Næstved | D87: Øvrige | E87: 0.03649549664 | F87: 0.008226209602 | G87: 0.08793256216 | H87: 0.01982029987 | I87: 0.007318503679 | J87: 0.001649615727 | K87: 0.008773888264 | L87: 0.001977664384 | M87: 0.01049025841 | N87: 0.002364540078
B88: 916 | C88: Retten i Holbæk | D88: Jurister | E88: 3.729651593 | F88: 0.2876270704 | G88: 3.704653999 | H88: 0.2856992804 | I88: 2.158015624 | J88: 0.1664240469 | K88: 2.029054786 | L88: 0.1564787137 | M88: 0.01950881744 | N88: 0.001504500854
B89: 916 | C89: Retten i Holbæk | D89: Kontor | E89: 5.953451284 | F89: 0.1906439223 | G89: 4.958034514 | H89: 0.1587682676 | I89: 9.156434005 | J89: 0.2932111829 | K89: 5.686012879 | L89: 0.1820798972 | M89: 0.2767299904 | N89: 0.008861564204
B90: 916 | C90: Retten i Holbæk | D90: Elev | E90: 0.6060439219 | F90: 0.1979921011 | G90: 0.5314125734 | H90: 0.173610341 | I90: 0.4583887272 | J90: 0.1497537455 | K90: 0.5286455639 | L90: 0.1727063702 | M90: 0 | N90: 0
B91: 916 | C91: Retten i Holbæk | D91: Fleks | E91: 0.9668255179 | F91: 0.3222655047 | G91: 1.033234482 | H91: 0.344401162 | I91: 0 | J91: 0 | K91: 0 | L91: 0 | M91: 0 | N91: 0
B92: 916 | C92: Retten i Holbæk | D92: Øvrige | E92: 0.009471809114 | F92: 0.003654360132 | G92: 0.002457586697 | H92: 0.0009481722805 | I92: 0.002662385589 | J92: 0.001027186637 | K92: 0.00141194677 | L92: 0.0005447493635 | M92: 0 | N92: 0
B93: 917 | C93: Retten i Roskilde | D93: Jurister | E93: 6.316176569 | F93: 0.3008992696 | G93: 6.54481224 | H93: 0.3117913506 | I93: 3.120324261 | J93: 0.148650577 | K93: 2.431430182 | L93: 0.1158320319 | M93: 0.0034927222 | N93: 0.0001663914154
B94: 917 | C94: Retten i Roskilde | D94: Kontor | E94: 10.26561853 | F94: 0.2046907657 | G94: 8.271503278 | H94: 0.1649292085 | I94: 13.98706256 | J94: 0.2788943049 | K94: 8.495528179 | L94: 0.1693961414 | M94: 0.4200885899 | N94: 0.008376334546
B95: 917 | C95: Retten i Roskilde | D95: Elev | E95: 0.7914411729 | F95: 0.1390242064 | G95: 0.7197078602 | H95: 0.1264235644 | I95: 2.277372641 | J95: 0.4000422708 | K95: 1.052541838 | L95: 0.1848890338 | M95: 0 | N95: 0
B96: 917 | C96: Retten i Roskilde | D96: Fleks | E96: 0 | F96: 0 | G96: 0 | H96: 0 | I96: 0 | J96: 0 | K96: 0 | L96: 0 | M96: 0 | N96: 0
B97: 917 | C97: Retten i Roskilde | D97: Øvrige | E97: 0.02799779133 | F97: 0.006833379625 | G97: 0.1414819324 | H97: 0.03453128652 | I97: 0 | J97: 0 | K97: 0 | L97: 0 | M97: 0 | N97: 0
B98: 918 | C98: Retten i Hillerød | D98: Jurister | E98: 4.825954808 | F98: 0.3110651411 | G98: 6.432920982 | H98: 0.4146448843 | I98: 1.293919413 | J98: 0.08340178076 | K98: 1.452036047 | L98: 0.09359345784 | M98: 0.03374840737 | N98: 0.002175311108
B99: 918 | C99: Retten i Hillerød | D99: Kontor | E99: 6.315156082 | F99: 0.1985224536 | G99: 5.493318503 | H99: 0.1726872707 | I99: 6.758404765 | J99: 0.2124563635 | K99: 6.156584661 | L99: 0.1935376223 | M99: 0.505620706 | N99: 0.01589462902
B100: 918 | C100: Retten i Hillerød | D100: Elev | E100: 0.6223707258 | F100: 0.1423645256 | G100: 1.07516895 | H100: 0.2459400983 | I100: 1.181291438 | J100: 0.2702151438 | K100: 1.171302053 | L100: 0.2679301165 | M100: 0 | N100: 0
B101: 918 | C101: Retten i Hillerød | D101: Fleks | E101: 0 | F101: 0 | G101: 0.01177015985 | H101: 0.002913752091 | I101: 1.000027652 | J101: 0.2475610101 | K101: 0 | L101: 0 | M101: 0 | N101: 0
B102: 918 | C102: Retten i Hillerød | D102: Øvrige | E102: 0.7920879375 | F102: 0.1884936313 | G102: 0.2999214407 | H102: 0.07137248126 | I102: 0.4956013916 | J102: 0.117938554 | K102: 0 | L102: 0 | M102: 0 | N102: 0
B103: 919 | C103: Retten i Helsingør | D103: Jurister | E103: 4.810098609 | F103: 0.2885473414 | G103: 6.537989145 | H103: 0.3921997322 | I103: 2.216671028 | J103: 0.1329732681 | K103: 1.180441478 | L103: 0.07081211382 | M103: 0.005051239016 | N103: 0.0003030128293
B104: 919 | C104: Retten i Helsingør | D104: Kontor | E104: 6.061696515 | F104: 0.1977660168 | G104: 6.243417639 | H104: 0.2036947634 | I104: 8.413488436 | J104: 0.2744944573 | K104: 5.295467325 | L104: 0.172767389 | M104: 0.2219431162 | N104: 0.007241010157
B105: 919 | C105: Retten i Helsingør | D105: Elev | E105: 0.2882334883 | F105: 0.07062624832 | G105: 0.7207299396 | H105: 0.176601449 | I105: 2.118584901 | J105: 0.5191197741 | K105: 0.9110344277 | L105: 0.2232320197 | M105: 0 | N105: 0
B106: 919 | C106: Retten i Helsingør | D106: Fleks | E106: 0.8381854566 | F106: 0.1697253926 | G106: 0.5325723953 | H106: 0.1078413591 | I106: 1.775657328 | J106: 0.3595554358 | K106: 0.04991173627 | L106: 0.01010670009 | M106: 0.3580252176 | N106: 0.07249704719
B107: 919 | C107: Retten i Helsingør | D107: Øvrige | E107: 0 | F107: 0 | G107: 0 | H107: 0 | I107: 0 | J107: 0 | K107: 0 | L107: 0 | M107: 0 | N107: 0
B108: 920 | C108: Retten i Lyngby | D108: Jurister | E108: 4.269576613 | F108: 0.2250755086 | G108: 10.41297173 | H108: 0.5489314564 | I108: 1.42022233 | J108: 0.07486860927 | K108: 1.716464645 | L108: 0.09048535443 | M108: 0.002345912444 | N108: 0.0001236673995
B109: 920 | C109: Retten i Lyngby | D109: Kontor | E109: 5.359714727 | F109: 0.1439003729 | G109: 9.323002502 | H109: 0.250308758 | I109: 6.387600825 | J109: 0.1714975866 | K109: 6.177112357 | L109: 0.1658462841 | M109: 1.254070944 | N109: 0.0336699406
B110: 920 | C110: Retten i Lyngby | D110: Elev | E110: 0.1483548376 | F110: 0.05793481427 | G110: 0.5499824191 | H110: 0.2147764766 | I110: 0.2561945414 | J110: 0.1000478543 | K110: 0.7958913599 | L110: 0.3108076478 | M110: 0.002769924618 | N110: 0.001081697577
B111: 920 | C111: Retten i Lyngby | D111: Fleks | E111: 0 | F111: 0 | G111: 0 | H111: 0 | I111: 0 | J111: 0 | K111: 1.759988591 | L111: 0.7988945186 | M111: 0.00243540865 | N111: 0.001105481383
B112: 920 | C112: Retten i Lyngby | D112: Øvrige | E112: 0.05673832068 | F112: 0.01513215576 | G112: 0.5145703299 | H112: 0.1372363209 | I112: 0.06706414534 | J112: 0.01788606151 | K112: 0.3449701778 | L112: 0.0920038239 | M112: 0 | N112: 0
B113: 921 | C113: Retten i Glostrup | D113: Jurister | E113: 14.64757632 | F113: 0.4112099015 | G113: 12.71109897 | H113: 0.3568460503 | I113: 4.058047634 | J113: 0.1139239238 | K113: 1.777477061 | L113: 0.04990014398 | M113: 0.03495376933 | N113: 0.00098127743
B114: 921 | C114: Retten i Glostrup | D114: Kontor | E114: 20.47331157 | F114: 0.2655354494 | G114: 13.99449163 | H114: 0.1815062312 | I114: 18.80914106 | J114: 0.2439514344 | K114: 7.685253756 | L114: 0.09967646433 | M114: 0.6223979027 | N114: 0.008072397388
B115: 921 | C115: Retten i Glostrup | D115: Elev | E115: 1.44723862 | F115: 0.2760230662 | G115: 0.5007758543 | H115: 0.09550994898 | I115: 1.386062566 | J115: 0.2643553275 | K115: 1.139002288 | L115: 0.2172350155 | M115: 0.001251746002 | N115: 0.0002387379419
B116: 921 | C116: Retten i Glostrup | D116: Fleks | E116: 1.000035018 | F116: 0.2995632576 | G116: 0.3382049447 | H116: 0.1013102272 | I116: 0 | J116: 0 | K116: 0.9705853496 | L116: 0.2907415278 | M116: 0.0294496688 | N116: 0.008821729799
B117: 921 | C117: Retten i Glostrup | D117: Øvrige | E117: 0.7706680867 | F117: 0.08043233903 | G117: 1.018067934 | H117: 0.1062527262 | I117: 1.090959697 | J117: 0.113860223 | K117: 0.2647957942 | L117: 0.0276359505 | M117: 0 | N117: 0
B118: 922 | C118: Retten på Frederiksberg | D118: Jurister | E118: 7.980350609 | F118: 0.3384243438 | G118: 8.761168393 | H118: 0.3715366416 | I118: 2.977879687 | J118: 0.1262835467 | K118: 1.956823638 | L118: 0.08298341616 | M118: 0.002727153414 | N118: 0.0001156509469
B119: 922 | C119: Retten på Frederiksberg | D119: Kontor | E119: 9.92222054 | F119: 0.1964835054 | G119: 9.258345758 | H119: 0.1833372098 | I119: 14.44500101 | J119: 0.2860452882 | K119: 7.375300126 | L119: 0.1460484391 | M119: 1.025064383 | N119: 0.02029870657
B120: 922 | C120: Retten på Frederiksberg | D120: Elev | E120: 0.9610676408 | F120: 0.2819099421 | G120: 0.5698458343 | H120: 0.1671528614 | I120: 1.217896076 | J120: 0.3572454192 | K120: 0.5626014922 | L120: 0.1650278787 | M120: 0.00219146315 | N120: 0.0006428218196
B121: 922 | C121: Retten på Frederiksberg | D121: Fleks | E121: 0.007701949914 | F121: 0.002567239621 | G121: 1.432954779 | H121: 0.477637264 | I121: 1.502807454 | J121: 0.5009207903 | K121: 0 | L121: 0 | M121: 0 | N121: 0
B122: 922 | C122: Retten på Frederiksberg | D122: Øvrige | E122: 0.0004481299585 | F122: 8.730405311e-05 | G122: 0.2866961666 | H122: 0.05585374707 | I122: 0.8771890632 | J122: 0.1708927491 | K122: 0 | L122: 0 | M122: 0 | N122: 0
B123: 923 | C123: Københavns Byret | D123: Jurister | E123: 24.1978014 | F123: 0.4176218863 | G123: 21.07781818 | H123: 0.3637751232 | I123: 5.851203812 | J123: 0.1009839999 | K123: 2.396505094 | L123: 0.04136049227 | M123: 0.1289853734 | N123: 0.002226116087
B124: 923 | C124: Københavns Byret | D124: Kontor | E124: 33.85624438 | F124: 0.2908074916 | G124: 18.30614877 | H124: 0.1572402758 | I124: 22.89997784 | J124: 0.196698873 | K124: 10.10239839 | L124: 0.08677433626 | M124: 2.232576 | N124: 0.01917666411
B125: 923 | C125: Københavns Byret | D125: Elev | E125: 3.807565901 | F125: 0.4612229254 | G125: 1.064196697 | H125: 0.1289096306 | I125: 0.8247678132 | J125: 0.09990682588 | K125: 0.8912403088 | L125: 0.1079588569 | M125: 0.02460824433 | N125: 0.002980877215
B126: 923 | C126: Københavns Byret | D126: Fleks | E126: 0 | F126: 0 | G126: 0 | H126: 0 | I126: 1.333373333 | J126: 0.6666666667 | K126: 0 | L126: 0 | M126: 0 | N126: 0
B127: 923 | C127: Københavns Byret | D127: Øvrige | E127: 0.6714971215 | F127: 0.07338886664 | G127: 1.107655677 | H127: 0.1210572498 | I127: 0.2677337525 | J127: 0.02926099908 | K127: 0 | L127: 0 | M127: 0 | N127: 0
B128: 924 | C128: Retten på Bornholm | D128: Jurister | E128: 0.8957324769 | F128: 0.2430205617 | G128: 0.7669228821 | H128: 0.2080733192 | I128: 0.5622247871 | J128: 0.15253682 | K128: 0.4571935686 | L128: 0.1240408724 | M128: 0.02236728968 | N128: 0.006068453966
B129: 924 | C129: Retten på Bornholm | D129: Kontor | E129: 0.7667095782 | F129: 0.09164984128 | G129: 1.001927436 | H129: 0.1197669796 | I129: 2.411779697 | J129: 0.2882958981 | K129: 1.813723002 | L129: 0.2168062458 | M129: 0.04805493132 | N129: 0.00574432217
B130: 924 | C130: Retten på Bornholm | D130: Elev | E130: 0.6030389585 | F130: 0.2903944672 | G130: 0.1229199345 | H130: 0.05919230985 | I130: 0.1289924016 | J130: 0.06211651705 | K130: 0.4437650725 | L130: 0.2136958483 | M130: 0 | N130: 0
B131: 924 | C131: Retten på Bornholm | D131: Fleks | E131: 0 | F131: - | G131: 0 | H131: - | I131: 0 | J131: - | K131: 0 | L131: - | M131: 0 | N131: -
B132: 924 | C132: Retten på Bornholm | D132: Øvrige | E132: 0.01364504846 | F132: 0.01137950318 | G132: 0 | H132: 0 | I132: 0 | J132: 0 | K132: 0 | L132: 0 | M132: 0 | N132: 0
B134: 1) Procenten er beregnet i forhold til det samlede årsværksforbrug ved retten inkl. generel ledelse og administration, hvorfor der ikke kan summes op til 100 % for den enkelte ret.
B135: 2) Ansatte under socialt kapitel (fleksjobbere mv.) uden tidsfordeling indgår ikke i denne opgørelse.
B136: 3) Det opgjorte årsværksforbrug er inkl. de korrektioner, der foretages som led i produktivitetsberegningen.

Sheet Ark12

Sheet Ark13

Sheet Ark14

Sheet Ark15

Sheet Ark16

Sheet Ark17

Sheet Ark18

Sheet Ark19

Sheet Ark20
